{"text_format":"1","workbook":"xlsx","n_sheets":5,"sheets":["Instructions","StudyInformation","PlannedCosts","OtherProcedures","SelectionLists"],"not_rendered":{"charts":0,"images":0,"macros":1,"external_links":0,"defined_names":74,"comments":0,"pivot_tables":0},"unopened":[],"bounds":{"document_bytes":16777216,"sheet_cells":100000,"rows_first":2000,"rows_last":500,"rows_between":2000,"halvings":0,"cell_chars":16384,"cell_head_chars":4096},"cells_cut":0,"cells_raw":0,"read":"whole","date_system":"1900"}

{"sheet":"Instructions","index":0,"n_rows":25,"n_cols":3,"rows_kept":25,"cut":false,"hidden":false,"merged":[[0,0,0,2]]}
["ViiV ISS Budget Workbook"]
[null,null,"Version 3.4(26-July-2019)"]
["Overview"]
[null,null,"This budget worksheet is to facilitate the development of an estimated budget for a study when asking ViiV for financial support of the study.  The budget is broken into sections to help collect the information and also to align the information with industry standards.  ViiV has a responsibility to ensure that reimbursements are aligned with Fair Market Value for study costs.  This worksheet has been implemented to help categorize and identify costs in a way that will facilitate the reconciliation with Fair Market Value."]
["Study Information"]
[null,null,"The Study Information worksheet provides some high level information to facilitate the review of the budget.  Several of the fields have input restricted to a selection from a drop down list.  This sheet does not include any specific financial information."]
["Planned Costs"]
[null,null,"The Planned Costs worksheet is intended to capture financial information about the estimated budget for the study.  This sheet has many calculated fields including summary information.  The worksheet is protected to help maintain the integrity of the worksheet automation."]
[null,"Currency"]
[null,null,"Budgets provided in this workbook should be provided in US Dollars, Euros, British Pounds, Australian Dollars or Japanese Yen.  Please select the desired currency and formatting will be updated for all monetary values.  The worksheet will NOT do currency conversions.  Additionally please indicate the currency preferred for payments under the contract.  "]
[null,"Cost Information Tables"]
[null,null,"The Planned Costs worksheet includes specific sections for different types of costs.  Each section allows rows to be added by clicking the button at the bottom of each section to add additional rows.  In some cases data cannot be cleared because the cells are locked.  In these cases the Cost section will include a button to clear rows within the section that are selected."]
[null,"Countries Involved in the Study"]
[null,null,"The information entered here will help allow the calculation of overhead costs.  Select a country from the available list, and indicate the % Overhead planned for that country, and the % of patients that will be at sites in that country.  For countries that may have investigators or other resources and no patients/subjects you can leave the percentage of patients empty or set to 0%.  There is also an optional site name column. This column can be used to designate a site within the country that may have a different overhead rate.  (For example if you have a lab with a specific overhead you can identify the country and a name/identifier in the site column.  The associate an overhead rate.  The % patients can be left blank.)  Note: Changes to the Country or Country- Site combination after it is selected in the Personnel Costs or Procedure Costs table will make previous overhead calculations invalid and reset them to 0.  When the worksheet detects this issue it will raise an error. "]
[null,"Cost Descriptions"]
[null,null,"The tables where costs are entered have a description column.  The worksheet is prepopulated with a set of costs and cost codes to facilitate Fair Market Value analysis.  For these table double click in the description column to open the entry form for selecting a description.  The form includes a search function so that you can subset the list and more easily find the item of interest.  The form will also allow you to define your own description if a reasonable is not available."]
[null,"Personnel Costs"]
[null,null,"Costs can be provided based on hourly rates or salary rates.  If using salaries, then the number of months, the percent allocation, and the salary rate are entered and the worksheet will calculate the cost.  If using hourly rates then Hours is selected in the Duration column and the number of hours and hourly rate are provided and the worksheet will calculate the cost.  If a country is entered then the overhead rate for the selected country will be used to calculate Cost with Overhead.  Note: Only the countries added to the table \"Countries Involved in the Study\" can be selected.  Important Note: Please enter only the role or type of person and do NOT enter people's names.  This will aid the Fair Market Value analysis and also avoid sharing personal information."]
[null,"Protocol Procedure Costs"]
[null,null,"The table allows each procedure to be identified.  The quantity should be the number of times the procedure will be executed for the entire study.  For example: If a questionnaire will be used for all patients as part of screening and then again for all enrolled patients at the end of the study the quantity will be the number of planned screened patients + the number of planned enrolled patients.  If a test will be run at each visit then the quantity will be the number of planned enrolled patients * the number of visits.  If a test will only be used in 1 country then enter the country and the overhead for that country will be applied to the cost.  If the test is not unique to one country than the overhead will be calculated by splitting applying the % or subjects in each country with subjects to calculate a blended overhead.  (Note: If there is only 1 country with subjects then selecting the country or leaving blank will have the same result.)"]
[null,"Site & Pass Through Costs"]
[null,null,"There is no overhead applied for costs in these categories so country is not required. "]
[]
[null,"MAC OS Users"]
[null,null,"This spreadsheet and macros have been tested on  MAC OS with Excel Version 16.17.  The macros use a pop-up user form and testing has indicated that if using multiple monitors there are some arrangements that may cause odd behaviors or errors.  If this occurs it is recommended to view the Excel workbook on your primary monitor.  "]

{"sheet":"StudyInformation","index":1,"n_rows":21,"n_cols":4,"rows_kept":21,"cut":false,"hidden":false,"merged":[[0,0,0,7],[6,1,6,4],[1,0,1,4],[2,1,2,4],[3,1,3,4],[4,1,4,4],[5,1,5,4]]}
["ViiV ISR Budget Workbook (Study Information Sheet)"]
[]
["Date: "]
["Study Title: "]
["Investigator Name (Principle): "]
["Investigator Institution: "]
["Sponsor Name: "]
[]
["Indication: ","HIV"]
["Phase: ",null,null,"Patient Type: "]
["Type of Study: ",null,null,"Planned Total Number of Visits (0 if N/A): "]
["Planned Total Number of Screened Subjects (0 if N/A)",null,null,"Treatment Duration in Days (0 if N/A): "]
["Planned Total Number of Enrolled Patients: ",null,null,"Paediatric Trial: "]
[]
[]
[]
[]
[]
[]
["Last Saved Date:"]
["2019-07-26T13:46:00"]

{"sheet":"PlannedCosts","index":2,"n_rows":55,"n_cols":9,"rows_kept":55,"cut":false,"hidden":false,"merged":[[12,2,12,3],[13,2,13,3],[14,2,14,3],[15,2,15,3],[10,5,13,6],[1,1,1,6],[2,2,2,6],[3,2,3,6],[0,1,0,8],[11,1,11,3],[5,2,5,3],[8,2,8,3],[6,2,6,3],[7,2,7,3],[34,2,34,6],[33,2,33,6],[17,2,17,3],[24,1,25,4],[15,5,18,6],[16,2,16,3],[19,2,19,4],[35,1,35,6],[54,1,54,4],[44,1,44,5],[45,1,45,5],[46,1,46,5]]}
[null,"ViiV ISR Budget Workbook (Planned Costs Worksheet)"]
[]
[null,"Date",null,null,null,null,null,null,"Last Saved Date:"]
[null,"Study Title",null,null,null,null,null,null,"2019-07-26T13:46:00"]
[]
[null,"Select the currency for the budget information provided in this workbook (for FMV Analysis) :"]
[null,"Select the currency to be used for contract payments: "]
[null,"Enter the currency requested for payments:\n(Only if \"Other\" selected in the previous question.)"]
[null,"Planned Total Enrolled Subjects :"]
[]
[null,null,null,null,null,"NOTE:  Do not overwrite the cells shaded in blue. These cells calculate automatically."]
[null,"Summary of All Costs"]
[null,"Total Personnel Costs with Overhead",{"$f":"CalcTotPersCost","v":0}]
[null,"Total Protocol Activities with Overhead",{"$f":"TotalActCost","v":0}]
[null,"Total Site Costs",{"$f":"TotPTCosts","v":0}]
[null,null,null,null,null,"NOTE: Cells shaded in yellow will be filled in by double clicking on the cell and then entering information in the display form."]
[null,"Total Study Cost",{"$f":"CalcTotPersCost+TotalActCost+TotPTCosts","v":0}]
[null,"   Pro-rated per patient amount",{"$f":"IFERROR(TotalActCost/PatientCount, 0)","v":0}]
[null,"Net Effective Overhead",null,{"$f":"IFERROR(((PersOHTotal+ProtActOH)/(SubTotPersCost+SubTotProtAct)),0)","v":0}]
[null,"Countries Involved in the Study","Current Subject Allocation Over 100%"]
[null,"Country","%Overhead","% of Subjects","Number of Sites","Site Name (optional)"]
[null,null,null,null,null,null,{"$f":"IF(ISBLANK(B22),TRIM(B22),IF(ISBLANK(F22),B22,_xlfn.CONCAT(B22,\"-\",F22)))","v":""}]
[null,null,null,null,null,null,{"$f":"IF(ISBLANK(B23),TRIM(B23),IF(ISBLANK(F23),B23,_xlfn.CONCAT(B23,\"-\",F23)))","v":""}]
[null,null,null,null,null,null,""]
[]
[]
[]
[null,"Personnel Costs  (Do not include benefits -- Double Click Description Cell for Pick List)"]
[null,"Description or Role\nPlease do not enter names\n(Double Click to get Selection List)","Code","Duration \n(in months)\nOR\nSelect Hours","% allocation\nOR\n Number of Hours","Yearly Salary\nOR\nHourly Rate","Country\n(Overhead for\nSelected Country will\nbe applied)","Total Cost","Total Cost With Overhead"]
[null,null,null,null,null,null,null,{"$f":"IFERROR(IF(D30=\"Hours\",E30*F30,(F30/12)*E30*D30), 0)","v":0},{"$f":"IF(G30<>\"\",PersCostWithOverhead(G30,H30, NOW()),IF(H30=0,\"\",H30))","v":""}]
[null,null,null,null,null,null,null,{"$f":"IFERROR(IF(D31=\"Hours\",E31*F31,(F31/12)*E31*D31), 0)","v":0},{"$f":"IF(G31<>\"\",PersCostWithOverhead(G31,H31, NOW()),IF(H31=0,\"\",H31))","v":""}]
[null,null,null,null,null,null,null,{"$f":"IFERROR(IF(D32=\"Hours\",E32*F32,(F32/12)*E32*D32), 0)","v":0},{"$f":"IF(G32<>\"\",PersCostWithOverhead(G32,H32, NOW()),IF(H32=0,\"\",H32))","v":""}]
[null,null,null,null,null,null,null,{"$f":"IFERROR(IF(D33=\"Hours\",E33*F33,(F33/12)*E33*D33), 0)","v":0},{"$f":"IF(G33<>\"\",PersCostWithOverhead(G33,H33, NOW()),IF(H33=0,\"\",H33))","v":""}]
[null,null,"Total Personnel Costs",null,null,null,null,{"$f":"SUM(H30:H33)","v":0}]
[null,null,"Overhead Amount",null,null,null,null,{"$f":"IFERROR(CalcTotPersCost-SubTotPersCost,0)","v":0}]
[null,"Total Personnel Costs (with overhead)",null,null,null,null,null,{"$f":"I36","v":0},{"$f":"SUM(I30:I33)","v":0}]
[]
[null,"Procedure Costs (Double Click Description Cell for Pick List)"]
[null,"Description\n(Double Click to get Selection List)","Code","Quantity","Unit Cost","Country\n(blank will balance overhead for all Countries listed with Patients)","Total Cost","Total Cost with Overhead"]
[null,null,null,null,null,null,{"$f":"$D40*$E40","v":0},{"$f":"IF($G40>0,ProcCostWithOverhead($F40,$G40,NOW()),\"\")","v":""}]
[null,null,null,null,null,null,{"$f":"$D41*$E41","v":0},{"$f":"IF($G41>0,ProcCostWithOverhead($F41,$G41,NOW()),\"\")","v":""}]
[null,null,null,null,null,null,0,{"$f":"IF($G42>0,ProcCostWithOverhead($F42,$G42,NOW()),\"\")","v":""}]
[null,null,null,null,null,null,0,{"$f":"IF($G43>0,ProcCostWithOverhead($F43,$G43,NOW()),\"\")","v":""}]
[null,null,null,null,null,null,0,{"$f":"IF($G44>0,ProcCostWithOverhead($F44,$G44,NOW()),\"\")","v":""}]
[null,"Total Cost for All Procedure Costs",null,null,null,null,{"$f":"SUM($G40:$G44)","v":0},{"$f":"SUM(H40:H44)","v":0}]
[null,"Overhead Amount",null,null,null,null,{"$f":"TotProcCostWithOH-SubTotProtAct","v":0}]
[null,"Total Cost for All Procedure Costs (with overhead)",null,null,null,null,{"$f":"SubTotProtAct+ProtActOH","v":0}]
[]
[null,"Site Costs (Double Click Description Cell for Pick List)"]
[null,"Description\n(Double Click to get Selection List)","Code","Quantity","Unit Cost","Total Cost"]
[null,null,null,null,null,{"$f":"$D51*$E51","v":0}]
[null,null,null,null,null,{"$f":"$D52*$E52","v":0}]
[null,null,null,null,null,{"$f":"$D53*$E53","v":0}]
[null,null,null,null,null,{"$f":"$D54*$E54","v":0}]
[null,"Total Site Costs",null,null,null,{"$f":"SUM($F51:$F54)","v":0}]

{"sheet":"OtherProcedures","index":3,"n_rows":1,"n_cols":5,"rows_kept":1,"cut":false,"hidden":true,"merged":[]}
[0,"Short Code","Description","Long Description",0]

{"sheet":"SelectionLists","index":4,"n_rows":4237,"n_cols":18,"rows_kept":4237,"cut":false,"hidden":true,"merged":[]}
["In this column include the information on procedure selections and the list should be in a range named SL_ProcDesc","This column should have the related procedure code and the Range is named SL_ProcCodes",null,"This column includes the currencies which budgets may be provided in range name is SL_Currency","This column includes valid phases that can be entered on the SI page - Range name is SL_Phase","This column includes valid study types that can be entered on the SI page - Range name is SL_StudyType","This column includes valid Patient/Subject types that can be entered on the SI page - Range name is SL_PatientType","Valid Yes/No Repsonse Range is  SL_YesNo","This column includes valid country names for countries entered on the Planned cost sheet - Range name is SL_CountryLIst","This coluymn includes valid options for the Duration Range is SLDuration","This column is descriptions for personnel costs Range is SL_PersCostDesc","This column Is related codes for the personnel costs Range SL_PersCostCode","This column is descriptions for Site and Pass Through costs Range is SL_PassThruDesc","This column Is related codes for the pass through costs Range SL_PassThruCode","NO LONGER USED >>> This column is descriptions for site costs Range is SL_SiteDesc","NO LONGER USED   This column Is related codes for the site costs Range SL_SiteCode","Yes/no with Not Applicable Range: SL_YN_NA","This column includes the currencies selected for payments PC_Contact_Currency"]
["\"I Think I Am\"","*ITIA",null,"Euros €","I","Interventional","Inpatient","Yes","Afghanistan","Hours","Administrative Assistant","ViiV0980","Advertising","#1114","Advertising","#1114","Yes","Euros €"]
["11-Point Sleep Interference Scale","*SIS*",null,"British Pounds £","II","Non-Interventional","Outpatient","No","Aland Islands",1,"Biostatistician I","ViiV0010","Archiving/Document storage/patient","*AR02","Pharmacy Fee; Incl. Fixed & Disp.","#1117","No","British Pounds £"]
["12-Item Well-Being Q (Bradley)","*WBQM",null,"US Dollars $","IIA","Cohort","Mixed",null,"Albania",2,"Biostatistician II - Sr","ViiV0020","Archiving/Document storage/per site","*AR01","Pharmacy Fee; Incl. Fixed & Disp.","#1117","N/A","US Dollars $"]
["15D Health-Related QOL Scale","*15DS",null,"Australian Dollars $","III","Other","N/A",null,"Algeria",3,"CAT Scan Technologist","ViiV0770","Archiving; first shelf meter","*AR03","Facility Charge","#1119",null,"Australian Dollars $"]
["17 Item Depression Rating Scale","*DRS*",null,"Japanese Yen","IV","N/A",null,null,"American Samoa",4,"Certified Nurse Assistant","ViiV0610","Archiving; second shelf meter","*AR04","Site Start-up Costs","#1124",null,"Japanese Yen"]
["17-Hydroxypregnenolone","N84143",null,null,"N/A",null,null,null,"Andorra",5,"Chief Diagnostic Imaging Operations Technologist","ViiV0780","Bed Fee, Day Only","VDAY*","Pharmacy Fee: Fixed Cost","#1131",null,"Other"]
["22-Item Well-Being Q (Bradley)","*WBFQ",null,null,null,null,null,null,"Angola",6,"Chief Radiologic Technologist","ViiV0790","Bed Fee, ICU incl. Meals","*INT*","Pharmacy Dispensing per Patient","#1132"]
["23-Item Trial Outcome Index (TOI)","*TOI*",null,null,null,null,null,null,"Anguilla",7,"Clincal Medical Records Director","ViiV0080","Bed Fee, Overnight, Hotel, Housing","VHOTL","EC/IRB Fee","#2001"]
["24Hr Migraine Quality of Life Quest","*QL17",null,null,null,null,null,null,"Antarctica",8,"Clinical Data Manager , assistant","ViiV0072","Central IRB","SL004","Administrative Fees; Costs","*ADMN"]
["24Hr Patient Analgesia Satisfaction","*HPAS",null,null,null,null,null,null,"Antigua and Barbuda",9,"Clinical Data Manager , junior","ViiV0070","Clinical Research Fee","*CLRF","Archiving/Document storage/per site","*AR01"]
["24-Item Hamilton Depression Rating","*HMD2",null,null,null,null,null,null,"Argentina",10,"Clinical Data Manager , senior","ViiV0071","EC/IRB Fee","#2001","Archiving; first shelf meter","*AR03"]
["26-Q Brain Cancer Spec Survey Osoba","*BCOS",null,null,null,null,null,null,"Armenia",11,"Clinical Investigator Contracts Negotiator","ViiV0740","Facility Charge","#1119","Archiving; second shelf meter","*AR04"]
["3D Photographic Imaging","NC167",null,null,null,null,null,null,"Aruba",12,"Clinical Investigator Payments Assistant","ViiV0750","IND Reporting (per report)","*INDR","Site, Quality Audit Fee","*AUDT"]
["3D Rendering, Tomographic Analysis",76376,null,null,null,null,null,null,"Australia",13,"Clinical Project Director","ViiV0040","IRB Amendment (for each amend)","*IRBA","Bed Fee, ICU incl. Meals","*INT*"]
["3-Methylhistidine (3MeHis); Urine","82139-UR",null,null,null,null,null,null,"Austria",14,"Clinical Project Manager","ViiV0030","IRB prep fee","*IRBF","Pharmacy close-out fee","*PCLO"]
["4 activities daily living, dementia","*4IAD",null,null,null,null,null,null,"Azerbaijan",15,"Clinical Research Coordinator","ViiV0800","IRB Renewal","*IRBR","Pharmacy destruction fee","*PDES"]
["48 Hr Dexamethasone Suppression",80420,null,null,null,null,null,null,"Bahamas",16,"Clinical Research Coordinator, senior","ViiV0801","IRB Review Fee","*IREV","Pharm. Fee: Inventory","*PINV"]
["6 Lead ECG","NC075",null,null,null,null,null,null,"Bahrain",17,"Clinical Research Nurse","ViiV0600","Lab start-up cost/fee","*LABF","Pharmacy Maintenance (monthly)","*PMTM"]
["72Hr Inpatient Nutrient Absorp Test","*INAT",null,null,null,null,null,null,"Bangladesh",18,"Clinical Team Leader","ViiV0050","Local IRB","SL023","Pharmacy Maintenance Fee (yearly)","*PMTN"]
["A1-AT, A1-PI Phenotype",82104,null,null,null,null,null,null,"Barbados",19,"Clinical Trial Administrator","ViiV0060","Non-study Drug Disp/visit","*PNSD","Pharmacy Maintenance (quarterly)","*PMTQ"]
["AAO Criteria","*AAO*",null,null,null,null,null,null,"Belarus",20,"Clinical Trial Administrator, senior","ViiV0061","Overnight Bed Fee","VBED*","Pharm. Storage: shelf/year","*PS01"]
["AAOS Lower Limb Questionaire","*OSLL",null,null,null,null,null,null,"Belgium",21,"Data Entry","ViiV0090","Patient Reimb/Day Extend Serial PK","*PKRD","Pharm. Storage: Refrig. Shelf/yr","*PS02"]
["AAQOL-29","*AAQL",null,null,null,null,null,null,"Belize",22,"Database Administrator","ViiV0730","Patient Reimb/Period Ext Serial PK","*PKRP","Pharmacy set-up fee","*PSET"]
["A-B Neurotoxicity Scale","*ABNS",null,null,null,null,null,null,"Benin",23,"Database Analyst","ViiV1200","Patient Reimbursement","#1118","Pharmacy Storage Fee","*PSTR"]
["Abbr Diagnostic Interview Sched","*DISA",null,null,null,null,null,null,"Bermuda",24,"Diet Technician","ViiV0810","Pharm Disp p/visit (simple)","VPHRM","Radiology Set-up Fee","*RADF"]
["Abbrev Mod Fatigue Impact Scale","*AFIS",null,null,null,null,null,null,"Bhutan",25,"Director of Pharmacy Assistant","ViiV0240","Pharm Disp p/visit (use w/infusion)","*PHRMC","Re-Consent form per Site","*RCOF"]
["Abbreviated Injury Score (AIS)","*AIS*",null,null,null,null,null,null,"Bolivia",26,"Director of Programming","ViiV0720","Pharm. Fee: Inventory","*PINV","SAE per site","*SAER"]
["Abbreviated Symptom Q, Parent","*ASQP",null,null,null,null,null,null,"Bonaire Sint Eustatius & Saba",27,"Drug Safety Manager","ViiV0100","Pharm. Storage: Refrig. Shelf/yr","*PS02","Site Level Supply Costs","*SUPL"]
["Abbreviated Symptom Q, Teacher","*ASQT",null,null,null,null,null,null,"Bosnia and Herzegovina",28,"Drug Safety Specialist","ViiV0110","Pharm. Storage: shelf/year","*PS01","Overnight Bed Fee","VBED*"]
["ABCD Score, TIA Risk Score","*ABCD",null,null,null,null,null,null,"Botswana",29,"Echocardiograph Technician","ViiV0820","Pharmacy close-out fee","*PCLO","Bed Fee, Day Only","VDAY*"]
["ABC-Irritability Subscale Only","*ABCI",null,null,null,null,null,null,"Bouvet Island",30,"Electrocardiograph Technician","ViiV0830","Pharmacy destruction fee","*PDES","Bed Fee, Overnight, Hotel, Housing","VHOTL"]
["AB-Dependent-Cell-Mediated Cytotox","*ADCC",null,null,null,null,null,null,"Brazil",31,"Electroencephalograph Technician","ViiV0840","Pharmacy Dispensing per Patient","#1132"]
["Abdomen and Thorax CT Scan","NC120",null,null,null,null,null,null,"British Indian Ocean Territory",32,"Endoscopy Technician","ViiV0850","Pharmacy Fee: Fixed Cost","#1131"]
["Abdomen Aortography",75630,null,null,null,null,null,null,"British Virgin Islands",33,"Exercise Physiologist","ViiV0860","Pharmacy Fee; Incl. Fixed & Disp.","#1117"]
["Abdomen Aortography by Serialograph",75625,null,null,null,null,null,null,"Brunei Darussalam",34,"Exercise Specialist","ViiV0870","Pharmacy Maintenance (monthly)","*PMTM"]
["Abdomen CT Angio w/wo Contrast",74175,null,null,null,null,null,null,"Bulgaria",35,"Financial Analyst","ViiV1190","Pharmacy Maintenance (quarterly)","*PMTQ"]
["Abdomen CT Scan Interp Only","74150-26",null,null,null,null,null,null,"Burkina Faso",36,"Genetic Counselor","ViiVNP103","Pharmacy Maintenance Fee (yearly)","*PMTN"]
["Abdomen CT Scan w/ Contrast",74160,null,null,null,null,null,null,"Burundi",37,"Histology Technician","ViiV0880","Pharmacy set-up fee","*PSET"]
["Abdomen CT Scan w/o Contrast",74150,null,null,null,null,null,null,"Cambodia",38,"Information Technology","ViiV0120","Pharmacy Storage Fee","*PSTR"]
["Abdomen CT Scan, Scan Only","74150-52",null,null,null,null,null,null,"Cameroon",39,"Information Technology Director","ViiV0122","Radiology Set-up Fee","*RADF"]
["Abdomen CT w/o & w/ Contrast",74170,null,null,null,null,null,null,"Canada",40,"Information Technology, Senior","ViiV0121","Re-Consent form per Site","*RCOF"]
["Abdomen MRA",74185,null,null,null,null,null,null,"Cape Verde",41,"Junior Programmer","ViiV0722","Regional IRB","SL014"]
["Abdomen MRI",74181,null,null,null,null,null,null,"Cayman Islands",42,"Laboratory Information Systems Coordinator","ViiV0890","SAE per site","*SAER"]
["Abdomen MRI, Interpretation Only","74181-26",null,null,null,null,null,null,"Central African Republic",43,"Laboratory Manager","ViiV0900","Site Start-up Costs","#1124"]
["Abdomen MRI, MRI Only","74181-52",null,null,null,null,null,null,"Chad",44,"Laboratory Services Director","ViiV0910","Site training","*STRN"]
["Abdomen Pelvis CT Scan w/o Contrast",74176,null,null,null,null,null,null,"Chile",45,"Laboratory Supervisor I","ViiV0920","Site, Quality Audit Fee","*AUDT"]
["Abdomen Pelvis CT w/o & w/ Contrast",74178,null,null,null,null,null,null,"China",46,"Laboratory Supervisor II","ViiV0930","Study Close-out Fee","*SCLO"]
["Abdomen X-Ray",74000,null,null,null,null,null,null,"Christmas Island",47,"Laboratory Supervisor III","ViiV0940","Supplies","#1120"]
["Abdomen, Pelvis CT Scan w/ Contrast",74177,null,null,null,null,null,null,"Cocos (Keeling) Islands",48,"Laboratory Technician","ViiV0990","Translation","*TRAN"]
["Abdominal Paracentesis w/o Imaging",49082,null,null,null,null,null,null,"Colombia",49,"Laboratory Technician - Sr","ViiV1000","Translation Fee (per page)","*TRNP"]
["Abdominal Ultrasound",76700,null,null,null,null,null,null,"Comoros",50,"Lead CRA/Manager","ViiV0130"]
["Abdominal/Extremity Aorta CT Angio",75635,null,null,null,null,null,null,"Congo",51,"Lead Programmer","ViiV0721"]
["Aberrant Behavior Checklist; ABC","*ABC*",null,null,null,null,null,null,"Cook Islands",52,"Librarian","ViiV1180"]
["Ability Mng Child Asthma Caregiver","*CAGA",null,null,null,null,null,null,"Costa Rica",53,"Medical Administration Assistant","ViiV0960"]
["Abnormal Involuntary Movement Scale","*AIMS",null,null,null,null,null,null,"Cote d Ivoire",54,"Medical Assistant","ViiV0950"]
["ABO Serologic Blood Typing",86900,null,null,null,null,null,null,"Croatia",55,"Medical Records Research Coordinator","ViiV0170"]
["ABPM, 24 Hours or More",93784,null,null,null,null,null,null,"Cuba",56,"Medical Secretary","ViiV0160"]
["ABPM, Physician Interp/Report Only",93790,null,null,null,null,null,null,"Curacao",57,"Medical Secretary, senior","ViiV0970"]
["ABPM, Scan Analysis & Report Only",93788,null,null,null,null,null,null,"Cyprus",58,"Medical Technologist - Hematology","ViiV1010"]
["ABPM, Tracing Only",93786,null,null,null,null,null,null,"Czech Republic",59,"Medical Technologist - Microbiology","ViiV1020"]
["Absenteeism Questionnaire Asthma","*ABSQ",null,null,null,null,null,null,"Denmark",60,"Medical Writer","ViiV0150"]
["Absolute CD4 Count",86361,null,null,null,null,null,null,"Djibouti",61,"Medical Writer, more than 5 year experience","ViiV0151"]
["Abuse or Diversion of Study Drug Q","*ADSD",null,null,null,null,null,null,"Dominica",62,"Medical Writer,less than 5 year experience","ViiV0152"]
["Academic Performance Rating Scale","*APRS",null,null,null,null,null,null,"Dominican Republic",63,"MRI Technologist","ViiV1030"]
["Academy Otolaryngology Head/Neck SX","*OHNS",null,null,null,null,null,null,"Ecuador",64,"Nuclear Laboratory Technologist Supervisor","ViiV1040"]
["ACC Guidelines Heart Failure","*ACC*",null,null,null,null,null,null,"Egypt",65,"Nuclear Medicine Technologist","ViiV1050"]
["ACDS v 1.1","*ASDS",null,null,null,null,null,null,"El Salvador",66,"Nurse Practitioner","ViiV0180"]
["Acetone/Other Ketone Bodies; Qual",82009,null,null,null,null,null,null,"Equatorial Guinea",67,"Nutritionist","ViiV0190"]
["Acetone/Other Ketone Bodies; Quan",82010,null,null,null,null,null,null,"Eritrea",68,"Outcomes Resolution","ViiV0760"]
["Acetylcholinesterase (AChE)",82013,null,null,null,null,null,null,"Estonia",69,"Pathology Assistant","ViiV0200"]
["Acid Perfusion Test For Esophagitis",91030,null,null,null,null,null,null,"Ethiopia",70,"Pediatric Neonatology, 0-5 years experience","ViiV0482"]
["Acne Symptom Impact Sc. ASIS","*ACSI",null,null,null,null,null,null,"Falkland Islands (Malvinas)",71,"Pediatric Psychiatrist","ViiV0210"]
["Acne-Specific Quality of Life","*ASQL",null,null,null,null,null,null,"Faroe Islands",72,"Pharmacist","ViiV0220"]
["Acoustic Reflex Testing, Threshold",92568,null,null,null,null,null,null,"Fiji",73,"Pharmacist Manager","ViiV0230"]
["ACR Class Acute Arthritis Gout","*ACRG",null,null,null,null,null,null,"Finland",74,"Pharmacy Director","ViiV0250"]
["ACR Classification of SLE","*ACRL",null,null,null,null,null,null,"France",75,"Pharmacy Technician I","ViiV1060"]
["ACR Core Set Measurements","*ACRC",null,null,null,null,null,null,"French Guiana",76,"Pharmacy Technician II","ViiV1070"]
["ACR Criteria Fibromyalgia","*ACRF",null,null,null,null,null,null,"French Polynesia",77,"Phlebotomist","ViiV1080"]
["ACR Criteria Osteoarthritis of Hip","*ACRH",null,null,null,null,null,null,"French Southern Territories",78,"Physician - Anesthesiology, 0-5 years experience","ViiV0262"]
["ACR Criteria Osteoarthritis of Knee","*ACRK",null,null,null,null,null,null,"Gabon",79,"Physician - Anesthesiology, 5 -15 years experience","ViiV0261"]
["ACR Criteria Rheumatoid Arthritis","*ACRA",null,null,null,null,null,null,"Gambia",80,"Physician - Cardiology - Invasive, 0-5 years experience","ViiV0272"]
["ACR Criteria Systemic Sclerosis","*ACR*",null,null,null,null,null,null,"Georgia",81,"Physician - Cardiology - Invasive, 5-15+ years experience","ViiV0271"]
["ACR Improvement/Response Criteria","*ACRR",null,null,null,null,null,null,"Germany",82,"Physician - Cardiology - Non-Invasive, 0-5 years experience","ViiV0282"]
["Acromegaly Quality of Life ACROQOL","*ACRO",null,null,null,null,null,null,"Ghana",83,"Physician - Cardiology - Non-Invasive, 5-15+ years experience","ViiV0281"]
["ACTG Compliance Questionnaire","*ACTC",null,null,null,null,null,null,"Gibraltar",84,"Physician - Critical Care Unit, 0-5 years experience","ViiV0292"]
["ACTG Toxicity Scale","*ACTG",null,null,null,null,null,null,"Greece",85,"Physician - Critical Care Unit, 5-15+ years experience","ViiV0291"]
["ACTH Stimulation Panel",80400,null,null,null,null,null,null,"Greenland",86,"Physician - Dermatology, 0-5 years experience","ViiV0302"]
["Actigraphy Anal Interp/Report Only","95803-26",null,null,null,null,null,null,"Grenada",87,"Physician - Dermatology, 5-15+ years experience","ViiV0301"]
["Actigraphy Testing (72hrs- 14 days)",95803,null,null,null,null,null,null,"Guadeloupe",88,"Physician - Endocrinology, 0-5 years experience","ViiV0312"]
["Actinotherapy (Ultraviolet Light)",96900,null,null,null,null,null,null,"Guam",89,"Physician - Endocrinology, 5-15+  years experience","ViiV0311"]
["Action Research Arm Test, ARAT","*ATAR",null,null,null,null,null,null,"Guatemala",90,"Physician - Family Practice, 0-5 years experience","ViiV0322"]
["Activated Clotting Time",85347,null,null,null,null,null,null,"Guernsey",91,"Physician - Family Practice, 5-15+  years experience","ViiV0321"]
["Activity Impact Questionnaire (AIQ)","*AIQ*",null,null,null,null,null,null,"Guinea",92,"Physician - Gastroenterology, 0-5 years experience","ViiV0332"]
["Activity Index","*ACTI",null,null,null,null,null,null,"Guinea-Bissau",93,"Physician - Gastroenterology, 5-15+  years experience","ViiV0331"]
["Activity Score Ulcerative Colitis","*REI*",null,null,null,null,null,null,"Guyana",94,"Physician - Geriatrics, 0-5 years experience","ViiV0342"]
["Acute Change Clinical Scoring","*ACCS",null,null,null,null,null,null,"Haiti",95,"Physician - Geriatrics, 5-15+  years experience","ViiV0341"]
["Acute Hepatitis Panel",80074,null,null,null,null,null,null,"Heard Island & McDonald Islands",96,"Physician - Hematology/Oncology, 0-5 years experience","ViiV0352"]
["AD Functional Assess & Change Scale","*ADFA",null,null,null,null,null,null,"Honduras",97,"Physician - Hematology/Oncology, 5-15+  years experience","ViiV0351"]
["ADA Criteria Diabetes","*ADA*",null,null,null,null,null,null,"Hong Kong",98,"Physician - Immunology/Allergy, 0-5 years experience","ViiV0362"]
["ADAS - Cognitive Subscale","*ADSS",null,null,null,null,null,null,"Hungary",99,"Physician - Immunology/Allergy, 5-15+  years experience","ViiV0361"]
["ADCS-ADL, 45-Item","*AADL",null,null,null,null,null,null,"Iceland",100,"Physician - Infectious Disease, 0-5 years experience","ViiV0372"]
["ADCS-CGI of Change","*ADCS",null,null,null,null,null,null,"India",null,"Physician - Infectious Disease, 5-15+  years experience","ViiV0371"]
["ADCS-CGI of Severity","*ADCI",null,null,null,null,null,null,"Indonesia",null,"Physician - Internal Medicine, 0-5 years experience","ViiV0382"]
["Add Eczematous/Inf Skin Debridement",11001,null,null,null,null,null,null,"Iran (Islamic Republic Of)",null,"Physician - Internal Medicine, 5-15+  years experience","ViiV0381"]
["Addiction Behaviors Checklist","*ADBC",null,null,null,null,null,null,"Iraq",null,"Physician - Nephrology, 0-5 years experience","ViiV0392"]
["Addiction Research Center Inventory","*ARCI",null,null,null,null,null,null,"Ireland",null,"Physician - Nephrology, 5-15+  years experience","ViiV0391"]
["Addiction Severity Index (ASI)","*ASI*",null,null,null,null,null,null,"Isle of Man",null,"Physician - Neurology, 0-5 years experience","ViiV0402"]
["Additional Vessel Angiogram",75774,null,null,null,null,null,null,"Israel",null,"Physician - Neurology, 5-15+  years experience","ViiV0401"]
["Adenovirus Antibody",86603,null,null,null,null,null,null,"Italy",null,"Physician - Nuclear Medicine, 0-5 years experience","ViiV0412"]
["ADHD Impact Module","*ADIM",null,null,null,null,null,null,"Jamaica",null,"Physician - Nuclear Medicine, 5-15+  years experience","ViiV0411"]
["ADHD Inv Symp Rating Scale; AISRS","*AISR",null,null,null,null,null,null,"Japan",null,"Physician - Obstetrics/Gynecology, 0-5 years experience","ViiV0422"]
["ADHD Rating Scale IV Interview","*ADHP",null,null,null,null,null,null,"Jersey",null,"Physician - Obstetrics/Gynecology, 5-15+  years experience","ViiV0421"]
["ADHD Scale IV Childhood Symptoms","*ADHC",null,null,null,null,null,null,"Jordan",null,"Physician - Ophthalmology, 0-5 years experience","ViiV0432"]
["ADHD Symptom Checklist-4-Behavior","*ASCB",null,null,null,null,null,null,"Kazakhstan",null,"Physician - Ophthalmology, 5-15+  years experience","ViiV0431"]
["ADHD Symptom Scale TASS","*TASS",null,null,null,null,null,null,"Kenya",null,"Physician - Otolaryngology, 0-5 years experience","ViiV0442"]
["Adiponectin ELISA","EIA011",null,null,null,null,null,null,"Kiribati",null,"Physician - Otolaryngology, 5-15+  years experience","ViiV0441"]
["ADIS-C CSR","*ACSR",null,null,null,null,null,null,"Korea, Dem People's Rep",null,"Physician - Pain Medicine, 0-5 years experience","ViiV0452"]
["Adj. Rating Scale for Withdrawl","*ARSW",null,null,null,null,null,null,"Korea, Republic Of",null,"Physician - Pain Medicine, 5-15+  years experience","ViiV0451"]
["Adolescent Pediatric Pain Tool APPT","*APPT",null,null,null,null,null,null,"Kuwait",null,"Physician - Pathology, 0-5 years experience","ViiV0462"]
["Adrenocorticotropic Hormone (ACTH)",82024,null,null,null,null,null,null,"Kyrgyzstan",null,"Physician - Pathology, 5-15+  years experience","ViiV0461"]
["Adult Somatization Inventory ASI","*ASOM",null,null,null,null,null,null,"Lao Peoples Dem Republic",null,"Physician - Pediatric Cardiology, 0-5 years experience","ViiV0472"]
["Adverse Events Assessment","*ADVE",null,null,null,null,null,null,"Latvia",null,"Physician - Pediatric Cardiology, 5-15+  years experience","ViiV0471"]
["Aerobic Bacterial Culture, Any",87070,null,null,null,null,null,null,"Lebanon",null,"Physician - Pediatric Neonatology, 5-15+  years experience","ViiV0481"]
["Aerobic Bacterial Culture, Blood",87040,null,null,null,null,null,null,"Lesotho",null,"Physician - Pediatrics, 0-5 years experience","ViiV0492"]
["Aerobic Bacterial Culture, Stool",87045,null,null,null,null,null,null,"Liberia",null,"Physician - Pediatrics, 5-15+  years experience","ViiV0491"]
["Aerobic Isolate Definitive ID",87077,null,null,null,null,null,null,"Libya",null,"Physician - Podiatry, 0-5 years experience","ViiV0502"]
["Affective Section of K-SADS-P","*MSAD",null,null,null,null,null,null,"Liechtenstein",null,"Physician - Podiatry, 5-15+  years experience","ViiV0501"]
["Affectivity/Well-Being Elderly scal","*SVE*",null,null,null,null,null,null,"Lithuania",null,"Physician - Pulmonary Medicine, 0-5 years experience","ViiV0512"]
["AFP-L3 fraction isoform","N82107",null,null,null,null,null,null,"Luxembourg",null,"Physician - Pulmonary Medicine, 5-15+  years experience","ViiV0511"]
["Agglutinins, Febrile",86000,null,null,null,null,null,null,"Macau",null,"Physician - Radiation Therapy, 0-5 years experience","ViiV0522"]
["Aggression Questionnaire (AQ)","*AGGQ",null,null,null,null,null,null,"Macedonia",null,"Physician - Radiation Therapy, 5-15+  years experience","ViiV0521"]
["Aging Males Symptoms Scale, AMS","*AMS*",null,null,null,null,null,null,"Madagascar",null,"Physician - Radiology, 0-5 years experience","ViiV0532"]
["Agitation Calmness Evaluation Scale","*ACES",null,null,null,null,null,null,"Malawi",null,"Physician - Radiology, 5-15+  years experience","ViiV0531"]
["Agoraphobia Subscale of Fear Q","*AGOR",null,null,null,null,null,null,"Malaysia",null,"Physician - Rheumatology, 0-5 years experience","ViiV0542"]
["AHCPR Pressure Ulcer Staging","*PUWC",null,null,null,null,null,null,"Maldives",null,"Physician - Rheumatology, 5-15+  years experience","ViiV0541"]
["AIDS Defining Events","*AIDS",null,null,null,null,null,null,"Mali",null,"Physician - Urology, 0-5 years experience","ViiV0552"]
["AIDS Quality Of Life Q QOL","*QL07",null,null,null,null,null,null,"Malta",null,"Physician - Urology, 5-15+  years experience","ViiV0551"]
["Air Conduction Test","*ACT*",null,null,null,null,null,null,"Marshall Islands",null,"Physician Assistant - Medical, 0-5 years experience","ViiV0562"]
["Airflow Resistance Oscillometry",94728,null,null,null,null,null,null,"Martinique",null,"Physician Assistant - Medical, 5-15+  years experience","ViiV0561"]
["AJCC Staging Criteria , Tumor Stag","*AJCC",null,null,null,null,null,null,"Mauritania",null,"Polysomnographic Technician","ViiV1090"]
["Alabama Parenting Questionnaire","*APQ*",null,null,null,null,null,null,"Mauritius",null,"Project Research Assistant","ViiV0620"]
["Alberta Infantile Motor Scale, AIMS","*ABMS",null,null,null,null,null,null,"Mayotte",null,"Psychiatrist","ViiV0570"]
["Albumin; Serum",82040,null,null,null,null,null,null,"Mexico",null,"Psychologist","ViiV0580"]
["Albumin; Urine, Microalbumin, Quant",82043,null,null,null,null,null,null,"Micronesia",null,"Quality Assurance Auditor","ViiV0630"]
["Albumin; Urine, Microalbumin, Semi",82044,null,null,null,null,null,null,"Moldova",null,"Radiation Physicist","ViiV0590"]
["Alcohol (Ethanol); Breath",82075,null,null,null,null,null,null,"Monaco",null,"Radiologic Technologist","ViiV1100"]
["Alcohol Dependence Scale (ADS)","*ADS*",null,null,null,null,null,null,"Mongolia",null,"Registered Respiratory Therapist","ViiV1110"]
["Alcohol Qty/frequency Scale (QFS)","*QFS*",null,null,null,null,null,null,"Montenegro",null,"Regulatory Affairs Director","ViiV0660"]
["Alcohol Urge Questionaire, AUQ","*AUQ*",null,null,null,null,null,null,"Montserrat",null,"Regulatory Affairs Manager","ViiV0670"]
["Alcohols (Except Breath)",80320,null,null,null,null,null,null,"Morocco",null,"Renal Dialysis Technician","ViiV1120"]
["Aldolase",82085,null,null,null,null,null,null,"Mozambique",null,"Research Assistant","ViiV0650"]
["Aldosterone",82088,null,null,null,null,null,null,"Myanmar",null,"Safety Administrator Monitor","ViiV0680"]
["Aldosterone, Urine","82088-UR",null,null,null,null,null,null,"Namibia",null,"Safety Specialist Nurse","ViiV0690"]
["Aldrete Score","*ALDR",null,null,null,null,null,null,"Nauru",null,"Senior Clinical Research Associate","ViiV0710"]
["Alertness Scale, 5 Point Scale","*ALER",null,null,null,null,null,null,"Nepal",null,"Senior Internal Auditor","ViiV0700"]
["Alkaline Phosphatase (ALP)",84075,null,null,null,null,null,null,"Netherlands",null,"Senior Medical Writer","ViiV0140"]
["Alkaline Phosphatase Isoenzymes",84080,null,null,null,null,null,null,"Netherlands Antilles",null,"Senior Research Assistant","ViiV0640"]
["Alkaloids, Not Otherwise Specified",80323,null,null,null,null,null,null,"New Caledonia",null,"Surgeon, Orthopaedic 0-5 years experience","ViiV1152"]
["Allen and Brown Modified Criteria","*ALBR",null,null,null,null,null,null,"New Zealand",null,"Surgeon, Orthopaedic 5-15+  years experience","ViiV1151"]
["Allen's Test (Integrity arteries)","*ALT*",null,null,null,null,null,null,"Nicaragua",null,"Surgeon, Transplant 0-5 years experience","ViiV1172"]
["Allergen Spec. IgE, Qual., Dipstick",86005,null,null,null,null,null,null,"Niger",null,"Surgeon, Transplant 5-15+  years experience","ViiV1171"]
["Allergen Specific IgE",86003,null,null,null,null,null,null,"Nigeria",null,"Surgeon, Unspecified 0-5 years experience","ViiV1142"]
["Allergen Specific IgG",86001,null,null,null,null,null,null,"Niue",null,"Surgeon, Unspecified 5-15+  years experience","ViiV1141"]
["Allergic Rhinitis/Asthma Class ARIA","*ARIA",null,null,null,null,null,null,"Norfolk Island",null,"Surgeon, Vascular 0-5 years experience","ViiV1162"]
["Allergy Testing w Drugs/Biologicals",95018,null,null,null,null,null,null,"Northern Mariana Islands",null,"Surgeon, Vascular 5-15+  years experience","ViiV1161"]
["Allodynia Symptom Checklist","*ALSC",null,null,null,null,null,null,"Norway",null,"Ultrasound Technologist","ViiV1130"]
["Alopecia Severity Tool Score","*SALT",null,null,null,null,null,null,"Oman"]
["Alpha 1 Protease Inhibitor Sputum","*APIS",null,null,null,null,null,null,"Pakistan"]
["Alpha-1-Antitrypsin; Total",82103,null,null,null,null,null,null,"Palau"]
["Alpha-2 Antiplasmin",85410,null,null,null,null,null,null,"Palestinian Territory"]
["Alpha-2 Integrin Assay","*A2IA",null,null,null,null,null,null,"Panama"]
["Alpha-fetoprotein, Serum",82105,null,null,null,null,null,null,"Papua New Guinea"]
["ALS Functional Rating Scale","*ALSF",null,null,null,null,null,null,"Paraguay"]
["ALT",84460,null,null,null,null,null,null,"Peru"]
["Aluminum",82108,null,null,null,null,null,null,"Philippines"]
["Alzheimer's Disease Asmt Scale","*ADAS",null,null,null,null,null,null,"Pitcairn"]
["Alzheimer's QoL, Self & Caregiver","*QL21",null,null,null,null,null,null,"Poland"]
["AMB 72hr Glucose Interp/Report Only",95251,null,null,null,null,null,null,"Portugal"]
["AMB 72hrs Glucose Proc Only",95250,null,null,null,null,null,null,"Puerto Rico"]
["Ambulation Index","*AMBI",null,null,null,null,null,null,"Qatar"]
["AMDP-5 Psychiatry Scale","*AMDP",null,null,null,null,null,null,"Reunion"]
["American Pain Society Pain Measure","*APS*",null,null,null,null,null,null,"Romania"]
["Amines, Vaginal Fluid, Qualitative",82120,null,null,null,null,null,null,"Russian Federation"]
["Amino Acid, Quantitative",82131,null,null,null,null,null,null,"Rwanda"]
["Amino Acid, Single, Qualitative",82127,null,null,null,null,null,null,"S Georgia & The S Sandwich Isl"]
["Ammonia",82140,null,null,null,null,null,null,"Saint Barthelemy"]
["Amphetamine Cessation Symptom Ass.","*ACSA",null,null,null,null,null,null,"Saint Helena, Ascen&T da Cunha"]
["Amphetamines; 1 or 2",80324,null,null,null,null,null,null,"Saint Kitts And Nevis"]
["Amsler Grid Testing","NC129",null,null,null,null,null,null,"Saint Lucia"]
["Amylase",82150,null,null,null,null,null,null,"Saint Martin (French part)"]
["Amylase; Pancreatic Fluid","82150-PN",null,null,null,null,null,null,"Saint Pierre and Miquelon"]
["Anabolic Steroids; 1 or 2",80327,null,null,null,null,null,null,"Saint Vincent & The Grenadines"]
["Anaerobic Bacterial Culture, Any",87075,null,null,null,null,null,null,"Samoa"]
["Anaerobic Isolate Definitive ID",87076,null,null,null,null,null,null,"San Marino"]
["Anal Wink Reflex","*AWR*",null,null,null,null,null,null,"Sao Tome and Principe"]
["Anal/Urethral Sphincter EMG Studies",51784,null,null,null,null,null,null,"Saudi Arabia"]
["Analgesic Intake Assessment","*AIA*",null,null,null,null,null,null,"Senegal"]
["Analgesic Score","*ANAS",null,null,null,null,null,null,"Serbia"]
["Analgesics; Non-Opioid; 1 or 2",80329,null,null,null,null,null,null,"Seychelles"]
["Analysis Implanted Neurostimulator","N95970",null,null,null,null,null,null,"Sierra Leone"]
["Androgen Deficiency Aging Male Q","*ADAM",null,null,null,null,null,null,"Singapore"]
["Androgenetic Alopecia QoL, WAA-QOL","*WAAQ",null,null,null,null,null,null,"Sint Maarten (Dutch part)"]
["Androgenic Skin Eval, Hirsutism","*HIR*",null,null,null,null,null,null,"Slovakia"]
["Androgenic Skin Evaluations","*ACN*",null,null,null,null,null,null,"Slovenia"]
["Androstanediol Glucuronide",82154,null,null,null,null,null,null,"Solomon Islands"]
["Androstenedione",82157,null,null,null,null,null,null,"Somalia"]
["Anesthesia for TUR of Bladder Tumor","00912",null,null,null,null,null,null,"South Africa"]
["Anesthesia Risk Scale","*ANRS",null,null,null,null,null,null,"South Sudan"]
["Anesthetist Satisfaction Score","*ASSC",null,null,null,null,null,null,"Spain"]
["ANF/ANP U. Chem.","UC004",null,null,null,null,null,null,"Sri Lanka"]
["Anger Attack Questionnaire","*AAQ*",null,null,null,null,null,null,"Sudan"]
["Angina Pectoris Quality of Life","*QL91",null,null,null,null,null,null,"Suriname"]
["Angina Severity Score","*ANGS",null,null,null,null,null,null,"Svalbard and Jan Mayen"]
["Angiopoietin ELISA","EIA012",null,null,null,null,null,null,"Swaziland"]
["Angiotensin I - Converting Enzyme",82164,null,null,null,null,null,null,"Sweden"]
["Angiotensin II",82163,null,null,null,null,null,null,"Switzerland"]
["Animal Continuous Performance Test","*ACP*",null,null,null,null,null,null,"Syria"]
["Ankle X-Ray",73600,null,null,null,null,null,null,"Taiwan"]
["Ankylosing Spondylitis QoL, ASQOL","*ASQO",null,null,null,null,null,null,"Tajikistan"]
["Ann Arbor Hodgkin's/Non-Hodgkin's","*AAC*",null,null,null,null,null,null,"Tanzania"]
["Anorectal Continence Assessment","*ACA*",null,null,null,null,null,null,"Thailand"]
["Anorectal Manometry",91122,null,null,null,null,null,null,"Timor-Leste"]
["Anorectal Wall/Rectal Biopsy",45100,null,null,null,null,null,null,"Togo"]
["Anterior Segment Imaging",92286,null,null,null,null,null,null,"Tokelau"]
["Anterior Segment OCT",92132,null,null,null,null,null,null,"Tonga"]
["Anthropometry, Body Measurements","*MEAS",null,null,null,null,null,null,"Trinidad and Tobago"]
["Anti Epileptic Drug, (AED)","80299-A4",null,null,null,null,null,null,"Tunisia"]
["Antibody HLA Class I & II Antigens",86828,null,null,null,null,null,null,"Turkey"]
["Antibody to Specific Drug","NC045",null,null,null,null,null,null,"Turkmenistan"]
["Antibody; Rickettsia","N86757",null,null,null,null,null,null,"Turks And Caicos Islands"]
["Anticholinergic Side Effects Q SAAE","*ASED",null,null,null,null,null,null,"Tuvalu"]
["Anti-Cyclic Citrullinate Peptide",86200,null,null,null,null,null,null,"U.S. Minor Outlying Islands"]
["Antidepressants Tricyclic Cl 1 or 2",80335,null,null,null,null,null,null,"U.S. Virgin Islands"]
["Anti-Gad Antibodies RIA","RIA003",null,null,null,null,null,null,"Uganda"]
["Antimuscuarinic Effects - VAS","*AME*",null,null,null,null,null,null,"Ukraine"]
["Antinuclear Antibodies (ANA)",86038,null,null,null,null,null,null,"United Arab Emirates"]
["Anti-phosphatidylserine antibody",86148,null,null,null,null,null,null,"United Kingdom"]
["Antipsychotics, NOS; 1-3",80342,null,null,null,null,null,null,"United States"]
["Antistreptolysin 0; Titer",86060,null,null,null,null,null,null,"Uruguay"]
["Antithrombin III Activity",85300,null,null,null,null,null,null,"Uzbekistan"]
["Antithrombin III Antigen Assay",85301,null,null,null,null,null,null,"Vanuatu"]
["Antithrombotic Self-Mgmt Scale","*ASMS",null,null,null,null,null,null,"Vatican City State"]
["Anxiety & Personality Self Assessm","*APSA",null,null,null,null,null,null,"Venezuela"]
["Anxiety Disorders Interview Schedul","*ADIS",null,null,null,null,null,null,"Viet Nam"]
["Anxiolysis Assessment Scale","*AAS*",null,null,null,null,null,null,"Wallis and Futuna Islands"]
["APACHE II Scale","*APAS",null,null,null,null,null,null,"Western Sahara"]
["Apache III Sepsis Score","*APSS",null,null,null,null,null,null,"Yemen"]
["Apathy Evaluation Scale Short Vers","*AESS",null,null,null,null,null,null,"Yugoslavia"]
["Apathy Evaluation Scale, AES","*AES*",null,null,null,null,null,null,"Zaire"]
["APC Resistance Assay",85307,null,null,null,null,null,null,"Zambia"]
["Apgar Score","*APGA",null,null,null,null,null,null,"Zimbabwe"]
["Apnea - Hypopnea Index (AHI)","*AHI*"]
["Apoptotic Index","*APIN"]
["ARA Criteria Rheumatoid Arthritis","*ARAC"]
["ARA Rheumatoid Arthritis Func Class","*ARA*"]
["ARCI - MBG Scale","*AMBS"]
["ARCI 49 Psychometric Test","*ARC*"]
["Arcq, Ossification Scale","*ARCQ"]
["AREDS Clinical Lens Grading","*ARED"]
["Arginine Stimulation Test","NC098"]
["Arizona Sexual Experience Scale","*ASEX"]
["Arrhythmia Induction By Elec Pacing",93618]
["Arterial Cath by Cutdown for Infus.",36640]
["Arterial Catheterization",36215]
["Arterial Catheterization (Sampling)",36620]
["Arterial Puncture",36600]
["Arthritis Impact Measurement Sc QOL","*QL53"]
["ASA Anesthesia Classification","*ASA*"]
["ASA Physical Status Class System","*ASAP"]
["ASAS Improvement/Response Criteria","*ASAS"]
["ASCOD Classification, Stroke","*ASCO"]
["Ascorbic Acid (Vitamin C)",82180]
["Ashworth Spasticity Scale","*ASHW"]
["ASIA Classification Scale","*ASIA"]
["Asis","*ASIS"]
["ASK-12 Survey","*ASK*"]
["Aspergillus Antibody",86606]
["Aspergillus Antigen Detection",87305]
["ASRS v 1.1-Evening","*ASRS"]
["Assessment Affective Range Parent","*AAR*"]
["Assessment of Target Nail Fungal","NC131"]
["AST",84450]
["AST and ALT","NC106"]
["Asthma Control Q. Interview","*ACQI"]
["Asthma Control Quest. - 5; ACQ-5","*ACQ5"]
["Asthma Control Questionnaire","*ACQ*"]
["Asthma Severity Classification","*ASC*"]
["Asthma Sleep Disturbance Score","*ASD*"]
["Asthma Specific QoL","*QL84"]
["Asthma Symptom Checklist","*ASTH"]
["Asthma Symptom Severity Measure","*ASSM"]
["Asynchrony Index, AI","*ASYN"]
["Athens Insomnia Scale; AIS","*ATIS"]
["Atomic Absorb Spectroscopy, Each",82190]
["Atopic Dermatitis Characterist Sc.","*ADC*"]
["Atrial Fibrillation Symptom Checkl","*AFSC"]
["ATS Disease Criteria (Respiratory)","*ATS*"]
["Attention Test KT, (AKT)","*AKT*"]
["Atypical Depression Diagnostic Scal","*ADDS"]
["AUA-SI","*AUA*"]
["Audiometry Threshold Eval & Speech",92557]
["AUDIT Interview","*AUDI"]
["AUDIT Self-Reported","*AUD*"]
["AUDIT-C, Alcohol consumption Q","*AACQ"]
["Auditory Evoked Potentials",92585]
["Auditory Verbal Learning Test","*ACPT"]
["AUSCAN Osteoarthritis Hand Index","*AUSC"]
["Autism Diagnostic Interview-Revised","*ADIR"]
["Autism Diagnostic Tool, ADOS-2","*ADOS"]
["Auto Neuropsychological Asmt Metric","*ANAM"]
["Autoimmune RA MBDA Biomarker Panel",81490]
["Autologous Blood Coll, Oper Salvage",86891]
["Autologous Blood Coll, Predeposited",86890]
["Automated Differential WBC Count",85004]
["Average Daily Wear Time","*ADW*"]
["Average Pain Over the Last 24 Hours","*APOL"]
["AX-CPT Tasks, Control Interf Degrad","*AXCT"]
["B & Behrman Grading Signs/Symptoms","*BAB*"]
["B & L Mood And Alertness Scale","*BOLA"]
["B Cells Total Count",86355]
["Bacteriolog Study Pathologic Agents","D0410"]
["Baker Grade Classification","*BAKE"]
["Balance Beam Test","*BBT*"]
["Ballard Score","*BALL"]
["Banff Crit Renal Allograft Reject","*BANF"]
["BAPM Neonatal Intensive Care Class","*BAPM"]
["Barbiturates",80345]
["Barcelona Clinic Liver Cancer","*BCLC"]
["Barkley Behavior and Adverse Events","*BBEQ"]
["Barnes Akathisia Rating Scale","*ADSB"]
["Baron Score","*BARO"]
["Barr Bodies Sex Chromatin ID",88130]
["Barratt Impulsive Scale","*BIS*"]
["Barratt Measure of Social Status","*BSMS"]
["Barthel Index","*BART"]
["BASDAI","*BASD"]
["Baseline Dyspnea Index","*BDI*"]
["BASFI","*BASF"]
["Basic Metabolic Panel",80048]
["Basic Metabolic Panel w/ Ionized Ca",80047]
["BASMI","*BASM"]
["Bath AS Patient Global Score","*BASG"]
["Bayley Scales of Infant Development","*BSID"]
["BCR/ABL1",81206]
["BDI Self-Reported","*BDIS"]
["BDI-Fast Screen","*BDIF"]
["BDI-IA, Self-Reported","*BDII"]
["BDI-II, Self-Reported","*BDI2"]
["Bechets Disease Current Activity","*BDCA"]
["Bechets Disease Quality of Life","*BQOL"]
["Bechets Syndrome Activity Score","*BSAS"]
["Bech-Rafaelsen Melancholia Scale","*BRMS"]
["Beck Anxiety Inventory, Self Report","*BAI*"]
["Beck Anxiety Inventory-Interview","*BAII"]
["Beck Scale for Suicide Ideation","*BSSI"]
["Bedpartners Q for Sleep Quality","*BEDP"]
["Beery Visual Motor Integration Test","*BVMI"]
["Before School Functioning Scale WHS","*WHS*"]
["Behav Rating Scale - Geriatric Pts","*BGP*"]
["BEHAVE-AD","*BPAD"]
["Behavior Ass for Children- Parent","*BSCP"]
["Behavior Ass for Children- Self","*BSCS"]
["Behavior Problem Checklist, QOL","*QL24"]
["Behavioral Grade Measure","*BGM*"]
["Behavioral Inhibition Activation","*BIAS"]
["Behavioral Urge Score, BUS","*BUSC"]
["Behcet\u0092s Disease Criteria, ISG","*BISG"]
["Beliefs About Medicines Quest (BMQ)","*BMQ*"]
["Benton Line Orientation Test","*BLOT"]
["Benton Visual Retention Test","*BVRT"]
["Benzodiazepines; 1-12",80346]
["Berlin Sleep Questionaire","*BERL"]
["Beta-2 Microglobulin, Any Source",82232]
["BILAG Index","*BILA"]
["Bilat Ocular Photoscreening",99174]
["Bilat US of Extracranial Arteries",93880]
["Bilateral Breast MRI",77059]
["Bilateral Extremity Angiography",75716]
["Bilateral Extremity Venography","N75822"]
["Bilateral Hips X-Ray; 2 Views",73521]
["Bilateral Mammography",77066]
["Bilateral Rib X-Ray",71110]
["Bile Acids; Total",82239]
["Biliary Cirrhosis QoL, PBC-40","*PBC4"]
["Bilirubin; Direct",82248]
["Bilirubin; Total",82247]
["Bilirubin; Total And/Or Direct","NC122"]
["Billewicz Scale Hypothyroid Symptom","*BILL"]
["Binge Eating Scale (BES)","*BES*"]
["Bioelectrical Impedance Analysis","*BIA*"]
["Biopsy Neck or Thorax",21550]
["Biopsy of Breast",19100]
["Biopsy of Nerve",64795]
["Biopsy of Pancreas, Open",48100]
["Biopsy of Testis",54500]
["Biopsy Sample Handling Complex","NC171"]
["Biopsy Sample Handling Simple","NC065"]
["Biopsy, Intranasal",30100]
["Bishop Score","*BISH"]
["Bispectral Index","*BISI"]
["Bladder Capacity by Ultrasound",51798]
["Bladder Function Assessment Q","*BFAQ"]
["Bladder Instill. Anticarcinogenic",51720]
["Bladder Outlet Obstruction Score","*AGN*"]
["Bleeding Pattern Questionnaire","*BPQ*"]
["Bleeding Time",85002]
["Blepharospasm Clinical Freq Scale","*BCRF"]
["Blepharospasm Clinical Severity Sc","*BCRS"]
["Blessed Info-Memory-Concentration","*BIMC"]
["Block Design Test","*BDT*"]
["Blood Gases",82803]
["Blood Gases, O2 Sat Only",82810]
["Blood Smear w/ Micro w/ Man Diff",85007]
["Blood Smear w/ Micro w/o Different.",85008]
["Blood Typing, Ag Screen - Donor",86902]
["Blood Typing, Ag Screen - Pt Serum",86904]
["Blood/Azygos/Skin Flow Study","*BFS*"]
["Blood/Blood Components Transfusion",36430]
["Blood/Urine Collect, Ship & Prep","NC016"]
["Body Composition DEXA Scan","*0028"]
["Body Fat Measurement","*BFM*"]
["Body Fluid Cell Count",89050]
["Body Fluid Cell Count, w/ Differ.",89051]
["Body Map Drawing","*BMD*"]
["Body Mass Index (BMI)","*BMI*"]
["Body Surface Area","*BOSA"]
["Body Sway Measurement, Swaymeter","*SWAY"]
["Bone Age Studies",77072]
["Bone Age Study, Interpretation Only","77072-26"]
["Bone Age Study, w/o Interpretation","77072-52"]
["Bone Density, Dual Photon Absorpt.",78351]
["Bone Density, Single Photon Absorpt",78350]
["Bone Marrow Biopsy - Needle/Trocar",38221]
["Bone Marrow Harvesting",38230]
["Bone Marrow Smear Interpretation",85097]
["Bone Marrow/Blood Cells Tissue Cult",88237]
["Bone Marrow; Aspiration Only",38220]
["Bone Mineral Density CT Scan, Axial",77078]
["Bone Pain Score","*BPS*"]
["Bone X-Ray, Complete Survey",77075]
["Bordetella Pertussis Antibody",86615]
["Borg CR10 Scale","*CR10"]
["Borg Perceived Exertion Index Scale","*BPEI"]
["Borg Scale, Dyspnea Scale","*DYSP"]
["Borg's New Scale for Chest Pain","*BORG"]
["Bowel Disease Severity Index FBDSI","*FBDS"]
["Bowel Function Assessment","*BFA*"]
["Box and Blocks Test","*BOB*"]
["BPH Impact Index; BII","*BII*"]
["BPH Pt Impact Measure (BPH PIM)","*BPHP"]
["BPH Spec Interference Activities","*BSAI"]
["BPH-HRQoL","*BPHQ"]
["BPH-PSTQ","*BPPS"]
["BPRS General Symptom Items Only","*BPR9"]
["BPRS Positive Subscale","*BPR4"]
["Braden Scale","*BRAD"]
["Bradykinin, Any Source",82286]
["BRAF Gene Analysis/Genotyping",81210]
["Brain Biopsy Burr Hole(s)/Trephine",61140]
["Brain Imag w/ Vascular Flow",78606]
["Brain Imag, Tomographic (SPECT)",78607]
["Brain MRI Interpretation Only","70551-26"]
["Brain MRI With Contrast",70552]
["Brain MRI Without & With Contrast",70553]
["Brain MRI Without Contrast",70551]
["Brain MRI, MRI Only","70551-52"]
["Brain PET Scan: Metabolic Eval",78608]
["Brain PET Scan: Perfusion Eval",78609]
["Brasfield Scores","*BRFD"]
["Braunwald Class of Unstable Angina","*BRAU"]
["BRCA; 185delAG, 5385insC, 6174delT",81212]
["BRCA1/BRCA2 Gene Analysis; Full Seq",81211]
["BRCA1/BRCA2; Uncommon Dupl./Del.",81213]
["Breast Biopsy w. Imaging 1st Lesion",19081]
["Breast Biopsy w. Imaging Add Lesion",19082]
["Breast Cancer Questionnaire-Gail","*GAIL"]
["Breast Examination","NC127"]
["Breast Ultrasound Complete",76641]
["Breast Ultrasound Limited",76642]
["BREAST-Q","*BREA"]
["Breath Hydrogen/Methane Test",91065]
["Breathing/Coughing Scale","*BCS*"]
["Breneman's Scale, Lesions Severity","*BRE*"]
["Brief Agitation Rating Scale","*ARS*"]
["Brief Asmt of Cog in Schizophrenia","*BACS"]
["Brief Ataxia Rating Scale, BARS","*BARS"]
["Brief Cardiovascular Exam",99228]
["Brief Carroll Depression Scale","*BCDS"]
["Brief COPE","*COPB"]
["Brief Illness Perception Q","*BIPQ"]
["Brief Living Arrangements History","*BLAH"]
["Brief Neurological Exam",99224]
["Brief Orientation Mem Concentration","*BOMC"]
["Brief Pain Inventory","*BPI*"]
["Brief Pain Inventory Short Form","*BPIS"]
["Brief Psychiatric Rating Scale","*BPRS"]
["Brief Quality of Life Bipolar D.","*QOLB"]
["Brief Scale for Anxiety","*BSA*"]
["Brief Social Phobia Scale","*BSPS"]
["Brief Symptom Inventory","*BSI*"]
["Brief Visit (Infants-17 yrs)","99211-PD"]
["Brief Visit w/ Vitals",99211]
["BRIEF, Self-Reported","*BRIE"]
["BRIEF-Informant","*BRII"]
["BRIEF-Parent","*BRIP"]
["BRIEF-Teacher","*BRIT"]
["Bristol Activities of Living Scale","*BADL"]
["Bristol Female LUTS Questionnaire","*LUTS"]
["Bristol Scale, (Feces)","*BRIS"]
["Bronchoscopy w Balloon Occlusion",31647]
["Bronchoscopy w/ BAL",31624]
["Bronchoscopy w/ Bronchial Biopsy",31625]
["Bronchoscopy w/ Lung Biopsy",31628]
["Bronchospasm Provocation Eval",94070]
["Brooke Functional Rating Scale","*BUEF"]
["Brown ADD Scale : Parent","*BADD"]
["Brown ADD Scale for Children","*BRWN"]
["Brown Adult ADD Scale","*BRWA"]
["Brown-Peterson Test","*BPT*"]
["Budapest Clinical Criteria","*BUDA"]
["Bulbar Scale, Functional Scale","*BUS*"]
["Bulimia Investig Test Edinburgh","*BITE"]
["Buschke Selective Remind Task Scale","*BSRT"]
["C3 Esterase","86160-A1"]
["C4 Esterase","86160-A2"]
["CA 125","N86304"]
["CA 15-3",86300]
["CA 19-9",86301]
["CA Learning Test - Children Version","*CLT*"]
["CAADID","*CAAD"]
["CAARS - Investigator Rated","*CINV"]
["CAARS - Observer Rated","*COBS"]
["CAARS - Observer Screening Version","*COIE"]
["CAARS - Self-Reported","*CSEL"]
["CAARS-INV: SV","*CISV"]
["CAARS-S:SV","*CSSV"]
["Caffeine, Blood","80299-A3"]
["Caffeine, Urine","80299-A1"]
["Cairo-Bishop Score TLS","*CBTL"]
["Calcifediol (25-OH Vitamin D-3)",82306]
["Calcitonin",82308]
["Calcium Absorption Test","NC095"]
["Calcium Intake Checklist","*CIC*"]
["Calcium; Ionized",82330]
["Calcium; Total",82310]
["Calcium; Urine Quantitative",82340]
["Calculus; Infrared Spectroscopy",82365]
["Calculus; X-ray Diffraction",82370]
["Calendar Of Premenstrual Experience","*COPE"]
["California Verbal Learning Test","*CVLT"]
["Caloric Vestibular Test",92533]
["Calprotectin, Fecal",83993]
["Cambridge Cognitive Schedule CAMCOG","*CAMC"]
["CAMPHOR, Pulmonary Hypertension Q.","*CAMP"]
["Canadian Neurological Scale","*CNSS"]
["Cancellation Task Test","*CCTT"]
["Cancer Risk Factor Questionnaire","*CRFQ"]
["Cancer/Leukemia Tumor Response Crit","*CLAG"]
["Candida Antibody",86628]
["Candida Skin Test",86485]
["Cannon-Spoor Premorbid Adjustment","*PMAS"]
["CANTAB Full Battery","*CANT"]
["Cantril's Ladder of Life","*CLL*"]
["Capacity Classification Arthritis","*FCC*"]
["Capillary Blood Specimen",36416]
["Capsule Endoscopy",91110]
["CAP-Sym 12","*CAP*"]
["Car Following Test","*CFT*"]
["Carbohydrate Deficient Transferrin",82373]
["Carbon Dioxide by Infrared Analyzer",94770]
["Carbon Dioxide, Bicarbonate",82374]
["Carbon Monoxide (CO); Quantitative",82375]
["Carbon Monoxide Expired Gas U. Chem","UC003"]
["Carcinoembryonic Antigen (CEA)",82378]
["Cardiac Event Monitor, Per 30 Days",93268]
["Cardiac Index","*CARI"]
["Cardiac Injury Panel","NC032"]
["Cardiac MRI for Flow Velocity Map",75565]
["Cardiac MRI For Morphol & Function",75557]
["Cardiac MRI w/ Flow/Veloc & Stress","NC133"]
["Cardiac MRI w/ Flow/Velocity Quant","NC132"]
["Cardiac MRI w/ Stress Imaging",75559]
["Cardiac MRI, Inter & Reading Only","75557-26"]
["Cardio Stress Test Interp/Report",93018]
["Cardiolipin Antibody, Each Ig Class",86147]
["Cardiovagal Innervation Testing",95921]
["Cardiovasc Function w Tilt study",93660]
["Cardiovascular Stress Test",93015]
["Care Giver Survey","*CGS*"]
["Caregiver Ass Disease Activity","*CADA"]
["Caregiver Asthma-Specific QOL","*CASQ"]
["Caregiver Burden Scale (CBS), QOL","*QL99"]
["Caregiver Characteristics & Changes","*CCAC"]
["Caregiver Dependency Scale","*CRDP"]
["Caregiver Rated CGIC","*CCGI"]
["Caregiver Strain Quest; CGSQ","*CGSQ"]
["Caregivers of Children w Diab Quest","*WECA"]
["Caregiving Activities Time Survey","*CATS"]
["Caregiving Hassles Scale","*CHS*"]
["Carotene",82380]
["Carroll Depression Scale - Revised","*CDSR"]
["Catecholamines; Fractionated",82384]
["Catecholamines; Total Blood",82383]
["Catecholamines; Total Urine",82382]
["Categorical Scale, Dry Mouth Scale","*CSDM"]
["Category (Semantic) Naming Test","*CNT*"]
["Category Retrieval Test","*CATR"]
["CATELL Personality Test","*CATE"]
["Catquest-9SF","*CAT9"]
["Cattell Anxiety Scale","*CATT"]
["CCS Class (Angina Pectoris class)","*CCSC"]
["CCS Classification","*CCC*"]
["CD4 and CD8 Count, Inc. Ratio",86360]
["CDASI","*CDAS"]
["CDC HIV Classification","*CDCH"]
["CDSS Interview","*CDRS"]
["Cell Cycle/DNA Flow Cytometry",88182]
["Cell Enumeration in Fluid interp",86153]
["Cell Enumeration in Fluid proc only",86152]
["Cellular Function Assay",86352]
["Central C-V Hemodynamics",78414]
["Central Venous Catheter Placement",36556]
["Central Venous Infusion Pump",36563]
["Ceruloplasmin",82390]
["Cervical Biopsy",57500]
["Cervical Examination",99215]
["Cervical Mucus Penetration Test",89330]
["Cervical Spine CT Scan w/ Contrast",72126]
["Cervical Spine X-Ray",72040]
["Cervical/Vaginal Definitive Hormone",88155]
["CES-D","*CESD"]
["CGI - Motor Symptomatology","*CGMS"]
["CGI Depression and Panic","*CGID"]
["CGI Global Severity Side Effects","*CGSE"]
["CGI of Dyskinesia Scale, GOETZ","*DYSK"]
["CGI of Parkinsonism","*CLNA"]
["CGI of Severity of Suicidality - PI","*SSPI"]
["CGI Severity of Suicidality, CGI-SS","*CGSS"]
["CGI Severity of Suidality -Psych","*SSBP"]
["CGI- Tics & Neurological Symptoms","*CGTN"]
["CGI-ADHD-Improvement","*CGAH"]
["CGI-ADHD-Severity","*CGIA"]
["CGI-ASHD-C","*CGAC"]
["CGI-Bipolar Improvement","*CGBI"]
["CGIC - Tolerability","*CGCT"]
["CHADS2 Scoring System","*CHA2"]
["Chalfont Seizure Severity Scale","*CSSS"]
["CHAMPS-18","*CHAM"]
["Changes in Sexual Funct. Short Form","*QCSF"]
["Changes Sexual Functioning Q CSFQ","*CSFI"]
["CHAQ Subsection - Disability Index","*CHAI"]
["CHAQ Subsection - Discomfort","*CHAD"]
["CHAQ Subsection - VAS Of Well-Being","*CHAO"]
["Charlson Comorbidity Index (CCI)","*CCI*"]
["CHD Risk Ass, C Heart Disease Risk","*CHDR"]
["Checklist Manic/Depressive Episode","*CCMD"]
["Chemiluminescent Assay",82397]
["Chemo Admin Infusion 1-8 hrs","NC126"]
["Chemo Admin, IV Infusion < 1 Hour",96413]
["Chemo Admin, IV Infusion Each + Hr",96415]
["Chemo Admin, IV Infusion Pump, >8hr",96416]
["Chemo Convenience/Satisfaction Q","*CCSQ"]
["Chemodenervation Extremity <5 Musc",64642]
["Chemodenervation Extremity 5+ Musc",64644]
["Chemodenervation Facial Nerve",64612]
["Chemodenervation of Neck Muscle",64616]
["Chemodenervation of the Bladder",52287]
["Chemotaxis Assay",86155]
["Chest Aortography by Serialography",75605]
["Chest Aortography w/o Serialography",75600]
["Chest CT Angio w/wo Contrast",71275]
["Chest CT Scan Interpretation Only","71250-26"]
["Chest CT Scan w/ Contrast",71260]
["Chest CT Scan w/o Contrast",71250]
["Chest CT Scan, CT Only","71250-52"]
["Chest CT Without & With Contrast",71270]
["Chest Expansion Test (Rheumatology)","*CEXP"]
["Chest MRI Interpretation Only","71550-26"]
["Chest MRI w/o & w/ Contrast","N71552"]
["Chest MRI w/o Contrast",71550]
["Chest MRI, MRI Only","71550-52"]
["Chest Ultrasound",76604]
["Chest Wall & Skeletal Rigidity Scal","*CSRS"]
["Chest Xray",71020]
["Chest X-ray 4 views",71030]
["Chest X-Ray Interpretation Only","71020-26"]
["Chest X-Ray w/o Interp, X-Ray Only","71020-52"]
["Child Arthri Assess Quest - Parent","*CHAQ"]
["Child Behavior Checklist (CBCL)","*CBCL"]
["Child Health Question. Parent 50","*CHQP"]
["Child Health Questionnaire; CHQ","*CHQ*"]
["Child Health Utility 9D","*CHU9"]
["Child Symptom Inventory","*CSI*"]
["Child. Depress. Rating Scale, Rev.","*CDRR"]
["Childhood Anxiety Related Disorder","*SCAR"]
["Childhood Trauma Questionnaire","*CTQ*"]
["Child-Pugh Classification","*CPC*"]
["Children Aggression Scale - Parent","*CASP"]
["Children Obsessive-Compulsive Scale","*CYBS"]
["Children Psychiatric Rating Scale","*CPRS"]
["Children\u0092s Social Behavior Quest","*CSBQ"]
["Children's Commun Checklist - PV","*CCCP"]
["Children's Commun Checklist - TV","*CCCT"]
["Children's Depression Inventory CDI","*CDI*"]
["Children's DLQI","*QL78"]
["Children's Global Assessment Scale","*CHGA"]
["Children's Sleep Habits Quest (CSHQ","*CSHQ"]
["Children's Somatization Invntry CSI","*CHSI"]
["CHIP-CE (Parent-Rated)","*CHIP"]
["Chlamydia Antibody, IgG",86631]
["Chlamydia Antibody, IgM",86632]
["Chlamydia Culture",87110]
["Chlamydia Trachomatis, Amplified",87491]
["Chloride (CL); Blood",82435]
["Chloride (CL); Other Source",82438]
["Chloride (CL); Urine",82436]
["Cholangiogram; New Access",47532]
["Cholangiography Intraoperative",74300]
["Cholangiopancreatography (ERCP)",43263]
["Cholecystography",74290]
["Cholesterol Finger-Stick Test","82465-A1"]
["Cholesterol, Total",82465]
["Cholinesterase; RBC",82482]
["Cholinesterase; Serum",82480]
["CHOP INTEND","*CHOP"]
["CHQ - Parent Long Form","*CHPL"]
["CHQ - Parent Short Form","*CHPS"]
["Chromo In Situ Hybrid, 10-30 Cells",88273]
["Chromogenic Substrate Assay",85130]
["Chromosome Analysis Banding Techniq",88283]
["Chromosome Analysis; 15-20 Cells",88262]
["Chronic Heart Failure Index Q","*CHFQ"]
["Chronic Liver Disease Daily Life Q","*CLDQ"]
["Chronic Prostatitis Symptom Ass Q","*CPSA"]
["Chronic Prostatitis Symptom Index","*CPSI"]
["Chronic Prostatitis Symptom Index","*NIPS"]
["Chronic Resp Disease Q Self-Report","*CRQS"]
["Chronic Respiratory Disease Quest.","*CRQ*"]
["CIBIC+","*CIBI"]
["CIBIS +","*CIBS"]
["CIBIS+ and CIBIC+","*CIBP"]
["CIDI-SF-MD","*CISF"]
["Circular Lights Task (16 Button)","*CLTK"]
["Circumference Of Wrist","*WRIS"]
["Citrate; Any Source",82507]
["CK-MB Fraction Only",82553]
["CLAM Rating Scale - Parent","*CLMP"]
["CLAM Rating Scale - Teacher","*CLMT"]
["Class. Epileptic Seizures ILAE 1989","*ICES"]
["Classification of Pain","*PCQ*"]
["Clavicle X-Ray",73000]
["Clin Act Index Ulcerative Colitis","*CAI*"]
["Clin Attitude/Satisfaction Summary","*CASS"]
["ClinAdmin Dissociative States Scale","*CADS"]
["Clinical Anxiety Scale (CAS)","*CLAS"]
["Clinical COPD Questionnaire, QOL","*CCQU"]
["Clinical Dementia Rating Interview","*CDR*"]
["Clinical Eval. Of Harmful Behavior","*CEHB"]
["Clinical Global Consensus Ass. CGCA","*CGCA"]
["Clinical Global Impr. Bipolar Sev.","*CGIB"]
["Clinical Global Impress. Change","*CGIC"]
["Clinical Global Impress. Efficacy","*CGIT"]
["Clinical Global Impress. Scale","*CGIS"]
["Clinical Global Impress. Severity","*CIOS"]
["Clinical Pulmonary Infection Score","*CPIS"]
["Clinical Relief Scale","*CRSC"]
["Clinical Response Assessment","*CLRE"]
["Clinical Risk Index for Babies CRIB","*CRIB"]
["Clinical Success Questionnaire","*CSQ*"]
["Clinical Trial and Site Scale","*CTSS"]
["CLIP Scoring System (Liver Cancer)","*CLP*"]
["CLN2-QoL","*CLN2"]
["Clock Drawing Test","*CDT*"]
["Clostridium Difficile Toxin(s) Ag",87324]
["Closure of Median Sternotomy Sep.",21750]
["Clotting; Prekallikrein Assay",85292]
["CLOX: Executive Clock Drawing Task","*CLOX"]
["Cluster C Assessment","*CCA*"]
["Cmplx Special Stain Smear For O & P",87209]
["CMV Genotyping",87910]
["CMV Viral Load",87497]
["CNS Vital Signs Cognition Battery","*CNSV"]
["CO Breath & Expired Breath Test","NC027"]
["CO2 Response Curve",94400]
["Coag/Fibrinolysis Funct Activity",85397]
["Coagulation Time; Other Methods",85348]
["Coagulation/Fibrinolysis Assay",85396]
["C-OBT Acid Breath Test Reading Only","NC117"]
["Cocaine",80353]
["Coccidioides Antibody",86635]
["Cog Devel Skills In Arithmetic - SV","*CDSA"]
["Cognitive Failures Questionnaire","*COGF"]
["Cognitive Global Ass Scl Tolerance","*CGAS"]
["Cognitive Test for Delirium","*CTD*"]
["CogState Battery","*CSB*"]
["Cohen-Mansfield Agitation Inventory","*CMAI"]
["Cold Agglutinin; Screen",86156]
["Cole/ARCI Unpleasantness Scale","*CAUS"]
["Collagen Cross Links, Any Method",82523]
["Collection of Patient Symptom Diary","*CPSD"]
["Collection of Unused Study Drug","*CUSD"]
["Collection Patient Medication Diary","*CPMD"]
["Colon Biopsy","NC024"]
["Colon X-Ray",74270]
["Colon X-Ray w/ Air Contrast",74280]
["Colonic Mucosa Grading","*CMG*"]
["Colonoscopic Grade Activity Crohn","*CGC*"]
["Colonoscopy",45378]
["Colonoscopy w/ Biopsy",44389]
["Colonoscopy w/ Biopsy",45380]
["Color Perception Test","*CPT*"]
["Colorectal Cancer Screen Criteria","*CRC*"]
["Colposcopy (Vaginoscopy)",57452]
["Colposcopy (Vaginoscopy) w/ Biopsy",57454]
["Columbia Kiddie-SADS GAD 9 items","*GAD9"]
["Columbia Kiddie-SADS GAD, Complete","*GADC"]
["Columbia Suicide Severity Scale","*CSSR"]
["Column Chromotography; Qual./Quant.",82542]
["Combined Barthel Rankin Scale","*CBRS"]
["COMFORT Scale For Pediatric Pain","*CSPP"]
["Commands Test","*COMM"]
["Common Carotid Angiography",36223]
["Community Integration Q (CIQ)","*CIQ*"]
["Comp Electrophysiologic Eval",93653]
["Comp. And Alt. Med. Quest.","*CAMQ"]
["Comp. Follow-Up Visit (0-17 yrs)","99213-PD"]
["Comp. Follow-Up Visit w Phys/Vitals",99213]
["Comp. Transthoracic Echocardiogram",93307]
["Compatibility Test, Immediate Spin",86920]
["Compensatory Tracking Task (CTT)","*COTT"]
["Compl. Brunnstrom Recovery Stages","*BRSC"]
["Complement, C9 Esterase","86160-A3"]
["Complement; Antigen, Each Component",86160]
["Complete NPI: Nursing Home Version","*NPIN"]
["Complete Sperm Analysis",89320]
["Complex (Choice) Reaction Time","*CRT*"]
["Complex CMG w Urethral Pressure","N51727"]
["Complex CMG w Voiding Pressure","N51728"]
["Complex Cystometrogram (CMG)",51726]
["Complex Pulmonary Stress Testing",94621]
["Complex Uroflowmetry (UFR)",51741]
["Complex Venipuncture Inc Prep & Shi","NC011"]
["Compliance Rating Scale (CRS)","*CRS*"]
["Comprehensive Ass. Psoriasis, CAPP","*CAPP"]
["Comprehensive Metabolic Panel",80053]
["Comprehensive Quality Of Life","*QL04"]
["Comprehensive Substance Abuse Hist","*CSAH"]
["Computerized Conner's Parent Scale","*CCPR"]
["Computerized Corneal Topography",92025]
["Computerized Functional ASMT System","*CFAS"]
["Computerized Visual Search Task","*CVST"]
["Conditioning Play Audiometry (CPA)",92582]
["Conner Global Index Parent: Evening","*CGIE"]
["Conner Global Index Parent: Morning","*CGIM"]
["Conner-48 Conner Parent Rating Scal","*CONN"]
["Conners CBRS Parent","*CCBR"]
["Constant - Murley Shoulder Score","*CMS*"]
["Constipation Assessment Scale CAS","*COAS"]
["Constructional Praxis","*CONP"]
["Consult & Report on Referred Slides",88321]
["Consult on Material Req. Slide Prep",88323]
["Consultant Per Visit, French Only","*3324"]
["Cont Visual Recognition Test, FVW","*FVW*"]
["Contact Lens Fitting",92310]
["Contact Lens Wearing Questionnaire","*CLWQ"]
["Contemplation Ladder, VAS (Smoking)","*CLD*"]
["Continued Ventilator Management",94657]
["Continuous Core Body Temperature","NC069"]
["Continuous Oximetry Determinations",94762]
["Continuous Performance Test; CPT","*COPT"]
["Contrast Sensitivity","92499-A1"]
["Controlled Oral Word Association","*COWA"]
["Cook Medley Hostility Scale","*CMHS"]
["COPD Assessment Test, CAT","*CAT*"]
["COPD Symptom Score","*COPD"]
["Copper",82525]
["CORE Sys Index of Melancholia","*CORE"]
["Corneal Pachymetry, Uni/Bi-lateral",76514]
["Cornell Scale Depress. in Dementia","*CDS*"]
["Cornell Yale Panic Anxiety Scale","*CYPA"]
["Coronary Angiography",93454]
["Coronary Angioplasty PTCA",92920]
["Corpora Cavernosography Injection",54230]
["Corrigan Agitated Behavior Scale","*ABS*"]
["Cortisol, Free",82530]
["Cortisol, Total",82533]
["Cosmetic Characteristics Question.","*CCQ*"]
["Cosmetic Index for Scar Evaluation","*CISE"]
["Cost Effectiveness Assessment","*CEAS"]
["Cost Of Illness Questionnaire","*COIQ"]
["Cough Capsaicin Challenge Test","*CCT*"]
["Cough Questionnaire","*COUG"]
["Covert Orienting Task","*COT*"]
["Covi Anxiety Scale","*CAS*"]
["COWS","*COWS"]
["Coxiella Burnetii (Q Fever) Ab",86638]
["CPAP Initiation and Management",94660]
["C-Peptide",84681]
["CPRS-R:Long Form","*CPR*"]
["CPRS-R:Short Form","*CPRR"]
["Cranial/Cervicocerebral Angiography",36221]
["Craving Intensity Scale","*CIS*"]
["C-reactive Protein, CRP",86140]
["Creatine",82540]
["Creatine Kinase (CK)(CPK); Total",82550]
["Creatine Kinase Isoenzymes",82552]
["Creatinine; Blood",82565]
["Creatinine; Clearance (GFR)",82575]
["Creatinine; Other Source",82570]
["CRH Stimulation Panel",80412]
["Crichton Geriatric Rating Scale","*CGRS"]
["Crispin Norman Score","*CNS*"]
["Crit Delusions Psych due Alzheimers","*OCDH"]
["Criteria for Psoriatic Arthritis","*PAR*"]
["Criteria Probable Vascular Dementia","*NIND"]
["Critical Flicker Fusion, CFF, CFFTI","*CFF*"]
["Critical Instability Tracking Test","*CTT*"]
["Crohn's Disease Activity Index","*CDAI"]
["Crohn's Endoscopic Index Severity","*CDEI"]
["Cross-Reactive Antibodies","NC054"]
["Cryoglobulin, Qual Or Semi-Quant",82595]
["Cryptococcus Antibody",86641]
["Cryptosporidium Antigen",87328]
["Crystal ID by Light Microscopy",89060]
["CSF Flow Ventriculography",78635]
["CSHA Clinical Frailty Scale","*CFS*"]
["CSPE Guidelines","*CSPE"]
["CT Angiography Head",70496]
["CT Guidance for Needle Placement",77012]
["CTCL Index Lesion","*CTCL"]
["CTRS-R:Short Form","*TRS*"]
["CUDOS-A","*CUDA"]
["Cult Typing Nucleic Acid Sequencing",87153]
["Culture, Typing; Other Methods",87158]
["Cummings Clinical Dementia Staging","*CCDS"]
["Cumulative Illness Rating, CIRS","*CIRG"]
["Curran Status","*CURR"]
["Current Opioid Misuse Measure","*COMI"]
["Cutaneous Lupus Index CLASI","*CLAI"]
["Cutometry, Skin Elasticity","*CUTO"]
["Cyanide",82600]
["Cyanocobalamin (Vitamin B-12)",82607]
["Cyanocobalamin And Folate","NC104"]
["Cyclic AMP (cAMP)",82030]
["Cyclic AMP (cAMP); Urine","82030-UR"]
["Cyclosporine, Any Source",80158]
["CYP2C19 Genotyping/Gene Analysis",81225]
["CYP2C9 Genotyping/Gene Analysis",81227]
["CYP2D6 Genotyping/Gene Analysis",81226]
["Cystatin C",82610]
["Cystic Fibrosis Gene Analysis",81220]
["Cystic Fibrosis Health Status","*CFQ*"]
["Cystography; Bladder X-Ray",74430]
["Cystourethroscopy",52000]
["Cystourethroscopy w/ Biopsy",52204]
["Cystourethroscopy w/ Fulguration","N52224"]
["Cystourethroscopy w/ Lithotripsy",52353]
["Cytogenetic Interpretation & Report",88291]
["Cytomegalovirus (CMV) Antibody, IgG",86644]
["Cytomegalovirus (CMV) Antibody, IgM",86645]
["Cytomegalovirus (CMV) Antigen",87332]
["Cytopathology Cellular Enhancem Tec",88112]
["Cytopathology Smear Interpretation",88104]
["Cytopathology Smears Any Other Sour",88161]
["Cytopathology, Smear, Any Source",88160]
["Cytotoxic Antibody Screen",86807]
["Dactylitis Assessment score","*DACT"]
["Daily Parent Rat. of PM & AM Behav.","*DPRE"]
["Daily Record Severity of Problems","*DRSP"]
["Daily Symptoms Rating (DSR)","*DSR*"]
["Daily Telephone Ass for Depression","*DTA*"]
["Danish Prostatic Symptom Score","*DPSS"]
["Dark Field Examination",87164]
["DASH Outcome Measure","*DASH"]
["Davidson Trauma Scale, DTS","*DSRS"]
["Daytime Asthma Symptom Score; DASS","*DASS"]
["DCCT Def Of Severe Hypoglycemia","*DCCT"]
["Debridement of 1-5 Nails",11720]
["Debridement of 6+ Nails",11721]
["Decreased Sex Desire Interview","*DSDI"]
["Decreased Sex Desire Self-Rpt","*DSDS"]
["Degree of Numbness (11 Point Scale)","*NUMB"]
["Degree of Weakness Strength Ass Scl","*WEAK"]
["Dehydroepiandrosterone",82626]
["Dehydroepiandrosterone-Sulfate",82627]
["Delayed Visuospatial Recall Task","*DVRT"]
["Delayed Word Recall (DWRL)","*DWRL"]
["Delayed Word Recognition (DWRN)","*DWRN"]
["Delusions Symptoms State Inventory","*DSSI"]
["Dementia of Alzheimer's Type Invent","*DATI"]
["Dementia QoL Proxy, DEMQoL-Proxy","*DEMP"]
["Dementia Quality of Life DEMQoL","*DEMQ"]
["Dementia Rating Scale-2, DRS-2","*DRS2"]
["Dementia Score of The Blessed","*DSBS"]
["Demographic Information","*DEMO"]
["Dental Exam","NC141"]
["Dental Impact Score","*DIMS"]
["Denver II","*DDST"]
["Deoxycortisol, 11-",82634]
["Depression Anxiety Positive Outlook","*DAPO"]
["Depression Anxiety Symptom Scale","*DASR"]
["Depression Scale (DS)","*DEPR"]
["Depression Self-Rating Scale","*DRSE"]
["Depressive Syndrome Scale (DSS)","*DSS*"]
["Dermatitis Severity Scale","*DERS"]
["Dermatological Visual Scores","*DVS*"]
["Dermatology Consensus Criteria","*AADC"]
["Dermatology Life Quality Index","*QL30"]
["Dermatology Quality of Life Scales","*DQOL"]
["Derogatis Scale","*DERO"]
["DES Test: Lissamine Green Staining","92499-A2"]
["DES Test: Rose Begal Staining","92499-A3"]
["Desoxycorticosterone, 11-",82633]
["Determination of Refractive State",92015]
["Detrusor Activity Index, DAI","*DAIN"]
["Developmentl Neuropsychological Ass","*NEPS"]
["Device Deficiencies","*DEF*"]
["DEXA Appendicular Skeleton",77081]
["DEXA Arm/Forearm/Radius","77081-A1"]
["DEXA Axial Skeleton",77080]
["DEXA Hip","77080-A3"]
["DEXA Interpretation Only","76499-A2"]
["DEXA Lumbar Spine","77080-A2"]
["DEXA Scan Only","76499-A3"]
["DEXA Spine","77080-A4"]
["DEXA Spine & Hip or Spine & Femur","77080-A1"]
["DEXA Total/Whole Body","76499-A1"]
["DEXA Vertebral Fracture Assessment",77086]
["Deyo Psychosocial Index","*DPI*"]
["DHHS Guidelines Smoking Cessation","*DHHS"]
["Diabetes Experience Questionnaire","*DEV*"]
["Diabetes Health Profile","*QL31"]
["Diabetes Productivity Imprmnt Quest","*DPIQ"]
["Diabetes QoL Caregiver","*DQLC"]
["Diabetes QoL Child/Youth","*DQLY"]
["Diabetes Quality of Life; DQOL","*DQL*"]
["Diabetes Symptom Checklist","*DSC*"]
["Diabetes Symptom Checklist - Revise","*DSCR"]
["Diabetes Treatment Flexibility Scal","*DTFS"]
["Diabetes Utility Index, DUI","*DUI*"]
["Diabetes-39 Questionnaire","*D39*"]
["Diabetic Retinopathy Severity Scale","*DRSC"]
["Diab-MedSat","*DMED"]
["Diag Criteria Psychosis Alzheimer","*DPAD"]
["Diag Guide Atopic Dermatitis pt<2yr","*SAMP"]
["Diag Guide Atopic Dermatitis pt>2yr","*WILL"]
["Diag Interv Depressive Personality","*DIDP"]
["Diag Interview Borderline Patients","*DIB*"]
["Diag Interview Children/Adolescents","*DICA"]
["Diag Interview For Personality Dis","*DIPD"]
["Diag. Criteria Diabetes Mellitus","*DCDM"]
["Diag. Criteria Psoriatic Arthritis","*DCPA"]
["Diag. Criteria Rheumatoid Arthritis","*DCRA"]
["Diagn. Criteria for Noonan Syndrome","*BURG"]
["Diagnostic Anoscopy",46600]
["Diagnostic Electron Microscopy",88348]
["Diagnostic Indirect Laryngoscopy",31505]
["Diagnostic Interview Schedule; DIS","*DIS*"]
["Diagnostic Knee Arthroscopy",29870]
["Diagnostic Laparoscopy",49320]
["Diagnostic Lumbar Spinal Puncture",62270]
["Diagnostic Nasal/Sinus Endoscopy",31231]
["Diagnostic Phone Interview RLS","*RLPI"]
["Diagnostic Scraping of Cornea",65430]
["Diarrhea & Constipation Interview","*DCQI"]
["Diarrhea & Constipation Self-Report","*DCQ*"]
["Diarrhea & Skin Condition Impact","*DSCI"]
["Dibucaine Number",82638]
["Dickson-Glazer Sexual Funct Scale","*DGSF"]
["Dietary Compliance Scale","*DCS*"]
["Dietary Intake Questionnaire","*DIQ*"]
["Dietary Survey Dietary Questionnair","*DIET"]
["Diffusing Capacity",94729]
["Digestive Health Status GI Symptoms","*DHSI"]
["Digit Backwards Test","*DGTB"]
["Digit Cancellation","*DIGC"]
["Digit Ordering Test working memory","*DOT*"]
["Digit Span Memory Test","*DSMT"]
["Digit Span, Subtest WAIS, DS","*DIGS"]
["Digit Symbol Substitution Test","*DST*"]
["Digoxin, Urine","80162-UR"]
["Digoxin; Total, Any Source",80162]
["Dihydroxyvitamin D, 1,25-",82652]
["Dip Stick UA w/ Microscopy",81000]
["Dip Stick UA w/o Microscopy",81002]
["Diphtheria Antibody",86648]
["Direct Assess. of Functional Status","*DAFS"]
["Direct Coombs Test",86880]
["Direct Nasal Mucous Membrane Test",95065]
["Dis Spec Pt Health Survey Interview","*DSPI"]
["Dis Spec Pt Health Survey Self-Rep","*DSPH"]
["Disability Assessment for Dementia","*DAD*"]
["Disability Rating Scale (DRSS)","*DRSS"]
["Discission: Cataract Laser Surgery",66821]
["Discontin-Emerg Signs & Symp; DESS","*DES*"]
["Disease Activity Score - 28, DAS28","*DAS2"]
["Disease Impact Questionnaire","*DIMQ"]
["Disorders Of Extreme Stress Scale","*DESS"]
["Dispense Patient Medication Diary","*DPMD"]
["Dispense Patient Symptom Diary","*DPSD"]
["DISQ-24","*DISQ"]
["Disruptive Beh Dis Rtng Scl - PV","*DBDP"]
["Disruptive Beh Dis Rtng Scl - TV","*DBDT"]
["Dissociative Exp Scale","*DEXS"]
["Distance of Occiput from Wall","*OWD*"]
["Divided Attention Task","*DAT*"]
["D-KEFS","*DKEF"]
["D-KEFS Color-Word Interference Test","*DKCI"]
["D-KEFS Design Fluency","*DKDF"]
["D-KEFS Verbal Fluency","*DKVF"]
["DN4 Questionnaire","*DN4Q"]
["Doering/Rourke Underlining Test","*DRUT"]
["Doppler add on code",93320]
["Doppler Echo Image Acquisition Only","93320-52"]
["Doppler Interp Only add on code","93320-26"]
["Doppler; Vasoreactivity Study",93890]
["Dorsal Hand Vein Diameter","*DHVD"]
["DQOL Brief Clinical Inventory","*DQLB"]
["Drain Volume","*DRA*"]
["Draize Score","*DRAI"]
["Draw A Family Test (DAF)","*DAFT"]
["Drinker Inventory of Consequences","*DRIN"]
["Driving Behavior Survey (Other Rep)","*DBSO"]
["Driving Behavior Survey (Self Rep)","*DBSV"]
["Driving Reaction Time Task","*DRTT"]
["Driving Stimulation Test","*DRST"]
["Drug Abuse Screening Test","*DAST"]
["Drug Attitude Inventory; DAI-10","*DAI*"]
["Drug Attitude Inventory; DAI-30","*DAI3"]
["Drug Attributes Questionnaire, DRAQ","*DRAQ"]
["Drug Delivery Implant Insertion",11981]
["Drug Delivery Implant Removal",11982]
["Drug ID Questionnaire","*DIDQ"]
["Drug Identification Questionnaire","*DRIQ"]
["Drug Rating Questionnaire - Subject","*DRQS"]
["Drug Rating Questionnaire, Observer","*DRQO"]
["Drug Rating Questionnaire, Parent","*DRQP"]
["Drug Test by Direct Optical Obs",80305]
["Drug Test Inst Ass Direct Opt Obs",80306]
["Drug Test Instrument Chemistry Anal",80307]
["Drug Treatment Questionnaire","*DTR*"]
["Drug vs Money Multiple Choice Proc","*MCP*"]
["Dry Mouth VAS","*VADM"]
["Dry Skin Severity Scale","*DSSS"]
["DS3 Fabry Disease Severity Scoring","*DS3F"]
["DSM IV ADHD Rating Scale","*ADAH"]
["DSM IV ADHD Teacher Rating Scale","*ADTR"]
["DSM IV: ADHD - Parent Rating Scale","*ADPR"]
["DSM-IV","*DSMR"]
["DSM-IV Anxiety Disorders Scale","*DSMA"]
["DSM-IV Sexual, Sexual Disorders","*DSMS"]
["DT Immunization",90702]
["DtaP Immunization",90700]
["DtaP-HepB-IPV Immunization","N90723"]
["DTap-Hib-IPV Immunization",90698]
["DTP Immunization","NC166"]
["DTSQc","*DTSC"]
["DTSQs","*DTSQ"]
["Dual Working Memory Task - Spatial","*DWMS"]
["Dual Working Memory Task - Verbal","*DWMV"]
["Dubowitz Scale","*DUBS"]
["Duke Global Rating PTSD - Severity","*DGRS"]
["Duke Health Profile, QOL","*QL44"]
["Duke Rating PTSD - Improvement","*DGRI"]
["Duke Status Activity Index","*DSAI"]
["Duke\u0092s Stages of bowel Cancer","*DUKE"]
["Duodenal Aspiration; Multiple Specs",43757]
["Duplex, Aorta, IVC, Iliac",93978]
["Duplex, Bilateral Lower Ext Artery",93925]
["Duplex, Bilateral Upper Ext Artery",93930]
["Duplex, Bilateral Veins",93970]
["Duplex, Organ Bloodflow",93975]
["Duplex, Organ Bloodflow, Reading","93975-26"]
["Duplex, Penile Vessels",93980]
["Duplex, Unilateral Lower Ext Artery",93926]
["Duplex, Upper Artery - Reading Only","93930-26"]
["Duplex, Veins - Reading Only","93970-26"]
["Duration of Morning Stiffness","*DMS*"]
["Durie & Salmon MM Staging","*DSMM"]
["Dutch Questionnaire Eating Habits","*NVE*"]
["Dyadic Activities Questionnaire- 20","*DAQ2"]
["Dyadic Adjustment Scale","*DAS*"]
["Dynamic Headache Impact Test","*HIT*"]
["Dysmenorrhea Severity Scale","*DYSS"]
["Dyspeptic Symptoms, 5-point scale","*DYS*"]
["Dysphagia Scale Interview/Asmt","*DPSI"]
["Dysphagia Scale Self-Reported","*DPS*"]
["Dystonia Severity Scale","*CDSS"]
["Each Apolipoprotein",82172]
["Each Beta 2 Glycoprotein I Antibody",86146]
["Each Microsomal Antibody",86376]
["Ease of Use Questionnaire (Device)","*EOUQ"]
["Eating Disorder Inventory-2","*EDI2"]
["Eating Disorders Examination","*EDE*"]
["Eating Disorders Examination-Quest.","*EDEQ"]
["Eating Disorders Inventory","*EDIN"]
["Eating Inventory","*EIS*"]
["Eating Patterns Assessment Tool","*EPAT"]
["Ecchymosis Scale","*ECCS"]
["ECG Interpretation & Report Only",93010]
["ECG w/ Interpret. & Report",93000]
["ECG, Tracing Only",93005]
["Echocardiogram Doppler Imaging Only","93306-52"]
["Echocardiogram w Doppler Interp","93306-26"]
["Echocardiogram with Doppler",93306]
["Echoencephalography",76506]
["Eczema Area Severity Index","*EASI"]
["Eczematous/Inf Skin Debridement",11000]
["EDC Completion Time, Per Visit","*EDC*"]
["Edema Assessment","*EDEM"]
["Edinburgh Claudication Q","*ECQ*"]
["Edinburgh Inventory, EI","*EDBG"]
["Edinburgh Postnatal Depression Scal","*EPDS"]
["EDITS - Partner","*EDTP"]
["EDITS - Patient","*EDIT"]
["Educational Services Group Setting",99078]
["EEG & Video Record Cereb Seiz Focus",95951]
["EEG in Coma or Sleep Only",95822]
["EEG Interpretation Only","95816-26"]
["EEG to ID Cerebral Seizure Focus",95950]
["EGD w Percutaneous Gastrostomy Tube",43246]
["EGD w. Inject. Sclerosis",43243]
["EGD w/ Control of Bleeding",43255]
["EGFR Gene Analysis",81235]
["Ejaculatory Assessment Quest.","*EAQ*"]
["Ejaculatory Function Outcome Q.","*EFOQ"]
["Elastase Functional Blood","*ELFB"]
["Elastase Functional Sputum","*ELFS"]
["Elastase Inhibitory Capacity Blood","*EICB"]
["Elastase Inhibitory Capacity Sputum","*EICS"]
["Elastase Quantative, Sputum","*ELAQ"]
["Elastase, Neutrophil Elastase","*ELAS"]
["Elastase, Pancreatic, Fecal",82656]
["Elbow X-Ray",73070]
["Elderly patients w GHD Informant Q","*CIQE"]
["Electroencephalogram (EEG)",95816]
["Electrogastrography (EGG)",91132]
["Electrolyte Panel, Saliva","80051-SL"]
["Electrolyte Panel, Serum",80051]
["Electrolyte Panel, Urine","80051-UR"]
["Electromyography, Specific Muscles",95870]
["Electro-oculography (EOG)",92270]
["Electroretinography (ERG)",92275]
["Eli Lilly Quality Of Life Scale","*QL93"]
["Emergency Department Visit",99281]
["EMG Cranial Nerve Muscle Bilateral",95868]
["EMG Cranial Nerve Muscle Unilateral",95867]
["Emotional Memory Paradigm","*EMP*"]
["Endicott Work Productivity Scale","*EWPS"]
["Endocervical Curettage",57505]
["Endocrine Receptor Assay",84235]
["Endocrine Series Assay Profile","NC019"]
["Endoluminal Imaging Coronary Vessel",92978]
["Endometrial/Uterine Biopsy",58100]
["Endometriosis Health Profile, 30 Q","*EHP*"]
["Endometriosis Signs & Symptoms","*ESS*"]
["Endomyocardial Biopsy",93505]
["End-Stage Liver Disease Score, MELD","*MELD"]
["ENT/Nasal Exam","NC142"]
["Enter and Recall Task (number)","*ERT*"]
["Enterovirus Antibody",86658]
["Enthesis Index Ankylosing Spondylit","*ENTH"]
["Entire Spine X-Ray; 2 or 3 Views","N72082"]
["Enzyme Cell Activity","N82657"]
["EORTC QLQ-BR-23 Interview","*BR2I"]
["EORTC QLQ-BR-23 Self-Reported","*BR23"]
["EORTC QLQ-C30","*QL61"]
["EORTC QLQ-CIPN20","*CIPN"]
["EORTC QLQ-CLL16","*CL16"]
["EORTC QLQ-GI.NET21","*NET*"]
["EORTC QLQ-GINET21","*GINE"]
["EORTC QLQ-HN35","*HN35"]
["EORTC QLQ-MY20 Self-Reported","*MY20"]
["EORTC QLQ-OV28","*OV28"]
["EORTC QLQ-PR24","*PR24"]
["EORTC QLQ-STO22","*STO2"]
["EORTC-QLQ-BM22","*BM22"]
["EORTC-QLQ-BN20","*BCM*"]
["EORTC-QLQ-C15-PAL","*EPAL"]
["EORTC-QLQ-HCC18","*HCC*"]
["Eos Superoxide","*EOSO"]
["EPIC - Hormonal Domain Only","*EPIH"]
["EPIC-26","*EP26"]
["Epidermal Growth Factor (EGF)","*EGF*"]
["Epidermolysis Bullosa Questionnaire","*EBQ*"]
["Epileptic Seizure Count","*ESC*"]
["EPS Eval of ICD Leads, Inc DFT",93640]
["EPS w Arrhythmia Induc, L Atrial",93621]
["EPS w Arrhythmia Induc, L Vent",93622]
["EPS w Arrhythmia Induc, R Atr/Vent",93620]
["EPS wo Arrhythmia Induc, R Atr/Ven",93619]
["Epstein-Barr (EB) Early Antigen",86663]
["Epstein-Barr (EB) Nuclear Antigen",86664]
["Epstein-Barr (EB) Viral Capsid Ab",86665]
["Epworth Sleepiness Scale; ESS","*EPSS"]
["Erection Problem Questionnaire EPQ","*EPQ*"]
["Erythema and Induration Scales","*FLS*"]
["Erythrocyte Protoporphyrin",84202]
["Erythrocyte Sedimentation Rate",85651]
["Erythropoietin (EPO)",82668]
["Escherichia Coli Antigen",87335]
["Esophageal Electrogram",93615]
["Esophageal Motility",78258]
["Esophageal Motility",91010]
["Esophagogastroduodenoscopy Flexible",43235]
["Esophagogastroduodenoscopy w Biopsy",43239]
["Esophagoscopy Flexible",43200]
["Esophagoscopy Flexible w/ Biopsy",43202]
["ESRD-SCL-TM","*ESRD"]
["Estradiol (E2)",82670]
["Estradiol And Estrone","NC083"]
["Estriol (E3)",82677]
["Estrogen Receptor Assay",84233]
["Estrogens; Total",82672]
["Estrone",82679]
["Ethosuximide, Any Source",80168]
["Ethylene Glycol",82693]
["Euglobulin Clot Lysis Time (ECLT)",85360]
["European Addiction Severity Index","*EUSI"]
["European Stroke Scale (ESS)","*ESE*"]
["EuroQol VAS, EQ-VAS","*EQVA"]
["EuroQol; EQ-5D","*EQ5D"]
["EuroSCORE","*EURO"]
["Evaluation of Graft Function (EGF)","*GFE*"]
["Evaluation of Rejection Episodes","*ARE*"]
["Event Symptom Severity Checkl A-Fib","*ESSC"]
["Exacerbation Severity Criteria Pulm","*SEC*"]
["Exacerbations of COPD, EXACT","*EXAC"]
["Excision of Cornea Lesion",65400]
["Executive Interview; EXIT-25","*EXIT"]
["Exp Of Caregiving Inv (ECI)","*ECI*"]
["Exp With Insulin Ther Quest; EWITQ","*EWIT"]
["Expanded Prostate Cancer Index Comp","*EPIC"]
["Expect About Insulin Therapy Quest","*EITQ"]
["Experiential Discounting Task, EDT","*EDT*"]
["Expired Gas Analysis","94799-A1"]
["Expired Gas Analysis, O2/CO2",94681]
["Expired Gas Collection",94250]
["Expired Nitric Oxide",95012]
["Explanation of Medical Information",90887]
["Exploratory Laparotomy/Celiotomy",49000]
["Expression Emotion Scale Children","*EESC"]
["Extended Color Vision Examination",92283]
["Extended Disability Status Scale","*EDSS"]
["Extended EEG, Greater Than 1 Hour",95813]
["Extended EEG, Up to 1 Hour",95812]
["Extended Ophthalmoscopy, Initial",92225]
["Extended Ophthalmoscopy, Subsequent",92226]
["External Electrical Cardioversion",92960]
["External Ocular Photography",92285]
["Extracellular Fluid Vol/Bioimpedanc","*ECF*"]
["Extractable Nuclear Antigen Ab",86235]
["Extrapyramidal Symptom Rating","*ESRS"]
["Extremity Artery Study-Multi Level",93923]
["Extremity Artery Study-Single Level",93922]
["Extremity or Trunk Muscle Testing",95831]
["Extremity Ultrasound, Complete",76881]
["Extremity Ultrasound, Limited",76882]
["Extremity Vein Study",93965]
["Eye Blinking Rate","*EBR*"]
["Eyelash Satisfaction Q, ESQ-9","*ESQ9"]
["Eysenck Personality Inventory","*EPI*"]
["F2 Prothrombin Gene Analysis",81240]
["FAACT, Anorexia/Cachexia","*FAAC"]
["Faces Pain Rating Scale (PRS)","*PRS*"]
["Facial Emotion Discrimination Task","*FEDT"]
["Facial Line Outcome Q, FLO-11","*FLO*"]
["Facial Wrinkle Scale, Self-Reported","*FWC*"]
["FACIT - Fatigue Subscale Interview","*FFSI"]
["FACIT - Fatigue Subscale Self-Rept.","*FACI"]
["FACIT - Fatigue, Self-Report","*FACT"]
["FACIT-F, Fatigue Interview","*FAFI"]
["FACT - Biologic Response Modifier","*FBRM"]
["FACT - Bone Marrow Transplant","*FBMT"]
["FACT - Brain","*FTBR"]
["FACT - Brain Interview","*FTBI"]
["FACT - Breast Interview","*FABI"]
["FACT - Breast Self-Report","*FABS"]
["FACT - BRM, Interview","*FBRI"]
["FACT - Colorectal, Interview","*FCRI"]
["FACT - Colorectal, Self-Report","*FACC"]
["FACT - Endocrine Subscale","*ESQL"]
["FACT - General Version Interview","*FAGI"]
["FACT - General Version Self-Report","*QL62"]
["FACT - Head & Neck Interview","*FHNI"]
["FACT - Head & Neck Self-Report","*FAHN"]
["FACT - Hepatobiliary Self-Report","*FCPA"]
["FACT - Neurotoxicity Interview","*FCTN"]
["FACT - Prostate Self-Report","*FACP"]
["FACT - Taxane Self-Report","*FTAX"]
["FACT&GOG-Neurotoxicity, Self-Report","*FACG"]
["FACT-An, Anemia Interview","*FAAI"]
["FACT-An, Anemia Self-Reported","*FACA"]
["FACT-E","*FACE"]
["FACT-E Additional Concerns Only","*FAEA"]
["FACT-E Well-Being Only","*FAEW"]
["FACT-Ga (Gastric) Self-Reported","*FAGA"]
["FACT-Hep Interview","*FCPI"]
["FACT-Leu","*FALE"]
["FACT-Lung Quality Of Life","*FCTL"]
["FACT-Lung, QOL Interview 36-Item","*MFCU"]
["FACT-Lymphoma Quality Of Life","*FATL"]
["FACT-M Melanoma","*FACM"]
["FACT-MM","*FAMM"]
["FACT-Neutropenia, Self-Report","*FACN"]
["FACT-Ntx Subscale, Self-Reported","*FACH"]
["Factor II",85210]
["Factor IIa Inhibitory Activity","85335-A1"]
["Factor Inhibitor Test",85335]
["Factor IX",85250]
["Factor IX Inhibitory Activity","85335-A3"]
["Factor V",85220]
["Factor V Gene Analysis",81241]
["Factor VII",85230]
["Factor VII Antigen ELISA","EIA009"]
["Factor VIII",85240]
["Factor VIII Inhibitory Activity","85335-A2"]
["Factor X",85260]
["Factor Xa Inhibitory Activity","85335-A4"]
["Factor XI",85270]
["Factor XII",85280]
["Factor XIII",85290]
["Factor XIII Screen Solubility",85291]
["FACT-P Interview","*FCTP"]
["FACT-Tax 10 min Interview","*FCTT"]
["FAECC Behavioral Pain, Investigator","*FAEI"]
["Fagerstrom Test For Nicotine Dep","*FTND"]
["Fagerstrom Tolerance Questionnaire","*FTQ*"]
["FAHI QOL Questionnaire","*FAHI"]
["Fall Assessment Tool","*FAL*"]
["Family Assess. Measure Vers. III","*FAM*"]
["Family Burden Of Illness Module","*FBIM"]
["Family History Diag Criteria fh-rdc","*FHRD"]
["Family History of Cancer","*FHC*"]
["Family History Questionnaire","*FHQ*"]
["Fat Maldistribution Questionnaire","*FMDQ"]
["Fatigue Impact Scale; FIS","*FIS*"]
["Fatigue Severity Scale","*FSQ*"]
["Fatigue Symptom Inventory; FSI","*FSI*"]
["Fatigue VAS [SELECT *QL65]","*FVAS"]
["Fatty Acids, Nonesterified",82725]
["Fawcett-Clark Pleasure Scale","*FACL"]
["Fc Receptor",86243]
["FDP Agglutination Slide, Semiquant.",85362]
["Fear Avoidance Scale","*FAS*"]
["Fear of Hypoglycemia Survey","*FHS*"]
["Fear of Injection Questionnaire","*FISQ"]
["Fear of Negative Evaluation Scale","*FNES"]
["Febrile Neutopenia Symptom Q","*FNSQ"]
["Fecal Collection, Up to 72 Hours","NC066"]
["Fecal Hemoglobin Determination",82274]
["Fecal Incontinence QoL, FIQL","*FIQL"]
["Fecal Leukocyte Assessment",89055]
["Fecal Occult Blood",82272]
["Female Intervention Efficacy Index","*FIEI"]
["Female Sexual Distress Scale - Rev","*SDQR"]
["Female Sexual Dysfunction scale","*FSDS"]
["Female Sexual Function Index","*FSFI"]
["Femur X-Ray; Minimum 2 Views",73552]
["Ferriman-Gallwey Score","*FGS*"]
["Ferritin",82728]
["Fetal Echocardiography",76825]
["FHSI-8","*FHSI"]
["Fibrin Degradation Products",85379]
["Fibrinogen Receptor Binding GP RIA","RIA006"]
["Fibrinogen, Activity",85384]
["Fibroblast Growth Factor ELISA","EIA014"]
["Fibromyalgia Impact Questionnaire","*FIQ*"]
["Fibrosis Score","*FBRS"]
["FIBSER, Side Effects Scale","*FIBS"]
["Field Sobriety Test","*FST*"]
["FIGO Cancer Staging","*FIGC"]
["Filtration Bleb Classification","*FBC*"]
["Final Comprehensive Consensus Ass","*FCCA"]
["Fine Needle Asp w/ CT Guidance","NC013"]
["Fine Needle Asp w/ Imaging Guidance",10022]
["Fine Needle Asp w/ US Guidance","NC014"]
["Fine Needle Aspirate Cyto Inter/Rep",88173]
["Fine Needle Aspiration",10021]
["Fine's Risk Class Score","*FRC*"]
["Finger Ring Measurement/Size","*FRMS"]
["Finger Tapping Test","*FTT*"]
["Finger Thumb Sequential Touch","*FTST"]
["Fingers to Floor Test","*FFT*"]
["Fistula Drainage Assessment","*FDA*"]
["Fitzpatrick Skin Type Test","*FITZ"]
["Fixed Bladder Vol Stress Pad Test","*BSPT"]
["Fixed Bladder Vol. Cough Test","*BCT*"]
["FLACC/FAECC Behavioral Pain Caregiv","*FAEC"]
["Flare Measurement","92499-A4"]
["FLIC Self-Reported, 22-Item","*QL68"]
["FLIPI","*FLIP"]
["Flow Cytometry Interp; 16+ Markers",88189]
["Flow Cytometry, Each Marker","N88184"]
["Flow Cytometry, Tech Comp;2+ Marker","N88185"]
["Flow Directed Cath Insert/Placement",93503]
["FLT3 Gene Analysis; ITD Variants",81245]
["Flu Immunization, 0.5 mL dosage",90658]
["Fluid Intake Measurements","*FLUM"]
["Fluid Intake Questionnaire","*FLUI"]
["Fluorescein Angiogram, Interp Only","92235-26"]
["Fluorescein Angiography",92235]
["Fluorescein Angioscopy","N92230"]
["Fluorescein Angioscopy & Angiogram","NC046"]
["Fluorescein Angioscopy, Interp Only","N9223026"]
["Fluorescein Eye Staining","92499-A5"]
["Fluorescent Ab Screen, Noninf Agent",86255]
["Fluorescent Ab Titer, Noninf Agent",86256]
["Fluoro Guid For Cent Venous Access",77001]
["Fluoro Guid For Needle Placement",77002]
["Fluoroscopy, Up to 1hr Phys Time",76000]
["Flu-Score","*FLUS"]
["fMRI Administered by Technologist",70554]
["Folic Acid (Folate); RBC",82747]
["Folic Acid (Folate); Serum",82746]
["Follicle Puncture, Oocyte Retrieval",58970]
["Follicle Stimulating Hormone (FSH)",83001]
["Follow-Up Physical Only","*3326"]
["Follow-Up Physical Only (0-17 yrs)","*3326-PD"]
["Follow-Up Visit (Infants-17 yrs)","99212-PD"]
["Follow-Up Visit w Phys/Vitals",99212]
["Folstein MMSE","*MMSF"]
["Food Allergy Independent Measure","*FAIM"]
["Food Allergy Quality of Life","*FAQP"]
["Food Craving Scale","*FCS*"]
["Food Intake Questionnaire; FIQ","*FOOD"]
["Food Record Rating (FRR)","*FFR*"]
["Foot and Ankle Outcome Score, FAOS","*FAOS"]
["Foot X-Ray",73620]
["Foot X-ray Interpretation Only","73620-26"]
["Forced Expiratory Volume Only","NC074"]
["Forearm X-Ray",73090]
["Forrest Classification","*FOR*"]
["Fractionated Blood Lipids","NC091"]
["Fragmented Picture Test","*FPT*"]
["Framingham Risk Assessment","*FRAM"]
["Frankfurter Self-Concept Scale FSK","*FSK*"]
["Fraser Single Dose Opiate Q","*FSDO"]
["Free and Cued Selective Reminding","*FCSR"]
["Free and Total Hydroxyproline","NC105"]
["Free Beta Chain hCG",84704]
["Free Testosterone",84402]
["Free Thyroxine",84439]
["Free Thyroxine Index","NC116"]
["Free Triiodothyronine",84481]
["Freezing Blood Unit, Each",86930]
["Freiburg Personality Inventory FPI","*FPI*"]
["French-American-British Class","*FABC"]
["Frontal Assessment Battery; FAB","*FAB*"]
["Frontal System Behavior Scale","*FSBS"]
["Fugl-Meyer Life Satisfaction","*FML*"]
["Fugl-Meyer Motor Assessment Scale","*FUGL"]
["Full Mouth X-Ray",70320]
["Function & Pain Asmt Interview","*FPAI"]
["Function & Pain Asmt Self-Reported","*FPA*"]
["Functional Assessment of MS","*FAMS"]
["Functional Assessment Staging FAST","*FAST"]
["Functional Disability Index","*FDI*"]
["Functional Independence Measure","*FIM*"]
["Functional Index-2, FI-2","*FIMU"]
["Functional Living Index - Emesis","*FLIE"]
["Functional Outcomes of Sleep Quest.","*FOSQ"]
["Functional Status","*QL23"]
["Functional Status Score","*FSS*"]
["Functional System (FS) Scale","*FUSS"]
["Functional/Activity Assessment","*FAA*"]
["Fundus Photography",92250]
["Fundus Photography, 7-Stand. Field","92250-A1"]
["Fundus Photography, Interp Only","92250-26"]
["Fungal Culture, Blood",87103]
["Fungal Culture, Other",87102]
["Fungal Culture, Skin/Hair/Nail",87101]
["Fungus Antibody",86671]
["G6PD; Quantitative",82955]
["G6PD; Screen",82960]
["Gait Velocity Heel to Toe Gait Test","*GTVL"]
["Galactose",82760]
["Galveston Orientation/Amnesia Test","*GOAT"]
["Gambling Task","*GAMB"]
["Gammaglobulin, Each",82784]
["Gammaglobulin; IgE",82785]
["Gas Dilution/Washout Lung Volume",94727]
["Gases, Blood, pH Only",82800]
["Gastric Acid, Each",82930]
["Gastric Emptying Imaging Study",78264]
["Gastric Intubat/Aspiration, Single",43754]
["Gastric Intubation, And Aspiration",43753]
["Gastric Manometry Study","N91020"]
["Gastric Secretory Study, Multiple",43755]
["Gastrin",82941]
["Gastro-esophageal Reflux QoL","*REFQ"]
["Gastroesophageal Reflux, Nasal Cath","N91034"]
["Gastroesophageal Reflux, Telemetry","N91035"]
["Gastrointestinal QoL Index (GIQLI)","*QL39"]
["Gastrointestinal Questionnaire","*GIQ*"]
["Gastrointestinal Toxicity Score","*GITS"]
["Gastroparesis Cardinal Sympt Index","*GCSI"]
["Gaucher Bone Assessments","*GCHA"]
["GDS Short Form Interview","*GDSI"]
["GDS Short Form Self-Reported","*GDSS"]
["Geboes Score Ulcerative Colitis","*GHAC"]
["General Health VAS [SELECT *QL65]","*VAGH"]
["General Health Well Being, QOL","*QL60"]
["General Obsessive Compulsive Scale","*GOCS"]
["General Urological Scale","*GUS*"]
["Generalized Anxiety Disorder-2","*GAD2"]
["Generalized Anxiety Disorder-7","*GAD7"]
["Generalized Locus Of Control Expect","*FKK*"]
["Genetics of Alcoholism, SSAGA-II","*SSGA"]
["Gentamicin, Any Source",80170]
["GEOPTE Scale of Social Cognition","*GSSC"]
["GERD HRQL","*GERD"]
["GERD Symp Quest In Young Child","*GSQY"]
["GERD Symptom Quest In Infants","*GSQI"]
["Geriatric Anxiety Inventory","*GAI*"]
["Geriatric Depression Scale (GDS)","*GEDS"]
["GERRI, Geriatric Eval of Relatives","*GERI"]
["Gesell Development Schedules (GDS)","*GDS*"]
["GI Blood Loss Imaging",78278]
["GI Endoscopic Ultrasound",76975]
["GI Intubation (Nose to Sm Intest)",74340]
["GI Symptom Rating Scale","*QL36"]
["Giebener Beschwerdebogen","*GBB*"]
["Gilliam Autism Rating Scale, GARS","*GAR*"]
["Gingival Index (GI)","*GINX"]
["GL-3 ELISA","EIA004"]
["Glascow Coma Scale - Motor Score","*GCSM"]
["Glasgow Coma Scale","*GCS*"]
["Glasgow Outcome Scale","*GOS*"]
["Glaucoma Disability Index, (GDI)","*GDI*"]
["Gleason Prostate Tumor Score","*GTS*"]
["Global Acne Grading System","*GARS"]
["Global Anxiety Scale","*GANX"]
["Global Asmt Disease Activity - Phys","*GADP"]
["Global Asmt Disease Activity - Subj","*GADS"]
["Global Asmt of Functioning Scale","*QL19"]
["Global Asmt of Study Med - Inv","*GAMI"]
["Global Asmt of Study Med - Subj","*GAMP"]
["Global Assess: Nursing Intervention","*GANI"]
["Global Assessment Of Hand Function","*GHF*"]
["Global Assessment Questionnaire","*GAQ*"]
["Global Assessment Scale","*GAS*"]
["Global Deterioration Scale (GDS)","*GDET"]
["Global Efficacy Assess Question.","*GEAQ"]
["Global Eval Efficacy Trtmnt - Phys","*PEET"]
["Global Eval Efficacy Trtmnt - Subj","*GEET"]
["Global Eye Assessment","*GEA*"]
["Global Fibromyalgia","*GFDQ"]
["Global Imp Perceived Diffic Inv","*GIPI"]
["Global Imp Perceived Diffic Parent","*GIPP"]
["Global Imp Perceived Diffic Patient","*GIPS"]
["Global Initiative For Asthma Gdlns","*GINA"]
["Global Patient Analgesia Satisfact","*GPAS"]
["Global Rating of Change Q (GRCQ)","*GRCQ"]
["Global Rating of Symptom Severity","*GRSP"]
["Global Response Scale","*GRS*"]
["Global Satisfaction w/ Med Scale","*GQSM"]
["Global Severity of Obsession","*GSOO"]
["Global Severity of Side Effects","*PGSE"]
["Global Therapeutic Impression Scale","*GTIS"]
["Global Ulcer Pain Control Q","*GUP*"]
["Global/Diagnostic Photographs","D0471"]
["Globulin","NC097"]
["Glucagon",82943]
["Glucagon Tolerance Test",82946]
["Glucose Tol Test; Add Spec 3+",82952]
["Glucose Tolerance Test; 3 Specimens",82951]
["Glucose, Any Source Other Than Bld","N82945"]
["Glucose; Blood, Reagent Strip",82948]
["Glucose; Post Glucose Dose",82950]
["Glucose; Quantitative, Blood",82947]
["Glutamate Dehydrogenase (GLDH)",82965]
["Glutamyltransferase, Gamma (GGT)",82977]
["Glutathione (GSH)",82978]
["Glutathione Reductase, RBC",82979]
["Glycated Protein",82985]
["Glycosylated Hemoglobin (HbA1c)",83036]
["GM-CSF","NC109"]
["GnRH Stimulation Panel",80426]
["Go/No-Go Test Cognitive Processing","*GONO"]
["Goal Attainment Scaling, GAS, GAtS","*GATS"]
["Goldman Functional Status","*GFS*"]
["Gonarthrosis Severity Index (GSI)","*GSI*"]
["Gonioscopy",92020]
["Gordon Diagnostic Procedure (GDS)","*GDIA"]
["Gottinger Alcohol Dependence Scale","*GABS"]
["Gout Flare Assessment","*GFA*"]
["Gout Impact Questionaire","*GAQI"]
["Gp160 Antibody","GP160"]
["Gracely Pain Scale","*GPS*"]
["Grading Criteria Atopic Dermatitis","*RLAD"]
["Graft Versus Host Disease Ass Grade","*GVHD"]
["Granulocyte/Neutrophil Resp Burst","NC134"]
["Gray Oral Reading Test, GORT-4","*GORT"]
["Griffith Mental Developmental Scale","*GMDS"]
["GRISS","*GRIS"]
["Groningen Sleep Questionnaire","*GSQ*"]
["Gross External Eye Exam Only","NC048"]
["Gross Motor Function Measure","*GMFM"]
["Group Psychotherapy",90853]
["Growth Hormone Stimulation Panel",80428]
["GRSS - Physician","*GRSI"]
["GSA Affective/Anxiety/Attentional","*GSA*"]
["GSRS-IBS Symptom Questionnaire","*QL38"]
["Guild Memory Test","*GMT*"]
["GUSTO Bleeding Classification","*GUST"]
["Gyn Exam & Phys Exam, Vitals",99208]
["Gynecological Exam w Pap Smear",99207]
["Gynecological Examination",99210]
["HAART Intrusiveness Scale","*HAAR"]
["Habits Questionnaire","*HABI"]
["Hachinski Scale Of Insanity","*HSI*"]
["Haemophilia Joint Health Score","*HJHS"]
["Haemophilia QoL Adult, HAEM-A-QOL","*HAEM"]
["Haemophilia QoL Child, HAEM-C-QOL","*HAEC"]
["Haemophilia QoL Parent, HAEM-P-QOL","*HAEP"]
["Haemophilus Influenza Antibody",86684]
["Hahnemann Orientation/Memory Exam","*HOME"]
["Hair Growth Questionnaire","*HGQ*"]
["Hamburg QOL Assess For MS (HAQUAMS)","*HQOL"]
["Hamburger Schmerz Adjective List","*HSAL"]
["Hamilton Anxiety Scale","*HAAS"]
["Hamilton Depression Scale 17","*HMD7"]
["Hamilton Depression Scale, HAM-D","*HMDS"]
["Hammersmith Function Motor Sc. Exp.","*HFMS"]
["Hand Eye Coordination Test","*HECT"]
["Hand Hygiene Functional Tasks","*HHFT"]
["Hand Muscle Testing",95832]
["Hand Range of Motion",95852]
["Hand X-Ray",73120]
["Hand X-Ray Interpretation Only","73120-26"]
["Hanifin and Rajka Atopic Dermatitis","*HRAD"]
["Hannallah Objective Pain Scale","*HOP*"]
["Haptoglobin; Quantitative",83010]
["HAQ - Disability Index, Interview","*HAQE"]
["HAQ - Disability Index, Self-Report","*HAQD"]
["Harris Rating Scale","*HRS*"]
["Harter Self Perception Profile","*HSPP"]
["Harvey-Bradshaw Index","*HBI*"]
["Hb Fractionation & Quantitation","N83021"]
["HBA1/HBA2 Gene Analysis",81257]
["HbA1C By Device For Home Use",83037]
["HCG Stimulation Panel; Testos Resp",80414]
["Head and Neck 35, QOL - H&N35","*QHN*"]
["Head and Neck Soft Tiss. Ultrasound",76536]
["Head MRA w/ Contrast",70545]
["Head MRA Without & With Contrast",70546]
["Head or Brain CT Scan w/ Contrast",70460]
["Head or Brain CT Scan w/o Contrast",70450]
["Head/Brain CT Interpretation Only","70450-26"]
["Head/Brain CT w/o Interpretation","70450-52"]
["Headache Impact Test, HIT-6","*HIT6"]
["Headache Pain Response","*HEAD"]
["Headache Relief Criteria, Migraine","*HRC*"]
["Headache Severity Rating","*ROSS"]
["Health And Work Performance Quest","*HPQ*"]
["Health Care Questionnaire","*QL56"]
["Health Economics Questionnaire","*HEQ*"]
["Health Related Productivity Q.","*HRPQ"]
["Health Resource Use Form","*HRU*"]
["Health Utilities Index 15Q","*QL98"]
["Health Utilities Index 40Q","*HU40"]
["Health Utility Thermometer, VAS/QOL","*HUT*"]
["Healthcare Res Util Quest","*HCRU"]
["Health-state Utility Assessment","*HSU*"]
["Hearing Handicap Inventory Adults","*HHIA"]
["Heart CT Scan w/ Contrast","0144T"]
["Heart Rate Deep Breathing","*HRDB"]
["Heartburn Symptom Severity Scale","*HSSS"]
["Heavy Metal, Qualitative",83015]
["Heavy Metal, Quantitative",83018]
["Heinrich Carpenter QLS","*QL40"]
["Heinz Bodies",85441]
["Helicobacter Pylori Antibody",86677]
["Hemagglutination Inhibition Test",86280]
["Hematocrit (Hct)",85014]
["Hemodialysis Procedure",90935]
["Hemodynamics w/ Facility Charge","NC033"]
["Hemoglobin (Hb)",85018]
["Hemoglobin (Hb); Plasma",83051]
["Hemoglobin (Hb); Urine",83069]
["Hemoglobin Electrophoresis",83020]
["Hemoglobin Electrophoresis/Sickle C","NC170"]
["Hemoglobin; F(fetal), Qualitative",83033]
["Hemoglobin; Fetal, Chemical",83030]
["Hemoglobin; Methemoglobin, Quant",83050]
["Hemogram (CBC Only)","85027-A1"]
["Hemogram (CBC) w/ Plate & Auto Diff",85025]
["Hemogram (CBC) w/ Plate. & Man Diff","NC114"]
["Hemogram (CBC) w/ Plate. & No Diff",85027]
["Hemolysins And Agglutinins; Auto",86940]
["Hemophilia Activities List","*HAL*"]
["Hemosiderin; Qualitative",83070]
["Hep B Surf Ab (HBsAb)",86706]
["Hep C Ab Confirmatory Test",86804]
["HepA Immunization",90632]
["Heparin Assay",85520]
["Heparin Lock","NC026"]
["Hepatic Function Panel",80076]
["Hepatitis A Antibody (HAAb)",86708]
["Hepatitis A Antibody, IgG","86708-A1"]
["Hepatitis A Antibody, IgM",86709]
["Hepatitis Activity Index","*HAI*"]
["Hepatitis B","NC140"]
["Hepatitis B Core Ab IgM (HBcAb IgM)",86705]
["Hepatitis B Core Antibody (HBcAb)",86704]
["Hepatitis B Genotyping",87912]
["Hepatitis B Surface Antigen (HBsAg)",87340]
["Hepatitis B Virus, Quantification",87517]
["Hepatitis B, Amplified Probe",87516]
["Hepatitis Be Antibody (HBeAb)",86707]
["Hepatitis Be Antigen (HBeAg)",87350]
["Hepatitis C Antibody (HCVAb)",86803]
["Hepatitis C Viral Load",87522]
["Hepatitis C Virus Genotype",87902]
["Hepatitis C, Amplified Probe",87521]
["Hepatitis Delta Agent Antibody",86692]
["Hepatitis Delta Agent Antigen",87380]
["Hepatobiliary Imaging Pharmacologic",78227]
["Hepatobiliary System Imaging",78226]
["HepB Immunization",90746]
["HepB-Hib Immunization",90748]
["Herpes Simplex Antibody",86694]
["Herpes Simplex Type 1",87274]
["Herpes Simplex Type 2",87273]
["Herson-Todd Score","*HTS*"]
["Herth-hope Index","*HHI*"]
["Heterophile Antibodies; Screening",86308]
["Hi Lo Imagery Test","*HILO"]
["Hib vaccine, PRP-T, IM",90648]
["Hierarchical Dementia Scale (HDS)","*HDS*"]
["High Density Cholesterol (HDL)",83718]
["High Resolution Chromosome Analysis",88289]
["High Resolution Fract & Quant of Lp",83701]
["High Resolution Fract & Quant Of Lp","NC090"]
["High Sensitivity C-reactive Protein",86141]
["Hill Top Patch Adhesion Score","*HTSE"]
["Hillside Akathisia Scale (HAS)","*HAS*"]
["Hip and Waist Measurement","*MEAC"]
["Hip Disability and OA Outcome Score","*HOPF"]
["Hip Disability Outcome Score HOOS","*HOOS"]
["Hip Involvement Eval Ankylosing Sp.","*HIP*"]
["Histamine",83088]
["Histochem to ID Enzyme Constit.",88319]
["Histoplasma Capsulatum Antigen",87385]
["Histoplasmosis Skin Test",86510]
["HIV Ab Confirmation (Western Blot)",86689]
["HIV-1 & HIV-2 Ab Single Assay",86703]
["HIV-1 Antibody",86701]
["HIV-1 Antigen",87390]
["HIV-1 Genotype",87901]
["HIV-1 Genotyping,",87906]
["HIV-1 Phenotype w/ Drug Resistance",87903]
["HIV-1 Viral Load",87536]
["HIV-1 w/ Drug Resistance each Addl",87904]
["HIV-2 Antibody",86702]
["HIV-2 Viral Load",87539]
["HLA A, B and/or C; Multiple Ag",86813]
["HLA A, B or C; Single Ag",86812]
["HLA Class I typing, One Locus",81373]
["HLA DR or DQ, Single Ag","N86816"]
["HLA DR/DQ, Multiple Ag",86817]
["HLA I & II One Antigen Equivalent",81374]
["HMD7 [SELECT *HMD7]","*IHMD"]
["HMW Kininogen Assay",85293]
["Holter Monitor Hook-up",93225]
["Holter Monitor Physician Review",93227]
["Holter Monitoring, up to 48 hours",93224]
["Home Glucose Monitoring",82962]
["Homocysteine (Homocystine, HCy)",83090]
["Homovanillic Acid (HVA)",83150]
["Hoogland and Skouby Grading Scale","*HSOG"]
["Hopelessness Scale","*HOPS"]
["Hopkins Symptom Checklist","*HSC*"]
["Hopkins Verbal Learning Revised","*HVLR"]
["Hopkins Verbal Learning Test","*HVLT"]
["Hormone Panel","NC102"]
["Hospital Anxiety & Depression Scale","*QL67"]
["Hospital Headache Disability Invent","*HFHH"]
["Hot Flush Questionnaire","*HFQ*"]
["HPC B. Marrow Autologous Transplant",38241]
["HPV 16 18 (45 if Performed) by PCR",87625]
["HPV High-Risk Types by PCR",87624]
["HPV Immunization",90649]
["HPV Low-Risk Types by PCR",87623]
["HTLV-I Antibody",86687]
["HTLV-II Antibody",86688]
["Human Anti Streptavidin AB Level","*HASA"]
["Human Antihamster Antibody Level","*HAHA"]
["Human Anti-humanized Ab HAHA ELISA","EIA016"]
["Human Antimouse Antibody HAMA ELISA","EIA015"]
["Human Growth Hormone (HGH)",83003]
["Human Growth Hormone Antibody",86277]
["Human Papillomavirus (HPV)","88365-A1"]
["Human TAT III Complex ELISA","EIA006"]
["Humerus X-Ray",73060]
["Hunger & Satiety VAS [SELECT *QL65]","*VASH"]
["Hunt-hess Scale","*HHS*"]
["Huntington\u0092s Disease QoL, HD-QoL","*HDQL"]
["Hurley Stage","*HURL"]
["Hydroxycorticosteroids, 17-",83491]
["Hydroxyindolacetic Acid, 5-(HIAA)",83497]
["Hydroxyprogesterone, 17-D",83498]
["Hydroxyproline; Free",83500]
["Hydroxyproline; Total",83505]
["Hyperinsulinemia Euglycemic Clamp","NC099"]
["Hypertonia Assessment Tool","*HAT*"]
["Hypervitaminosis A Tolerance Scale","*HATS"]
["Hypoglycemia Questionnaire","*HPGQ"]
["Hypoglycemic Fear Survey, HFS-98","*HFS*"]
["Hypoxia Response Curve",94450]
["Hysterectomy After Cesarean Section",59525]
["Hysterectomy, Total Abdominal",58150]
["Hysterosalpingography",74740]
["Hysteroscopy w Endometrial Ablation",58563]
["IASLC 1989 Criteria (Lung Cancer)","*IASL"]
["IASP Criteria","*IASP"]
["IBDQ 32-Item Self-Report","*QL37"]
["IBDQ Interview (inflammatory Bowel)","*IBDI"]
["IBDQ-Short Version Interview","*IBSI"]
["IBDQ-Short Version Self-Reported","*IBSS"]
["IBM Research Diagnostic Criteria","*IBM*"]
["ICD Analysis incl Interrogation",93724]
["ICDRG, Dermatitis Scale","*ICDR"]
["ICIQ-MLUTSsex","*ICIM"]
["ICIQ-SF (WHO- Incontinence)","*ICIQ"]
["Iconic Memory Test","*IMT*"]
["Ideational Praxis","*IDEP"]
["IDS-C","*IDSC"]
["IDS-SR","*IDSS"]
["IFN-Gamma, Synovial Fluid/Membrane","*SIFL"]
["I-GERQ-R","*IGER"]
["IgF Binding Protein 1 RIA","RIA007"]
["IgF Binding Protein 3 RIA","RIA004"]
["IGH Mutation Analysis",81263]
["IHC Each Additional Antibody",88341]
["IHS Criteria for Migraine","*IHS*"]
["IKDC- Physician Eval","*IKDC"]
["IKDC-Subjective Knee Eval","*IKDS"]
["IL-1, Interleukin-1 ELISA","EIA017"]
["IL-10 Antibody, IL10 Ab, Cytokine","*ILAB"]
["IL-10, Interleukin-10 ELISA","EIA018"]
["IL-1B, Interleukin-1B ELISA","EIA019"]
["IL-1RA, Interleukin-1RA ELISA","EIA020"]
["IL-2, Interleukin-2 ELISA","EIA021"]
["IL-2R, Interleukin-2 Receptor ELISA","EIA022"]
["IL-4, Synovial Fluid/Membrane","*SIFN"]
["IL-6, Interleukin-6 ELISA","EIA023"]
["IL-8, Interleukin 8, Sputum, Cytoki","*IL8S"]
["IL-8, Interleukin-8 ELISA","EIA024"]
["ILAR JIA Criteria","*ILAR"]
["IMF, Per Specimen; Addt'l Ab Stain",88350]
["IMF, Per Specimen; Initial Ab Stain",88346]
["Immediate Word Recall (IWR)","*IWR*"]
["Immune Complex Assay",86332]
["Immunoassay for Inf Agent Ab, Qual",86318]
["Immunoassay for Inf Agent Ab, Quant",86317]
["Immunoassay Tumor Antigen",86294]
["Immunodiffusion, Not Elsewhere Spec",86329]
["Immunoelectrophoresis; Other Fluids",86325]
["Immunoelectrophoresis; Serum",86320]
["Immunofixation Electrophoresis, Oth","N86335"]
["Immunofixation Electrophoresis, Ser",86334]
["Immunofluorescent Culture Typing",87140]
["Immunoglobulin Subclasses, Each",82787]
["Immunohistochemistry, Initial Ab",88342]
["Immunohistochemistry; Comp-Assist",88361]
["Impact of Diarrhea Questionnaire","*IDQ*"]
["Impact of Events Scale","*IOES"]
["Impact of School Refusal on Parents","*ISRP"]
["Impact of Skin Reaction","*ISRQ"]
["Impact of Weight Self-Perception","*IWSP"]
["IMPACT-III Questionnaire","*IMPA"]
["Impairment Disability Scale (IDS)","*IDS*"]
["impl. Defib Interrog Eval w interim",93295]
["Implantable Contraceptive Removal",11976]
["Implantation of Intravitreal DDS",67027]
["Impulsive-Compulsive DO Q., QUIP","*QUIP"]
["In Situ Hybridization Init. Probe",88365]
["Incision & Drainage of Abscess",10060]
["Inclusion/Exclusion Criteria","*INEX"]
["Incontinence Impact Q, QOL","*QL70"]
["Incontinence QOL Quest. (I-QOL)","*IQOL"]
["Independ. & Self-Confid. Quest.","*ISC*"]
["Independent Mobility Q., IMQ","*IMQ*"]
["Index of Premature Ejaculation","*IPE*"]
["Indicator Dilution for Cardiac Out.",93561]
["Indirect Calorimetry",94690]
["Indirect Coombs Test",86886]
["Indirect, Qualitative Coombs Test",86885]
["Individual Pt Educational Services","NC087"]
["Individualized Neuromuscular QoL","*INQL"]
["Indocyanine-Green Angiography",92240]
["Inf Agent Ag by EIA, Multiple Step",87449]
["Inf Agent Ag by EIA, Single Step",87450]
["Infant-Toddler Quality of Life","*ITQL"]
["Infect Agent Detect, Each Amplified",87798]
["Infect Agent Detect, Each Direct",87797]
["Infect Agent Detect, Each Quant",87799]
["Infect Agent Drug Suscept Phenotype",87900]
["Infect Antigen Detect, Optical Obs",87899]
["Inflam Neuropath Cause&Tx Criteria","*INCA"]
["Influenza A/B, Each Quan/Multi-Step",87400]
["Influenza Immunoassay Optical Obs",87804]
["Influenza Symptom Score","*INSS"]
["Influenza Virus Antibody",86710]
["Informed Consent Process","*INCO"]
["Informed Consent: Pediatrics","*PNCO"]
["Ingestion Challenge Test >120 min",95076]
["Inhal Bronch Challenge: Ag or Gases",95071]
["Inhal Bronch Challenge: Histamines",95070]
["Inhalation for Acute Airway Obstr",94640]
["Inhibin A",86336]
["Inhibin B ELISA","EIA013"]
["Ini Phys & Vitals Only (Inf-17 yrs)","*3323-PD"]
["Init Phys Exam & Vitals Only","*3323"]
["Initial Gyn & Phys Exam, Vitals",99206]
["Initial History (Infants-17 yrs)","*3322-PD"]
["Initial History Only","*3322"]
["Initial Hospital Care; History/Phys",99221]
["Initial Neuro & Phys Exam, Vitals",99227]
["Initial Ventilator Management",94656]
["Initial Visit (Infants-17 yrs)","99205-PD"]
["Initial Visit w Hist, Phys & Vitals",99205]
["Injection Duration/Time","*IDUR"]
["Injection Push Single/initial Subst",96374]
["Injection Site Pain Scale","*ISPS"]
["Injection Site Reaction Scale","*ISRS"]
["Injection Subcutaneous/Intramuscula",96372]
["Inotrope Score","*INOT"]
["Inpatient Physical Exam, Vitals",99231]
["Inpatient Physical Infants-17 years","99231-PD"]
["Inpatient Vitals",99209]
["Inpatient Vitals (Infants-17 years)","99209-PD"]
["INR","NC108"]
["Insanity Scale (GBS)","*GSBI"]
["Insert Central Ven Cath w/ Sc Pump",36561]
["Insert Central Ven Cath w/o Sc Pump",36558]
["Insert PICC w Sc Port",36571]
["Insert PICC w/o Sc Pump",36569]
["Insertion of Intraocular Lens",66985]
["Insertion/Repl. of Transvenous ICD",33249]
["Insight and Treatment Attitudes Q","*ITAQ"]
["Inspiratory Flow Meter",94664]
["Insulin Antibodies",86337]
["Insulin Delivery System Quest","*IDSQ"]
["Insulin Tolerance Test","NC094"]
["Insulin; Free",83527]
["Insulin; Total",83525]
["IntegNeuro: Comput. Battery Tests","*INEU"]
["Intention/Interest Quit Smoking VAS","*IIQ*"]
["Intermed Joint/Bursa Arthrocentesis",20605]
["Intermittent Claudication Question.","*COM*"]
["Intermittent/Constant OA Pain ICOAP","*ICOP"]
["Internal Carotid Angiography",36224]
["Internal Fetal Monitoring",59050]
["Internal States Scale","*ISS*"]
["Internat Index Erectile Function","*IIEF"]
["International Class Sleep Disorders","*ICSD"]
["International Continence Society Q","*ICS*"]
["International Prognastic Index; IPI","*IPI*"]
["Interph In Situ Hybr, 100-300 Cells",88275]
["Interph In Situ Hybrid, 25-99 Cells",88274]
["Interrog. Transvenous Defibrilator",93289]
["Interrogation Eval Pacemaker",93288]
["Interrogation Eval Wearable Defibri",93292]
["Interrogation S-ICD",93261]
["InterSePt Scale - Blinded Psych.","*ISBP"]
["InterSePt Scale - Principal Inv.","*ISPI"]
["InterSePt Scale - Short Form","*ISSF"]
["Interstitial Cystitis Problem Index","*ICPI"]
["Interstitial Cystitis Symptom Index","*ICSI"]
["Intestine Imaging",78290]
["Intl Heart/Lung Transplant Grading","*ISHL"]
["Intl Index Erectile Function Short","*IIE5"]
["Intl Index of Ejaculatory Control Q","*IIEC"]
["Intl Myeloma Working Group Criteria","*IMWG"]
["Intl Standard Class. Occupations","*ISCO"]
["INTMD Density Lipoproteins U. Chem.","UC002"]
["Intra-Abdominal Voiding Pressure",51797]
["Intracardiac Mapping",93654]
["Intracellular Cytokine Stain. FACS","FC014"]
["Intracranial Pressure Catheter ICP",62160]
["Intracutaneous Allergenic Testing",95024]
["Intralesional Inj. 7+ Lesions",11901]
["Intralesional Inj. Incl. 7 Lesions",11900]
["Intranasal Maxillary Sinusotomy",31020]
["Intrauterine Embryo Transfer",58974]
["Intra-Uterine Insemination",58322]
["IntraVaginal Ejaculat. Latency Time","*IELT"]
["Intravitreal Injection",67028]
["Intrinsic Factor Antibodies",86340]
["Inulin Any Source","PD026"]
["Inv Assessment Questionnaire; IAQ","*IAQ*"]
["Inv Gastrointestinal Symptom Ass","*IGIS"]
["Inv Perception Double Blind Assignm","*CPBQ"]
["Inv Quest on Device Acceptability","*IQDA"]
["Investigator Assess. of Hair Loss","*IAHL"]
["Investigator Derived Strength Ass","*MSGS"]
["Investigator Eval of Acceptability","*INEA"]
["Investigator Preference Quest","*IPQ*"]
["Investigator Static Global Ass","*ISGA"]
["Iowa Conners' Rating Scales","*ICRS"]
["IPSS Questionnaire","*IPSS"]
["IPV Immunization",90713]
["IQ-PANSS","*IQPA"]
["IRLS Group Rating Scale","*IRLS"]
["IRLSSG Criteria","*IRLC"]
["Iron (Fe)",83540]
["Iron And Iron Binding Capacity","NC093"]
["Iron Binding Capacity (IBC)",83550]
["Irritability/Depression/Anxiety Sc.","*IDAS"]
["Irritable Bowel Syndrome Criteria","*IBSD"]
["Irritable Bowel Syndrome QoL","*IBSQ"]
["Isaac's Set Test (Memory Test)","*ISMT"]
["Ishak Fibrosis Score","*IFS*"]
["Islet Cell Antibody",86341]
["Isotope Infusion",77750]
["ISTH Bleeding Classification","*ISTH"]
["Itch VAS [SELECT *QL65]","*IVAS"]
["IUAT Bronchial Symptoms Q","*BSQ*"]
["IV Infusion Each Additional Hr",96366]
["IV Infusion up to 1 hour",96365]
["IV Infusion, 8 hr, Phys Monitored","NC052"]
["IV Line Insertion",36000]
["IVRS Registration","*IVRS"]
["IVUS w. Radiological SUPV/Interp.",37252]
["IWQOL","*QL72"]
["IWQOL-Lite","*IWQL"]
["JAK2V617F Gene Analysis",81270]
["JAMAR, Juvenile Arthritis","*JAMA"]
["Jebsen-Taylor Hand Function Test","*JEBS"]
["Jeltrate Mold of Target Ulcer","*MOLD"]
["JIA Disease Activity Score","*JADA"]
["Jnt British Soc Cor Risk Pred Chart","*JBSC"]
["Joint Tenderness, Warmth & Swelling","*JTWS"]
["Jouvent Depressive Mood Scale","*JDMS"]
["Juvenile Arthritis QoL, JAQQ","*JAQQ"]
["Kansas City Cardiomyopathy Quest.","*KCC*"]
["Kaplan-Feinstein Comorbidity Index","*KFI*"]
["Kaposi's Sarcoma Staging Criteria","*KPSC"]
["Karolinska Sleep Log","*KSL*"]
["Katz Activities of Daily Living","*ADLK"]
["Katz Hand Symptom Diagram Test","*KATZ"]
["Kaufman Test Educational Achievemnt","*KTEA"]
["Kaufmann Brief Intelligence Test","*KBIT"]
["KDQ Self-Reported","*KDQ*"]
["KDQOL Interview","*KDQI"]
["KDQOL-SF Interview, 80-Item","*KDSI"]
["KDQOL-SF Self-Reported","*KDSF"]
["Kelikian Push-up Test Foot Rigidity","*KPFR"]
["Kellgren/Lawrence Grading Scale OA","*KLGS"]
["Kellner Illness Attitude Scale","*KIAS"]
["Kellner Symptom Questionnaire","*KSQ*"]
["Keratometry","NC049"]
["Ketogenic Steroids, Fractionation",83582]
["Ketosteroids, 17- (17-KS); Total",83586]
["Kiddie-PANSS","*KIDY"]
["Kidney Dis Outcomes Qlty Initiative","*KDOQ"]
["Kidney Disease Quality of Life","*KDQL"]
["Kidney Function Study, Non-Imaging",78725]
["Kidney Imaging Function w Drug",78708]
["Kidney Imaging Function w/o Drug",78707]
["Kidney Symptom Index FKSI-15","*FKSI"]
["Kidney Transplant Q (KTQ), QOL","*QL54"]
["KIDSCREEN-27","*KS27"]
["Killip Classification Heart Failure","*KIL*"]
["KINDL Parent rated","*KNDP"]
["KINDL Self-Reported","*KNDL"]
["Kings Health Questionnaire, QOL","*KING"]
["Knee Arthrography",73580]
["Knee Arthrotomy - Synovial Biopsy",27330]
["Knee Injury and OA Outcome Score","*KOPS"]
["Knee Injury Outcome Score KOOS","*KOOS"]
["Knee Pain Standing/Walking/on Stair","*PWB*"]
["Knee Society Clinical Rating System","*KSS*"]
["Knee X-Ray",73564]
["Knee X-Ray, 1 or 2 Views",73560]
["Knee X-Ray, Three Views",73562]
["KRAS Gene Analysis",81275]
["K-SADS-P, KIDDIE-SADS","*KSAD"]
["K-SADS-PL","*KPLA"]
["K-SADS-PL","*KPLF"]
["K-SADS-PL Anxiety Disorders Supp.","*KPLX"]
["K-SADS-PL Behavioral Disorders Supp","*KPLB"]
["K-SCT Parent","*SCTP"]
["K-SCT Teacher","*SCTT"]
["K-SCT Youth","*SCTY"]
["Kupperman Index (menopausal)","*KUPP"]
["Kutcher Adolescent Depression Scale","*KADS"]
["Kutzke Functional Systems Score","*KFS*"]
["LA Classification of Esophagitis","*LACE"]
["Lactate (Lactic Acid)",83605]
["Lactate Dehydrogenase (LD, LDH)",83615]
["Lactate Dehydrogenase Enzymes Assay",83625]
["Lactoferrin, Fecal; Quantitat",83631]
["Lafayette Grooved Pegboard","*LGP*"]
["Laparoscopic Cholecystectomy",47562]
["Laparoscopic Vaginal Hysterectomy",58550]
["Laparoscopy w/ Apsir. Cavity/Cyst",49322]
["Laparoscopy w/ Biopsy",49321]
["Laparoscopy w/ Fulguration/Oviducts",58670]
["Late Radiation Morbidity Score Schm","*RTEO"]
["Lattice System Psoriasis Score","*LSGP"]
["Lawton and Brody Instrumental ADL","*ADLL"]
["LCSS - Observer & Patient Scales","*QL69"]
["LCSS - Observer Scale","*LSSO"]
["LCSS - Patient Scale","*LSSP"]
["Lee and White Clotting Time",85345]
["Leeds Analog Rating Scale (LARS)","*LARS"]
["Leeds Sleep Evaluation Quest.","*LSE*"]
["Left Heart Cath w/ Sel Angiography","NC079"]
["Left Heart Catheterization",93452]
["Legionella Antibody",86713]
["Legionella Urinary Antigen","87449-A1"]
["Lehman QoL Impact Chronic Mental Il","*LEH*"]
["Leiter Attention and Memory Only","*LEIT"]
["Leptin ELISA","EIA007"]
["Lequesne Algo-Functional Index","*LAFI"]
["Lesion Score","*LESS"]
["Letter Cancellation Test","*LECT"]
["Letter Word Identification Subtests","*LWIR"]
["Letter-Number Span Test","*LNST"]
["Leucine Aminopeptidase, LAP",83670]
["Leukapheresis/Therapeutic Apheresis",36511]
["Leukocyte (WBC) Count",85048]
["Leukocyte Activ. Killer Cell React","*LAK*"]
["Leukocyte Antibody Identification",86021]
["Leukocyte Histamine Release Test",86343]
["Leukocyte Phagocytosis",86344]
["Leukocyte Transfusion",86950]
["Leukotrienes ELISA","EIA008"]
["Lev Of Function Scale (SLOF Scale)","*SLOF"]
["Level III - Surgical Pathology",88304]
["Level IV Surgical Pathology",88305]
["Level V Surgical Pathology",88307]
["Levels Of Attribution & Change Scal","*LAC*"]
["Levi Scale, Paresthesia Evaluation","*LEVI"]
["Levodopa-Induced Symptom Checklist","*LISC"]
["Lidocaine (Xylocaine), Any Source",80176]
["Liebowitz Social Phobia Scale","*LSPS"]
["Life Chart","*LCT*"]
["Life History of Impulsive Behavior","*LHIB"]
["Life Orientation Test (LOT)","*LOT*"]
["Life Satisfaction Q Hypopituitarism","*QLSH"]
["Life Sexual Behavior Schedule","*LSBS"]
["Life Style Questionnaire","*LSQ*"]
["LIFE-RIFT","*LIRI"]
["Lifetime Self-Destructiveness Scale","*LSDS"]
["Limb Function Scale","*LFS*"]
["Limit. Transthoracic Echocardiogram",93308]
["Linear Analog Rating Scale (LARS)","*LINR"]
["Lipase",83690]
["Lipid Profile",80061]
["Lipid Profile II","NC031"]
["Lipoprotein (a); Lp(a)",83695]
["Lipoprotein Electrophoresis","N83700"]
["LiSat-11 Scale","*LISA"]
["Lithium, Any Source",80178]
["Lithotripsy",50590]
["Liver Biopsy, Percutaneous Needle",47000]
["Liver Elastography (FibroScan)",91200]
["Liver Imaging (SPECT)",78205]
["Liverpool Seizure Severity Scale","*LSSS"]
["Living W Chronic Hepatitis C Q, QOL","*QL08"]
["Living with Pulmonary Hypertension","*LPH*"]
["Locke-Wallace Marital Adjustmt Test","*LWMA"]
["Logical Memory Stories for Children","*LMS*"]
["Longitudinal Interval Follow-up Eva","*LIFE"]
["Lorenzo Pictorial Rating Scale","*LPR*"]
["Low Blood Sugar Survey LBSS","*LBSS"]
["Low Density Cholesterol (LDL)",83721]
["Lower Extremity CT Angiography",73706]
["Lower Extremity CT Scan",73700]
["Lower Extremity CT Scan w Contrast",73701]
["Lower Extremity CT Scan, Scan Only","73700-52"]
["Lower Extremity Joint MRI",73721]
["Lower Extremity Joint MRI Interpret","73721-26"]
["Lower Extremity Joint MRI W/o I/R","73721-52"]
["Lower Extremity MRA",73725]
["Lower Extremity MRI",73718]
["Lower Facial Shape Class. Inv.","*LFSI"]
["Lower Facial Shape Class. Subject","*LFSS"]
["Lower Urinary Tract Symptoms GAQ","*LUGA"]
["Lp-Associated Phospholipase A2",83698]
["LPS-ADHD-R: Inv. Rated","*LPSI"]
["LPS-ADHD-R: Parent Rated","*LPS*"]
["LRTI Severity Ass (Tract Infection)","*LRIS"]
["Ludwig/Savin Scale Classification","*LSC*"]
["Lumbar Spine CT Scan w/o Contrast",72131]
["Lumbar Spine MRI",72148]
["Lumbosacral Spine X-Ray",72110]
["Lupus Anticoagulant Screen","NC110"]
["Lupus Quality of Life Questionaire","*LQOL"]
["Luteinizing Hormone (LH)",83002]
["Lyme Disease Antibody",86618]
["Lyme Disease Confirmatory Test",86617]
["Lyme Disease Immunization","NC165"]
["Lymphocyte Proliferation",86353]
["Lymphocyte Tissue Culture",88230]
["Lymphocytotoxicity Assay",86805]
["M Falls Efficacy Scale, MFES-I","*MFES"]
["M Scale (Part of ARCI)","*MSCA"]
["M.D. Anderson Symp Inv","*MDAS"]
["MA Gen Hosp Antidepressant Tx Resp","*MATR"]
["MacArthur SES Ladder","*MSES"]
["Macrophotography, Photomacrography","D0472"]
["Macroscopic Examination; Parasite","N87169"]
["Magical Ideation Scale","*MAGI"]
["Magnesium (Mg); Any Source",83735]
["Magnesium (Mg); Urine","83735-UR"]
["Magnetic Resonance Spectroscopy",76390]
["Maier & Phillip Severity Subscale","*MPSS"]
["Major Depression Disorder Checklist","*MDDC"]
["Major Joint/Bursa Arthrocentesis",20610]
["Male Sexual Function - 4; MSF-4","*MSF4"]
["Mania/Hypomania Assessment/Q","*MHA*"]
["Manic State Rating Scale (MSRS)","*MSRS"]
["Manic Syndrome Scale (MSS)","*MSS*"]
["Mannheimer Peritonitis Index","*MPI*"]
["Manual Ability Classification Systm","*MACS"]
["Manual Cell Count, Each",85032]
["Manual Differential Buffy Coat",85009]
["Manual Home Vital Signs","NC172"]
["Manual Tender Point Survey; MTPS","*MTPS"]
["Mapping of Tachycardia",93609]
["Market Research Questionnaire","*MKTQ"]
["Marks' Fear Questionnaire (MFQ)","*MAFQ"]
["Marks-Sheehan Phobia Scale","*MSPS"]
["MASC","*MASC"]
["MASC-10","*MASS"]
["Mass. Gen. Hosp. Sexual Functioning","*MSFQ"]
["Masseter Muscle Prominence Scale","*MMT*"]
["Math Test","*MATH"]
["MATRICS Consensus Cognitive Battery","*MCCB"]
["Mattis Scale","*MATT"]
["Maxillary Sinus Lavage",31000]
["Maxillofacial CT Scan w/o Contrast",70486]
["Maximum Breathing Capacity","N94200"]
["Maximum Knee Flexion (Degree meas)","*FLEX"]
["Maximum Pain Intensity/Relief","*MPRI"]
["Mayo Clinical Score, Rectal, PGA","*MCSA"]
["Mayo Motor Exam","*MME*"]
["Mayo Risk Score, Mortality","*MMRS"]
["Maze Negotiation","*MAZE"]
["McGill Pain Questionnaire","*QL76"]
["McMaster Asthma QoL Interview","*AQLI"]
["McMaster Health Utilities Index","*MHUI"]
["MDASI - Interview","*MDAI"]
["MDASI-BT Self-Reported","*MDAB"]
["MDD Semistructured Interview","*MDSS"]
["MDQ Section III","*MDQ3"]
["Mean Sleep Interference Score","*MSIS"]
["Meases-Stanley Four Glass Test","*FGT*"]
["Measurement of Ulcer Surface Area","*MUSA"]
["Medflicts Dietary Assessment Q","*MDAQ"]
["Median-Ulnar Temperature Diff (TOY)","*TEMP"]
["Mediastinoscopy w Lymph Node Biopsy",39402]
["Medical Outcomes SF-36; MOS SF-36","*SF36"]
["Medical Outcomes Study-Sleep Scale","*MOSS"]
["Medical Preference Questionnaire","*MPQ*"]
["Medical Research Council Sum Score","*MRCS"]
["Medical Resource Questionnaire","*MRQ*"]
["Medical Resource Utilization","*MRU*"]
["Medication Adherence Questionnaire","*MAQ*"]
["Medication Adherence Self Rept. Inv","*MASR"]
["Medication/Device Utilization Q.","*MUQ*"]
["Mehrfach Vocabulary Test (MWT-B)","*MWTB"]
["Meibomian Glands Evacuation","0207T"]
["Melancholia Scale for Depression","*MES*"]
["Memorial Pain Assessment Card","*MPAC"]
["Memorial Symptom Ass Scale","*MSAS"]
["Memory Complaints Questionnaire","*MCQ*"]
["Meningococcal Conjugate Immuniz.",90734]
["Meningococcal Immunization",90733]
["Menopausal Symptoms Checklist","*MSC*"]
["Menopause Rating Scale; MRS","*MRSQ"]
["Menstrual Pictorial Blood Loss","*MPBL"]
["Mental Arithmetic Task","*MAT*"]
["Mental Haenszel Behavior Scale","*MHBS"]
["Mental Health Inventory-17","*MHI1"]
["Mental Status Ass Qureshi/Hodkinson","*MEST"]
["Mental Stress Test","*MST*"]
["Mephenytoin, Any Source","80299-A2"]
["Mercury, Quantitative",83825]
["MESS Self-Reported","*MESS"]
["MESSY Rating Scale Social Skills","*MESY"]
["Mesulam Verbal Cancellation Test","*MVCT"]
["Metamorphosia Questionnaire","*META"]
["Metanephrines",83835]
["Methadone",80358]
["MG Activities of Daily Living Scale","*MGDL"]
["MGFA Postintervention Status","*MGFA"]
["MGH Hairpulling Scale","*MGH*"]
["MGH-Cog & Phys Functioning","*CPFQ"]
["MHC Tetramer Assay FACS","FC013"]
["MHI-21, Mental Health Index-21","*MHI*"]
["Michigan Alcohol Screening Test","*MAST"]
["Michigan Alcoholism Test (MALT)","*MALT"]
["Michigan Diabetic Neuropathy Score","*MDNS"]
["Michigan Neuropathy Screening Inst.","*MNSI"]
["Microarray Copy Number SNP Variants",81229]
["Microdissection Manual",88381]
["Microsatelite Instability Analysis",81301]
["Micturition History Q, MCHX","*MCHX"]
["Micturition Questionniare","*MICT"]
["Migraine Background Questionnaire","*MBQ*"]
["Migraine Disability Questionnaire","*MIDA"]
["Migraine Impact Questionnaire","*MIQ*"]
["Migraine Specific QoL Questionnaire","*MSQ*"]
["Migraine Symptom Assessment","*MSA*"]
["Migraine Work Loss & Productivity Q","*MWLP"]
["Min Data Set Nursing Home Resident","*MDS*"]
["MINI - Depression Component Only","*MIND"]
["MINI GAD Module Only","*MGAD"]
["Mini International Neuropsych Int.","*MINI"]
["MINI-AQLQ","*MAQL"]
["Mini-mental State Examination","*MMSE"]
["MINIMULT, Psychological Test","*MNML"]
["Mininutritional Assessment, MNA","*MNA*"]
["Minnesota Multiphasic Personality","*MMPI"]
["Minnesota Nicotine Withdrawal Scale","*MNWS"]
["Minor Symptom Eval Profile, QOL","*QL13"]
["MIPI","*MIPI"]
["Mirror Tracing Task, MTT","*MTT*"]
["Mississippi Scale for PTSD","*MSFP"]
["Mixed Lymphocyte Culture",86821]
["MMP-2 ELISA","EIA025"]
["MMP-3 ELISA","EIA026"]
["MMP-9 ELISA","EIA027"]
["MMR Immunization",90707]
["MMRC Dyspnea Scale","*MMRC"]
["MMRV Immunization",90710]
["MN Impulsive Disorder Interview; MI","*MIDI"]
["MN Living w Heart Failure QoL MLHFQ","*QL11"]
["Mobile Cardiovascular Telemetry","N93228"]
["Mobility Inventory for Agoraphobia","*CMIA"]
["MOCART Score","*MOCT"]
["Mod Brief Pain Inv - Short Form","*MBPI"]
["MOD Norwood/Hamilton Class/Scale","*MNHC"]
["Mod Ordinal Scale Psycholog Develop","*MOSP"]
["Mod RLS Rating Scale For Severity","*IRMS"]
["MOD- score, Marshall","*MOD*"]
["MOD Yale Physical Activity Survey","*YPAS"]
["Moderate Sedation Each ADDL 15 min",99153]
["Moderate Sedation Init 15 Min <5yrs",99151]
["Moderate Sedation Init 15 Min 5+yrs",99152]
["Modified ADAS-Cog incl ADAS-Cog MCI","*ADSM"]
["Modified AIMS Scale w Videography","*AIVD"]
["Modified Cigarette Eval, mCEQ","*MCEQ"]
["Modified Cincinnati Knee Rating Sys","*MKRS"]
["Modified FACT-L Interview","*MFCL"]
["Modified FACT-L, Self-Reported","*QL64"]
["Modified Fatigue Impact Scale","*MFIS"]
["Modified Hachinski Ischemic Score","*HSKI"]
["Modified Himmelsbach Rating Scale","*HIM*"]
["Modified Ischemia, Ischaemia Scale","*MIS*"]
["Modified Krieg Intubation Score","*MKIS"]
["Modified Lung Injury Score","*MLI*"]
["Modified Moos Menstrual Distress Q","*MMDQ"]
["Modified Nursing Care Ass. Scale","*NCAS"]
["Modified Ramsay Scale (MRSS)","*MRAS"]
["Modified Rankin Scale","*RANK"]
["Modified Rodnan Skin Score, MRSS","*RDSS"]
["Modified Rush Sexual Inventory","*MRSI"]
["Modified Tardieu Scale","*MTAR"]
["Modified Total Neuropathy Score","*MTNS"]
["Modified Venous Tolerability Eval","*MRSS"]
["Molecular DNA Probe, Each",88271]
["Molecular Pathology Procedure, LVL1",81400]
["Molecular Pathology Procedure, LVL2",81401]
["Molecular Pathology Procedure, LVL3",81402]
["Molecular Pathology Procedure, LVL4",81403]
["Molecular Pathology Procedure, LVL5",81404]
["Molecular Pathology Procedure, LVL6",81405]
["Molecular Pathology Procedure, LVL6",81408]
["Molecular Pathology Procedure, LVL7",81406]
["Molecular Pathology Procedure, LVL8",81407]
["Montgomery Asberg Depression Scale","*MADS"]
["Montreal Cognitive Assessment MOCA","*MOCA"]
["Mood & Feeling Questionnaire (MFQ)","*MFQ*"]
["Mood & Physical Symp In Depression","*MAPD"]
["Mood Disorders Questionnaire","*MDQ*"]
["Mood Rating Scale","*MRS*"]
["Mood VAS [SELECT *QL65]","*VISM"]
["Morisky-Green Questionnaire","*MGQ*"]
["Morning Stiffness Duration/Severity","*DMSS"]
["Morningness-Eveningness Q","*MEQS"]
["Morphomet Anal, In Situ Hyb. Manual",88368]
["Morphometric Analysis, In Situ Hyb.",88367]
["Morphometric Analysis; Nerve",88356]
["Mortality Probability Model","*MPM*"]
["MOS Cognitive Function Scale","*MOS*"]
["MOS Depression Scale","*MOSD"]
["MOS Sexual Function Scale","*MOSF"]
["MOSES","*MOSE"]
["MOSES-Withdrawal Behavioral","*MOSW"]
["MOS-HIV","*QL06"]
["Motivation and Energy Inventory","*MEI*"]
["Motor Assessment Scale","*MOTO"]
["Motor Block Eval, Bromage Scale","*MBS*"]
["Motor Fluctuation Questionnaire","*FLU*"]
["Motor Milestones","*MILE"]
["Motor Performance Test (Schoppe)","*MPT*"]
["Motor Screening Test, Visual/Move","*MOST"]
["Motor Task Functional Rating Scale","*MTFR"]
["Motricity Index","*MOTR"]
["Movement Pain VAS [SELECT *QL65]","*MOVE"]
["MRA Neck with Contrast",70548]
["MRC Dyspnoea Score, QOL","*QL57"]
["MRC Muscle Strength Scale","*MMPR"]
["MRC Neurological Scale","*MRCN"]
["MRI of Abdomen w Contrast","N74182"]
["MRI of Chest w/ Contrast","N71551"]
["MRI of Pelvis w/o Contrast","N72195"]
["MRI Spinal Canal/Contents, Cervical",72141]
["MRI Spinal Canal/Contents, Thoracic",72146]
["MRI Unlisted Areas Interpret. Only","76498-26"]
["MRI Upper Extremity Except Joint",73218]
["MRI, Unlisted or Suspicious Areas",76498]
["MS Functional Composite (MSFC)","*MSFC"]
["MS Neuropsychological Screen Quest","*MSNQ"]
["mUBDRS-Movement","*UBDM"]
["mUBDRS-Seizure","*UBDS"]
["MUC5AC","*MUC*"]
["Mucopolysaccharides, Quant",83864]
["Mucosal Injury Scoring","*MISS"]
["Mucosal Irritation Assessment Scale","*MIAS"]
["Mucositis Score and Grading","*MUCS"]
["MUGA, at Rest and Stress, Multiple",78473]
["MUGA, at Rest or Stress, Single",78472]
["Multi-center Panic Anxiety Scale","*MCPA"]
["Multidimensional Fatigue Inventory","*MFI*"]
["Multidimensional Pain Inventory","*MDPI"]
["Multiple Ability Self-Report Quest","*MASQ"]
["Multiple Drug Level; Any Source","80299-MT"]
["Multiple Oximetry Determinations",94761]
["Multiple Sclerosis Criter McDonald","*MSDC"]
["Multiple Sclerosis Impact Scale","*MS29"]
["Multiple Sclerosis QoL Inventory","*MSQI"]
["Multiple Sleep Latency Testing MSLT",95805]
["Multiple System Atrophy Rating Scal","*MSAR"]
["Mumps Antibody",86735]
["Munich QoL Dimension List, MSLQ","*QL74"]
["Muramidase",85549]
["Musculoskeletal Events Questionnair","*MEQ*"]
["Myasthenia Gravis QoL, MG-QoL 15","*MGQL"]
["Mycology Response Scale","*MYRS"]
["Mycoplasma Antibody",86738]
["Mycoplasma Culture",87109]
["Myelin Basic Protein (MBP)",83873]
["Myelography, Two or More Regions",72270]
["Myeloperoxidase (MPO)",83876]
["Myeloproliferative Symptom Form","*MPN*"]
["Myocardial Imaging, Infarct Avid",78466]
["Myocardial Perfus Imag",78453]
["Myocardial Perfus Imag, SPECT Sing",78451]
["Myocardial Perfus Imag, SPECT Sing",78452]
["Myoglobin",83874]
["Myositis Damage Index, MDI","*MDI*"]
["Myositis Dis Act Assmt Tool, MDAAT","*MDAA"]
["Myotonic Dystrophy Health Index","*MDHI"]
["Myringotomy",69420]
["Myringotomy Requiring General Anes",69421]
["N- Back Test, Working Memory Test","*NBT*"]
["NAEPP Step","*NAEP"]
["Nail Psoriasis Severity Index","*NAPS"]
["Narcan Challenge Opiates Dependence","NC144"]
["Nasal Function Studies",92512]
["Nasal Function Studies Interp Only","92512-26"]
["Nasal Function Studies w/o Interp","92512-52"]
["Nasal Irritation Score","*NIS*"]
["Nasal Smear for Eosinophils",89190]
["Nasal/Sinus Endoscopy Interp Only","31231-26"]
["Nasal/Sinus Endoscopy w/o Interp","31231-52"]
["National Adult Reading Test","*NART"]
["National Health Interview Survey","*NHIS"]
["National Hospital Seizure Severity","*NHSS"]
["Native/Double-Stranded DNA Ab",86225]
["Natl Cholesterol Education Program","*NCEP"]
["Natl Eye Inst Refractive Error QoL","*NEI*"]
["Natl Health, Nutrition Exam Survey","*NHAN"]
["Natl Prevention High Blood Pressure","*JNC*"]
["Natriuretic Peptide","N83880"]
["Natural Killer Cell Count","N86357"]
["Nausea Questionnaire","*NAQ*"]
["NCCN-FACT FHSI-18","*FH18"]
["NCI-CTCAE v3.0","*CTC3"]
["NCI-WG Diag Criteria For B-CLL","*NDID"]
["NCI-WG Resp Criteria For B-CLL","*NDIR"]
["NDDI-E Family/Friend's Version","*NDDF"]
["NDDI-E Patient's Version","*NDDP"]
["NDI Quality of Life Questionnaire","*NDI*"]
["Neck Disability Index","*NEDI"]
["Neck MRA w/o & w Contrast","N70549"]
["Negative Symptoms Rating Scale NSRS","*NSRS"]
["NEI Visual Function Interview","*VFQI"]
["NEI Visual Function Self-Reported","*VFQ*"]
["Neisseria Gonorrhoeae, Amplified",87591]
["Neisseria Meningitidis Antibody",86741]
["Neopterin (NPT) RIA","RIA005"]
["Nepean Dyspepsia Index","*NDIS"]
["Nephelometry, Each Analyte",83883]
["Nerve Conduction Studies; 1-2","N95907"]
["Nerve Morphology Score NMS","*NVMS"]
["Neuro Exam & Physical",99226]
["Neuroadaptive Capacities Score","*NAC*"]
["Neurol/psych consult/visit (France)","*3325"]
["Neurologic ASMT Neuro-Oncology NANO","*NANO"]
["Neurological Exam",99225]
["Neurological Soft Signs, SNSS","*SNSS"]
["Neuromuscular Junction Testing",95937]
["Neuropathic Pain Questionnaire","*NPQ*"]
["Neuropathic Pain Scale, NPS","*NPS*"]
["Neuropathic Pain Sym Invent","*NPSI"]
["Neuropathy Disability Scale/Score","*NDS*"]
["Neuropathy Impairment Score","*NEIS"]
["Neuropathy Sympt Profile Patient Q","*NSP*"]
["Neuropathy Symptom Change","*NSC*"]
["Neuropathy Symptom Score; NSS","*NSS*"]
["Neuropsych Adverse Events Interview","*NAEI"]
["Neuropsychiatric Inventory","*NPI*"]
["Neuropsychiatric Inventory Distress","*NPID"]
["Neuropsychological Testing Battery","NC070"]
["NeuroQoL","*QL81"]
["NeuroQoL-15","*NEQL"]
["Neurostimulator Anal/Program Simple",95971]
["New York Parent Rating Scale","*NYPR"]
["Newcastle Rating Scale (NRS)","*NRS*"]
["Next Day Questionnaire","*NDQ*"]
["NIAID Body Image Questionnaire","*NBIQ"]
["NIAID Grade (sub)Acute Toxic Effect","*NIAI"]
["Nicotine Use Inventory","*NUI*"]
["Night Pain VAS [SELECT *QL65]","*NIGH"]
["Night Pain Verbal Scale","*NIGV"]
["Nighttime Asthma Symptom Score NASS","*NASS"]
["NIHSS","*NIHS"]
["Nijmeegse Ouderlijke Stress Index","*NOS*"]
["NIMH Life Chart Clinician-Retrospec","*LCCR"]
["NIMH Life Chart Man. Clinic.-Rated","*LCCP"]
["NIMH Life Chart Self-Rated Perspect","*LCSP"]
["NIMH Life Chart Self-Rated Retrospe","*LCSR"]
["NIMH Severity of Illness Rating","*NIMS"]
["NIMH Trichotillomania Global Scale","*NITS"]
["NIMH-OC Scale Obesessive-Compulsiv","*NIMH"]
["NINCDS-ADRDA Diagnostic Criteria","*NINC"]
["Nine Hole Peg Test","*HPT*"]
["Nisonger Child Behavior Rating","*NCBR"]
["Nitroblue Tetrazolium Dye Test",86384]
["Nocturnal Rhinoconjunctivitis QOL","*NRQL"]
["Nocturnal Tumescence/Rigidity",54250]
["Non-Cardiac Vascular Flow Imaging",78445]
["Non-Endocrine Receptor Assay",84238]
["Non-Hemodialysis Dialysis Procedure",90945]
["non-Verbal Memory Test Computerized","*NVMT"]
["Normotest (NT)","NC107"]
["Norris Modified Scale","*NMS*"]
["Norris Visual Analog Scale","*NVAS"]
["North Star Ambulatory Assessment","*NSAA"]
["NOSIE","*NOSI"]
["Nottingham Health Profile QOL","*QL32"]
["NPCP Tumor Response Criteria","*NPCP"]
["NPF - Psoriasis Scoring, NPF-PS","*NPFP"]
["NPM1 Gene Analysis",81310]
["N-terminal ANP, Pro-ANF U. Chem.","UC005"]
["Nuclear Matrix Protein 22 Qual.",86386]
["Nucleotidase 5- (5'-NT)",83915]
["Nugent Score","*NUGT"]
["Nuisance Bleeding Questionnaire","*NBQ*"]
["Numeric Symb Assoc Subtest WAIS ASN","*ASN*"]
["Numeric Working Memory (NWM)","*NWM*"]
["Numerical Rating Scale Discomfort","*NRSD"]
["NurHome Neuropsych Invent Night Beh","*NPNB"]
["Nurse Ease-Of-Care Questionnaire","*NOCS"]
["Nurse-Rated Sedation Scale","*NSED"]
["Nurse's Global Impression","*NGI*"]
["Nurses Observation Scl Geriatric Pt","*NOSG"]
["Nurses Satisfaction Score","*NRSS"]
["NursHome Neuropsych Invent Aggress","*NPAA"]
["NVCA Eval, Nausea & Vomit/Chemo","*NVCA"]
["NY Criteria Ankylosing Spondylitis","*NYAS"]
["NY Heart Assoc Functional Class","*NYHC"]
["OA Activity Q. Physical Functioning","*OPAP"]
["OA Pain Intensity VAS[SELECT *QL65]","*OAPI"]
["OAB Bother Rating Scale","*OBRS"]
["Obesity & Weight-Loss QoL","*OQOL"]
["Observer Rating Scale","*ORS*"]
["Observer's Ass Alertness/Sedation","*OAAS"]
["Obsessive Compulsive Drinking Scale","*OCDS"]
["Obstetric Panel",80055]
["Occult Blood, Any Source",82271]
["Ocular and General Comfort Scale","*OGCS"]
["Ocular Blood Flow by Repetitive IOP","0198T"]
["Ocular Surface Dis Index Self-Rept","*OSD*"]
["Ocular Surface Disease Index","*OSDI"]
["Ocular Toxicity Grading Scale","*OTGS"]
["OKS","*OKS*"]
["Olfactory Identification Testing","NC073"]
["Oncoprotein, HER2/neu",83950]
["OOWS","*OOWS"]
["Ophthalmic Biometry",76516]
["Ophthalmic Biometry",92136]
["Ophthalmic Mucous Membrane Test",95060]
["Ophthalmological Exam, Follow-up",92012]
["Ophthalmological Exam, Initial",92002]
["Ophthalmological History Only","NC050"]
["Ophthalmological QoL Q","*QL49"]
["Ophthalmoscopy","92499-A6"]
["Opioid Agonist-like Adjective Scale","*OAAR"]
["Opioid-Rel Symptom Distress Scale","*OSDS"]
["Oppositional Deficit Disorder Chckl","*ODD*"]
["Optokinetic Nystagmus Test",92534]
["Oral Fat Challenge Test","*OFC*"]
["Oral Mucositis Daily Questionnaire","*OMDQ"]
["Orbicularis Oculi (Blink) Reflex",95933]
["Orbit, Face & Neck MRI w/ Contrast",70542]
["Orbit, Face & Neck MRI w/o Contrast",70540]
["Orbits X-Ray",70200]
["Orchidometry","NC021"]
["Organ Failure Scores","*OFS*"]
["Organ Function Assessment","*OFA*"]
["Organic Acid, Single, Quantitative",83921]
["Orthodontic Cephalogram",70350]
["Orthometer, Stiffness of Bone","*ORTH"]
["Orthopantogram",70355]
["Orthostatic Hypotension Q.","*OHQ*"]
["Orthostatic Intolerance Quest","*OIQ*"]
["Orthostatic Vitals Visit",99216]
["Orthostatic Vitals, Each Determin.",99217]
["Oscillating Tracking Test w Record.",92545]
["OSLER Test, Eval Daytime Sleepiness","*OSLE"]
["Osmolality; Blood",83930]
["Osmolality; Urine",83935]
["Osteoarthritis Diagnostic Criteria","*ODC*"]
["Osteoarthritis Severity Index","*OSI*"]
["Osteocalcin (Bone G1a Protein, BGP)",83937]
["Osteoporosis Assessment Q OPAQ","*OPA*"]
["Osteoporosis Health Beliefs Scale","*OHBS"]
["Osteoporosis Risk Factor Q","*RFQ*"]
["Osteoporosis-Targeted QoL","*OPTQ"]
["Oswestry Disability Questionnaire","*ODQ*"]
["OTA Classification","*OTA*"]
["Other RBC Antigen Blood Typing",86905]
["Otitis Media Signs & Symptoms Ass","*OTMD"]
["Otolaryngologic Examination",92502]
["Ottawa Drug Psychosis Parkinson Scl","*ODP*"]
["Outerbridge Classification","*OBC*"]
["Ova and Parasites Smears",87177]
["Ovarian/Tubal/Peritoneal Laparotomy",58960]
["Overactive Bladder Quest Short Form","*OABS"]
["Overactive Bladder Questionnaire","*OABQ"]
["Overall Ass of Dyspeptic Symptoms","*OADS"]
["Overall Disability Sum Scale (ODSS)","*ODSS"]
["Overall Disease Severity Scale","*ODS*"]
["Overall Lesion Pigmentation","*OLP*"]
["Overall Lesion Severity Scale","*OLS*"]
["Overall Med Appeal Questionnaire","*OAQ*"]
["Overall Psoriasis Improvement Score","*OPIS"]
["Overall Target Area Severity Scale","*OTAS"]
["Overt Aggression Scale","*OAS*"]
["Ovulation Test",84830]
["Oxalate; urine",83945]
["Oxford Hip Score","*OHS*"]
["Oxygen Uptake",94680]
["P.A.C.T Program Survey of Women","*PACT"]
["P24 Antibody","P24AB"]
["P24 Antigen","P24AG"]
["P3NP Any Source","PD020"]
["Paced Auditory Serial Addition Test","*PAAT"]
["PAC-QOL","*PACQ"]
["PAC-SYM","*PACS"]
["PAD Physical Activity Recall","*PADR"]
["Pad Weight Test Urine Wght Used Pad","*PADW"]
["PAGI Quality of Life Questionnaire","*PAGQ"]
["PAGI Symptom Questionnaire PAGI-SYM","*PAGS"]
["Pain Anxiety Symptom Scale","*PASF"]
["Pain Catastrophizing Scale PCS","*PCAT"]
["Pain Control Assessment","*PCA*"]
["Pain Frequency Numerical Scale","*PFNS"]
["Pain Intensity Numerical Scale","*PINS"]
["Pain Relief Scale","*PNRS"]
["Pain Relief VAS [SELECT *QL65]","*PRVS"]
["Pain Satis. Scale: Medication","*PSSM"]
["Pain Treatment Satisfaction Scale","*PSST"]
["Pain VAS [SELECT *QL65]","*PRVA"]
["PainDetect","*PDET"]
["Painful Bladder/Cystitis PBIC-QOL","*PBIQ"]
["Painful Bladder/Cystitis PBIC-SS","*PBSS"]
["Paired Associates Learning PAL","*PALT"]
["PAIRS","*PAIR"]
["PAIRS-SF","*PAIL"]
["Panic & Anticipatory Anxiety Scale","*PAAS"]
["Panic And Phobia Disorder Scale","*PPDS"]
["Panic Associated Symptom Scale","*PASS"]
["Panic Attack Diary (Yale Scale)","*PAD*"]
["Panic Disorder Severity Scale PDSS","*PDSS"]
["PANSS - Excited Component","*PANT"]
["PANSS Positive Subscale","*PANP"]
["Pap Smear, Collection Only","NC055"]
["Pap Smear, Non-Bethesda",88150]
["Pap Smear, ThinPrep w Auto Screen",88175]
["Parathormone (Parathyroid Hormone)",83970]
["Parent Distress Scale (PDS)","*PRDS"]
["Parent Global Evaluation VAS","*PGVA"]
["Parent Questionnaire, QOL","*QL88"]
["Parental Stress Inventory","*PSIN"]
["Parenting Sense Of Competence Scale","*PSOC"]
["Parent's Global Evaluation","*PGGE"]
["Parents Index QoL Atopic Dermatitis","*PIAD"]
["Parkinson Productivity & Satisfac Q","*PDPP"]
["Parkinson Psychosis Rating Scale","*PPRS"]
["Parkinson\u0092s Disease QoL, PDQ-8","*PDQ8"]
["Parkinson's Disease Outcome Scales","*SCOP"]
["Parkinson's Disease QoL PDQL","*PDQL"]
["Parkinson's Disease Questionnaire","*PDQ*"]
["Parkinson's Disease Rating Scale","*WEBS"]
["Parkinson's Disease Sleep Scale","*PKSS"]
["Parkinson's Impact Scale","*PIMS"]
["Parkinson's Symptom Inventory","*PDSI"]
["Partial Brunnstrom Recovery Stages","*BRSP"]
["Partial Thromboplastin Time (PTT)",85730]
["Particle Agglutination, Screen",86403]
["Partner Satisfaction Questionnaire","*PSQ*"]
["Parvovirus Antibody",86747]
["Patch Acceptance Scale","*PAS*"]
["Patch Wear Evaluation QOL","*PWE*"]
["Pathogenic Org Cult w/ Colony Estim",87084]
["Pathogenic Organism Culture Screen",87081]
["Patient Activation Measure","*PAME"]
["Patient Alcoholism Questionnaire","*PAQ*"]
["Patient Assessment Overall Rhinitis","*PTOR"]
["Patient Benefit Evaluation; PBE","*PBE*"]
["Patient Benefit Index","*PBNI"]
["Patient Determined Disease Steps","*PDDS"]
["Patient Eval Extra-Spinal/Articular","*ESAI"]
["Patient Evaluation of Acceptability","*PTEA"]
["Patient Functional Ability Self","*PFA*"]
["Patient Global Impression of Bother","*PGIB"]
["Patient Global Impression of Change","*PGIC"]
["Patient Global Impression Severity","*PGIS"]
["Patient Global Satisfaction","*PTGS"]
["Patient Health Q-15, Somatization Q","*PHQS"]
["Patient Health Questionnaire-2","*PHQ2"]
["Patient Health Questionnaire-9","*PHQ9"]
["Patient Partner Shared Activities Q","*PPSA"]
["Patient Preference Questionnaire","*PPQ*"]
["Patient Rated Improvement Scale","*PRIS"]
["Patient Reported Outcome SF36, EQ 5","*SFEQ"]
["Patient Reported Outcomes","*PRO*"]
["Patient Static Global Assessment","*PSGA"]
["Patient Tolerability/Safety Rating","*PTR*"]
["Patient/Observer Scar Ass. Scale","*POSA"]
["Patient-initiated spirometry",94014]
["Patient-Related Wrist Eval (PRWE)","*PRWE"]
["Patient's Ass Phobic Avoidance","*PAPA"]
["PD Non Motor Symptom Sc., Physician","*NMSI"]
["PD Non Motor Symptoms Q, Subject","*NMSS"]
["PDYS-26, Parkinson Dyskinesia Scale","*PDYS"]
["Peabody Developmental Motor Scale-2","*PDMS"]
["Peabody Picture Vocabulary Test","*PPVT"]
["Peak Flow Only","NC072"]
["Peak Torque Limbs","*PTL*"]
["PEC Impact of Constipation","*PHAI"]
["Ped Crohn's Disease Activity Index","*PCDA"]
["Ped Development Assessment Quest","*PEDA"]
["Ped GERD Caregiver Impact Quest; PG","*PGCI"]
["Pediatric Adherence Questionnaire","*PMAQ"]
["Pediatric Anxiety Rating Scale","*PARS"]
["Pediatric Enuresis Module QoL","*PEMQ"]
["Pediatric Eval Disability Inventory","*PED*"]
["Pediatric Incontinence Q.","*PINQ"]
["Pediatric Index Of Mortality","*PIM*"]
["Pediatric Migraine Disability Ass","*PMID"]
["Pediatric Overall Performance Scale","*POPS"]
["Pediatric QoL Enjoymen/Satisfaction","*PQQL"]
["Pediatric Sleep Questionaire, PSQ","*PSLQ"]
["Pediatric Toxicity Grading Scale","*PTG*"]
["PEDIS Classification","*PEDI"]
["PedsQL","*PEDS"]
["Pegboard Dexterity Tests, Purdue","*PDT*"]
["Pelvic (Pelvis) CAT/CT Scan","72192-52"]
["Pelvic CT Scan Interpretation Only","72192-26"]
["Pelvic CT Scan w/ Contrast",72193]
["Pelvic CT Scan w/o Contrast",72192]
["Pelvic Floor Impact Q.","*PFIQ"]
["Pelvic MRI Interpretation Only","72196-26"]
["Pelvic MRI w/ Contrast",72196]
["Pelvic MRI, MRI Only","72196-52"]
["Pelvic Ultrasound",76856]
["Pelvic X-Ray",72170]
["Pelvis CT w/o & w/ Contrast",72194]
["Penetrating Abdominal Trauma Index","*PATI"]
["Penile Brachial Index (PBI)","*PBI*"]
["Penile Plethysmography",54240]
["Penile Rigidity Index, Erection Ass","*PRI*"]
["Penn Daily Symptom Rating Scale","*PDSR"]
["Perceived Quality of Life Scale","*QL85"]
["Perceived Risk Instrument PRI-P","*PRIP"]
["Perceived Stress Scale","*PSS*"]
["Perception AntiCoagulant Treatment","*PAT*"]
["Perception of Sensation Q","*PERC"]
["Perception of Urgency Q VAS","*VUPQ"]
["Perceptual Aberration Scale","*PABS"]
["Percutaneous Needle Lung Biopsy",32405]
["Percutaneous Tracheal Puncture",31612]
["Perf-Oriented Assess of Mobility","*POAM"]
["Performance Based Measures","*PBM*"]
["Performance Scales - MS","*PSM*"]
["Performance Status","*PERF"]
["Perianal Disease Activity Index","*PDAI"]
["Perimenopausal Symptom Instrument","*PSI*"]
["Periodic Leg Movement Index Awake","*PLMW"]
["Periodic Leg Movement Index Sleep","*PLMS"]
["Periodic Leg Movemt w Arousal Index","*PLMA"]
["Perioperative Neurological Scale","*WPNS"]
["Perioperative Neurological Scale","*WRPA"]
["Periph. Neuropathy Signs/Symptoms Q","*SASQ"]
["Peripheral Arterial Disease Class","*PADC"]
["Peripheral Blood Leukocyte ELISA","*PBLI"]
["Peripheral Blood Mononuclear Cell","*PBMC"]
["Peripheral Blood Smear",85060]
["Peripheral Neuropathy Exam",99223]
["PERSEV, Perseveration Test","*PERS"]
["Personal And Social Performance","*PSPS"]
["Personality Inventory Children-R","*PICR"]
["PET Perfusion Myocardial Imag Multi",78492]
["PET Perfusion Myocardial Imaging",78491]
["PET Tumor Imaging, Limited Area(s)","N78811"]
["PET Tumor Imaging, Skull to Thigh",78812]
["PETiT","*PETI"]
["PGI - Sexual Function","*PGSF"]
["Ph Interview Cognitive Status","*TICS"]
["pH, Body Fluid, Except Blood",83986]
["Phalen Carpal Tunnel Syndrome Test","*PHAL"]
["Pharmacoeconomic Measures Quest.","*PMQ*"]
["Pharmacologic Class Questionnaire","*PCCQ"]
["Phenobarbital, Any Source",80184]
["Phenylalanine (PKU), Blood",84030]
["Phenytoin; Free, Any Source",80186]
["Phenytoin; Total, Any Source",80185]
["Phobia Scale, Overall Phobia Scale","*PHS*"]
["Phonological Processing Test CTOPP","*CTPP"]
["Phosphatase, acid; total",84060]
["Phosphogluconate, 6-, Dehydrogenase",84085]
["Phospholipid Neutralization (PNP)",85597]
["Phosphorus Inorganic (Phosphate)",84100]
["Phosphorus Inorganic; Urine",84105]
["Photic Phenomena & Lens Effects Q.","*PPLE"]
["Photo Patch Tests",95052]
["Photo Tests",95056]
["Photochemotherapy",96910]
["Photonumeric Photoguide (Scar)","*PPPG"]
["Photostress Recovery Time (PSRT)","*PSRT"]
["PHQ-7","*PHQ7"]
["Phys Ass Overall Cosmetic Effect","*PAOC"]
["Phys Global Assess of Pain Control","*PMPC"]
["Phys Thr Ease-Of-Care Questionnaire","*POCS"]
["Phys. Global Assessment Scale","*PGA*"]
["Physical Activity Level Classificat","*ALC*"]
["Physical Activity Scale Elderly Q","*PASE"]
["Physical Anhedonia Scale, PAS","*PAHS"]
["Physical Performance Test",97750]
["Physical Self Maintenance (PMSM)","*PSMS"]
["Physical Therapy Rating Scale","*PTRS"]
["Physician Assess. Signs & Symptoms","*PISS"]
["Physician Surgery Intention Q.","*PISQ"]
["Physician Tol/Safety Rating (5 min)","*PHTR"]
["Physician's Assessment of Rhinitis","*PHOR"]
["Physicians Withdrawal Checklist","*PWC*"]
["Picture Card Recognition","*PCR*"]
["Picture Presentation","*PPR*"]
["Pittsburgh Sleep Quality Index","*PSQI"]
["Pituitary Panel",80418]
["Planimetry of Ulcer (ex. Foot, Leg)","*PLA*"]
["Planimetry Of Wound","*PLA1"]
["Plaque Index (PI)","*PINX"]
["Plasminogen Activator",85415]
["Plasminogen, Antigenic Assay",85421]
["Plasminogen, Except Antigenic Assay",85420]
["Platelet Agg., Arachidonic Acid","85576-A1"]
["Platelet Aggregation, Any Agent",85576]
["Platelet Aggregation, TRAP","85576-A3"]
["Platelet Aggregation; POC Test","85576-92"]
["Platelet Antibody Identification",86022]
["Platelet Assoc Immunoglobulin Assay",86023]
["Platelet Count, Automated",85049]
["Platelet Mapping ADP with TEG","85576-A4"]
["Platelet Survival Study (Kinetics)",78190]
["Platelet, Aggregation: Collagen","85576-A2"]
["Play Performance Scale, Parent","*PPS*"]
["Plethysmography Lung Volume",94726]
["Pneumococcal Conjugate Immunization",90669]
["Pneumococcal Immunization",90732]
["Pneumococcal Vaccine 13 Valent",90670]
["Pneumonia Severity Index","*PNSI"]
["Pneumonia Signs & Symptoms Ass","*PNEU"]
["PODCI Pediactric Musculoskeletal","*PODC"]
["POEM/ Eczema Disability Index, QOL","*QL26"]
["Pokeweed Mitogen (PWM)","*PWM*"]
["Polysomnography (PSG) I & R Only","95808-26"]
["Porphyrins, Urine; Qualitative",84119]
["PORT Severity Index; PSI","*PORT"]
["Porteus Mazes","*PMZ*"]
["Portland Neurotoxicity Scale","*PNS*"]
["Poser Criteria Multiple Sclerosis","*POS*"]
["Positional Nystagmus Test w Record",92542]
["Positive & Negative Syndrome Scale","*PANS"]
["Positive/Negative Affect Schedule","*PANA"]
["Post Anesthesia Recovery Room Scor","*PARR"]
["Post Sleep Questionnaire","*POSQ"]
["Post-Discharge Recover Experience Q","*PDRE"]
["Posteral Locomotor Movemt Parkinson","*PLMP"]
["Postoperative Nausea and Vomiting","*PONV"]
["Postoperative Surgical Stress Score","*POSS"]
["Postural Stability Measurement","*POST"]
["Posture Test, incl heart/blood rate","*POTE"]
["Potassium (K+); Serum",84132]
["Potassium (K+); Urine",84133]
["Powell Truck Disease Activity Index","*PTDA"]
["Power Of Food Scale; PFS","*PFS*"]
["PPP Psoriasis Area & Severity Index","*PPAS"]
["Pre Sleep Questionnaire","*PRSQ"]
["Pre-/Post- Surgery Eval. ICD",93287]
["Pre-/Post-Bronchodilator Spirometry","N94060"]
["Prealbumin",84134]
["Pregnanediol",84135]
["Pregnant Uterus Ultrasound",76805]
["Pregnenolone",84140]
["Premenstrual Tension Scale","*PTS*"]
["Premenstrual Tension Syndrome Scale","*PMTO"]
["Premenstrual VAS (8 symptoms)","*PVAS"]
["Premonitory Urge for Tics Scale","*PUTS"]
["Pretreat RBCAb ID, By Diff Red Cell",86978]
["Primidone, Any Source",80188]
["Prnt Diag Interview Sched For Child","*PDIS"]
["Probe to Bone (Osteomyelitis)","*PTB*"]
["Problem Behavior Assessment SF","*PBAS"]
["Procalcitonin (PCT)","N84145"]
["Profile of Adaptation to Life, PAL","*PAL*"]
["Profile of Female Sexual Function","*PFSF"]
["Profile of Mood States","*POMS"]
["Profile Of Mood States - Brief Form","*POMB"]
["Progesterone",84144]
["Progesterone Receptor Assay",84234]
["Prognostic Scale (PS)","*PROG"]
["Program Eval Pacemaker",93279]
["Program Eval S-ICD",93260]
["Program Eval Single Lead Defibrilat",93282]
["Programmed Ventricular Stimulation",93623]
["Progressive Deterioration Scale PDS","*PDS*"]
["Progressive Supranuclear Palsy Scal","*SPSP"]
["Proinsulin",84206]
["Prolactin Mammotropin (PRL)",84146]
["Prolapse Floor Distress Inventory","*PFDI"]
["Prolapse Grading, POP-Q Score","*POPQ"]
["PROMIS Sleep Disturbance","*PROM"]
["Prostagladin, Each",84150]
["Prostate Biopsy, Needle or Punch",55700]
["Prostate Cancer-Specific QoL","*PCS*"]
["Prostate Specific Antigen; Total",84153]
["Prostatic Acid Phosphatase (PAP)",84066]
["Protein Binding U. Chem.","UC001"]
["Protein C Activity",85303]
["Protein C Antigen",85302]
["Protein Electrophoretic Other Fluid",84166]
["Protein Electrophoretic Serum",84165]
["Protein S, Free",85306]
["Protein S, Total",85305]
["Protein Western Blot",84181]
["Protein/Creatinine Ratio","NC088"]
["Proteomics Analysis U. Chem.","UC006"]
["Prothrombin Fragment 1.2 ELISA","EIA010"]
["Prothrombin Time (PT)",85610]
["Provider Rx VAS [SELECT *QL65]","*PPA*"]
["Provocative Allergy Testing",95078]
["Provoked Pain Verbal Rating Scale","*PVER"]
["Pruritis Severity Assessment","*PSA*"]
["PSAWG Criteria","*PSAW"]
["PSG w/ 1-3 Add Parameters",95808]
["PSG w/ 4+ Add Parameters",95810]
["PSG w/ 4+ Add Parameters & CPAP",95811]
["PSI: Life Events Stress Subscale","*PSIL"]
["Psoriasis Area Severity Index","*PASI"]
["Psoriasis Disability Index, QOL","*QL27"]
["Psoriasis Grading Scale","*PGS*"]
["Psoriasis Impact Questionnaire","*PIQ*"]
["Psoriasis Scalp Severity Index Scal","*SCA*"]
["Psoriasis Symptom Assessment","*PSAS"]
["Psoriatic Arthritis Response Crit.","*PSAR"]
["Psoriatic Body Surface Area","*PSBS"]
["PSS-HN (10 min, Interview, 3 items)","*PHNC"]
["PSWQ","*PSWQ"]
["Psych General Well Being, Interview","*PGWI"]
["Psych General Well Being, Self-Rept","*QL02"]
["Psychiatric Data Inventory","*PDI*"]
["Psychiatric Examination",99202]
["Psychiatric History/Interview Exam",90791]
["Psychiatric Status Rating","*PSR*"]
["Psychological Social Effects Acne","*APSE"]
["Psychomotor Vigilance Task Test","*PVTT"]
["Psychosexual Daily Questionnaire","*PSDQ"]
["Psychosocial Adjstmnt Illness Scale","*PAIS"]
["Psychotherapy, 30 Minutes",90832]
["Psychotherapy, 60 Minutes",90837]
["Psychotic Depression Scale (PDS)","*PSYD"]
["PT & PTT","NC010"]
["Pt Attitude/Satisfaction Summary","*PATS"]
["Pt Baseline Info Questionnaire","*PBIC"]
["Pt Device Satisfaction Quest","*PDSQ"]
["Pt Eval Nicotine Withdraw Symptoms","*WSN*"]
["Pt Global Impression of Improvement","*PGII"]
["Pt Health Assessment Questionnaire","*QL03"]
["Pt Overall Effectiveness Rating","*POER"]
["Pt Perception Of Urgency Scale","*PPUS"]
["Pt Reported Outcome Comprehen PROCA","*PROC"]
["Pt Reported Outcome Weekly PROWA","*PROW"]
["Pt Satisfaction Q Anemia Treatment","*PSQA"]
["Pt Speculation Double Blind Assignm","*PPTA"]
["Pt. Perception of Bladder Condition","*BLAD"]
["Pt/Parent Quest on Device Accept","*PPQD"]
["Pterygium Symptom and Impact Q","*PSIQ"]
["PTSD Checklist","*PTSD"]
["PTSD Scale, CAPS","*CAPS"]
["PTT Inhibitor Screen/Mixing Study",85732]
["Pulm Symptoms Quest","*PUSQ"]
["Pulmonary Angiography",75741]
["Pulmonary Angiography",93568]
["Pulmonary Hypertension Criteria","*PHC*"]
["Pulmonary Perfusion Imaging",78580]
["Pulmonary Questionnaire","*PULM"]
["Pulmonary Ventilation Imaging",78579]
["Pulse Field Gel Culture Typing",87152]
["Pupillometry","92499-A7"]
["Pure Tone Audiometry; Air & Bone",92553]
["Pursuit Rotor Test","*PRT*"]
["PVR Urine Volume by Catheterization",51701]
["Pyruvate",84210]
["Pyruvate Kinase",84220]
["Q on Pain, Appetite, and Weakness","*QPAW"]
["QIDS-C","*QIDC"]
["QIDS-SR","*QIDS"]
["Q-LES-Q Self-Reported","*QL46"]
["Q-LES-Q-SF","*ESSF"]
["QLQ-CR38","*QLCR"]
["QLQ-LC13","*QL59"]
["QoL Diabetic Neuropathy, QoL-DN","*QLDN"]
["QoL FACT-O, Fact Ovarian QoL","*FACO"]
["QoL FACT-Thrombocytopenia, FACT-TH","*FATH"]
["QoL Goldberg General Health Q","*QL28"]
["QoL Human Activity Profile","*QL43"]
["QoL in Childhood Epilepsy, QOLCE","*QLCE"]
["QoL Inventory General Life Function","*GLF*"]
["QoL Life Event Questionnaire","*QL29"]
["QoL Menopausal Symptoms Q","*QL80"]
["QoL Patient Ass Nocturia Frequency","*NOCT"]
["QoL Questionnaire, Self-Report","*QOLS"]
["QoL Rehabilitation & Employmt Statu","*QL25"]
["QoL Severe Heart Failure Q QLQ-SHF","*QL14"]
["QoL Sexuality & General State Q","*QL94"]
["QoL Stress & Life Events Scale SLES","*QL33"]
["QoL Stress In Diabetic Patients","*QL35"]
["QOL: Restless Leg Syndrom Specific","*RLSQ"]
["QOL: Rhinitis","*QL87"]
["QOL: Sexual Life","*SLQQ"]
["QOL: Visual Analogue Scale","*QL65"]
["QoL-AGHDA","*GHD*"]
["QOLIE-10; QoL in Epilepsy - 10","*QE10"]
["QOLIE-31; QoL in Epilepsy - 31","*QE31"]
["QOLIE-48; QoL in Epilepsy - 48","*QE48"]
["QOLIE-89; QoL in Epilepsy - 89","*QL73"]
["QOLRAD","*QOLR"]
["QSBB Diagnostic Criteria For PD","*QSBB"]
["QST: Cooling Stimuli","0108T"]
["QST: Heat-Pain Stimuli","0109T"]
["QST: Touch Pressure Stimuli","0106T"]
["QST: Vibration Stimuli","0107T"]
["QST; Other Stimuli","0110T"]
["Qual. Single-Step Immunoassay","N83518"]
["Qual./Quant. Mass Spectrometry",83789]
["QUALEFFO","*QUAL"]
["QUALEFFO-41","*QL51"]
["Qualitative Fat Or Lipids, Feces",82705]
["Qualitative Syphilis Test",86592]
["Qualitative/Semiquant Immunoassay",83516]
["Quality Of Erection Questionnaire","*QEQ*"]
["Quality of Life Atopic Dermatitis","*QLAD"]
["Quality of Life for Depression","*QLDS"]
["Quality of Life OM-6","*OM6"]
["Quality of Life Q; QoL Interview","*QOLI"]
["Quality of Life: BASIS-32, QOL","*QL50"]
["Quality of Life: EORTC","*PAN*"]
["Quality of Life: QOLM-P14","*QLMP"]
["Quality of Sleep","*QOS*"]
["Quality Upper Extremity Skills Test","*QUES"]
["Quant Acylcarbitines; Each Spec",82017]
["Quant Aerobic Bacterial Culture,Any",87071]
["Quant Albumin; Urine & Other Source",82042]
["Quant Colony Count, Urine Culture",87086]
["Quant Mononuclear Cell Antigen, Ea",86356]
["Quantitation of Lipoprotein",83704]
["Quantitative Amino Acids, 2-5 Spec",82136]
["Quantitative Amino Acids, 6+ Spec",82139]
["Quantitative EEG",95957]
["Quantitative Fat Differential",82715]
["Quantitative Fat or Lipids, Feces",82710]
["Quantitative Immunoassay",83520]
["Quantitative MG Score, QMGS","*QMGS"]
["Quantitative Radioimmunoassay",83519]
["Quantitative Symptom Score, QSS","*QSS*"]
["Quebec Class. of Spinal Disorders","*QTFS"]
["Questionnaire of Smoking Urges QSU","*QSU*"]
["Questionnaire on Venous Ulcers","*QOVU"]
["Quinidine, Any Source",80194]
["R. M. Coleman Criteria","*RMCC"]
["RA Affections Hands Score, M-SACRAH","*SACR"]
["RA Articular Damage Score","*RAAD"]
["Rabies Immunization",90675]
["RAD-i","*RADN"]
["Radial Keratotomy",65771]
["Radiation Treatment Del. Complex",77412]
["Radiation Treatment Delivery Simple",77402]
["Radiation Treatment Intermediate",77407]
["Radioactive Enzyme Cell Activity",82658]
["Radiologic Exam Sacroiliac joints",72200]
["Radiological Guidance for Drainage",75989]
["Radionuclide Bone Scan, Whole Body",78306]
["Radiopharm Localization; Limited",78800]
["Radiopharm Localization; Multiple",78801]
["Radiopharm Localization; SPECT",78803]
["Radiopharm Localization; Whole Body",78802]
["RAD-q","*RADQ"]
["Ramsay Scale","*RAMS"]
["Rancho Los Amigos Cognitive Funct","*RLAS"]
["RAND 12, VR-12","*VR12"]
["Rand Functional Limitations Scale","*RRFL"]
["RAND-36 Interview","*RNDI"]
["RAND-36 Self-Reported","*RAND"]
["Randomization","*RNDO"]
["Randt Short Story Memory Test","*RSSM"]
["Rapid Visual Info Processing Test","*RVIP"]
["RAPID-3","*RAPI"]
["Raskin Depression Scale, RDS","*RSCV"]
["Rated Functional Tasks (Hold Fruit)","*RFT*"]
["Rating for Parkinsonism, Dyskinesia","*RPD*"]
["Rating of Medication Influences","*ROMI"]
["Raynaud's Condition Score (RCS)","*RCS*"]
["Raynaud's Pain Score (RPS)","*RPS*"]
["RBC Antibody Elution",86860]
["RBC Antibody Identification",86870]
["RBC Antibody Screen",86850]
["Readiness For Discharge Quest","*RDQQ"]
["Reading Span, Verbal Working Memory","*READ"]
["REAL Grading Non-Hodgkin's Lymphoma","*REAL"]
["Reasons for Reducing Smoking","*REDU"]
["Receptor Occupancy Assay","*ROAS"]
["Rechtshaffen/Kales Sleep Staging","*RKSS"]
["Re-consent Process","*RNCO"]
["Rectal Sensation/Tone/Compliance",91120]
["Rectal Sensitivity VAS","*RSV*"]
["Red Blood Cell Count (RBC Only)",85041]
["Red Cell Volume Determination",78120]
["Refill Systemic Drug Delivery Pump",96522]
["Reflectance Spectroscopy","NC022"]
["Refractive Status Vision Profile Q","*RSVP"]
["Refrain Score (Smoking Avoidance)","*REF*"]
["Remove Central Ven Cath w/o SC Pump",36589]
["Renal Function Panel",80069]
["Renal Quality Of Life","*QL52"]
["Renal/Kidney Biopsy, Surgical Expos",50205]
["Renal/Kidney Biopsy, Trocar/Needle",50200]
["Renin",84244]
["Repetitive Behavior Scale","*RBSR"]
["Reptilase Test",85635]
["Research Diagnostic Criteria, RDC","*RDC*"]
["Resource Utiliz in Dementia-Lite","*RUDL"]
["Resource Utilization in Dementia","*RUDS"]
["Resource Utilization QoL","*QL16"]
["Resp Distress Assessment Inst Score","*RDAI"]
["Respiratory Chamber","*RSPC"]
["Respiratory Symptoms Questionnaire","*RSQ*"]
["Response Expectancy Questionnaire","*REQ*"]
["Restless Leg Syndrome QoL RLS-QLI","*RLSI"]
["Restless Leg Syndrome Severity Scal","*RLS*"]
["Restless Leg Syndrome Short Form","*RLSF"]
["Restless Legs Syndrome - 6","*RLS6"]
["Restricted Academic Situation (RAS)","*RAS*"]
["Reticulocyte Count, Automated",85045]
["Reticulocyte Count, Manual",85044]
["Reticulocytes incl CHr/IRF/MRV/RNA",85046]
["Retrograde Ejaculation Sperm Eval",89331]
["Retroperitoneal Ultrasound",76770]
["Reverse Triiodothyronine",84482]
["Revicki-Wu Sexual Relationship Scal","*RWSR"]
["Review Concomitant Medications","*RCM*"]
["Review of Free Flow Traces","51736-26"]
["Review Patient Medication Diary","*RPMD"]
["Review Patient Symptom Diary","*RPSD"]
["Revised Ways of Coping Checklist-R","*RWCC"]
["Rey Auditory Verbal Learning Test","*RAVL"]
["Reynell Developmental Language Scal","*RDLS"]
["Reynolds Adolescent Depression Scal","*RADS"]
["Rey-Osterrieth Complex Figure (RFT)","*ROCF"]
["Rh (D) Serologic Blood Typing",86901]
["Rheumatoid Arthritis Specific QoL","*RAQL"]
["Rheumatoid Factor, Qualitative",86430]
["Rheumatoid Factor, Quantitative",86431]
["Rhinitis Instantaneous Symptom Scor","*RISS"]
["Rhinitis Symptom Score","*RSS*"]
["Rhythm ECG Tracing Only",93041]
["Rhythm ECG/Lead II Telemetry",93040]
["Rhythm Strip Transm., Per 30 Days",93270]
["Riboflavin, Vitamin B-2",84252]
["Richmond Agitation Sedation Scale","*RASS"]
["Rickels Symptom/Withdrawal Checklis","*RSC*"]
["Right Heart Catheterization",93451]
["Rigid/Flexible Bronchoscopy",31622]
["Ritchie Articular Index","*RAI*"]
["Ritchie Index","*RITI"]
["Ritvo-Freeman Real Life Rating Scal","*RFRL"]
["Rivermead Behavioral Memory Test","*RMBM"]
["RLS Augmentation Scale","*RLSA"]
["Roland-Morris Disability Quest.","*RDQ*"]
["Role Functioning Scale","*RFS*"]
["ROM: Each Extremity Or Trunk Sect",95851]
["ROME II Diagnostic Criteria","*ROME"]
["ROME II Modular Questionnaire","*RMQ*"]
["Rosacea Quality of Life, ROSAQoL","*ROQL"]
["Rosen Ischemic Score","*RIS*"]
["Rosenberg Self-Esteem Scale","*RSES"]
["Rotavirus Antibody",86759]
["Rotavirus Immunization",90680]
["Rothschild Antidepressant (RSAT)","*RSAT"]
["Rotterdam Handicap Scale (RIHS9)","*RIHS"]
["Rotterdam Symptom Checklist, RSCL","*RSCI"]
["Rotterdam Symptom Chklst, Self","*QL66"]
["Rout Venipuncture Inc Prep & Ship","NC007"]
["RPP-PDD - Parent","*RPPP"]
["RPP-PDD Teacher","*RPPT"]
["RSV Antibody",86756]
["RSV Antigen",87420]
["RSV Immunoassay Optical Obs",87807]
["RTOG Radiation Toxicity Scoring","*RTOG"]
["Rubella Antibody",86762]
["Rubeola Antibody",86765]
["Ruff Design Fluency Test","*RUFF"]
["Russell Viper Venom Time, Diluted",85613]
["Rutherford Class Limb Ischemia","*RCL*"]
["S. Aureus Amplified Probe Technique",87640]
["S. Pneumonia Antigen; Urine","87450-A1"]
["Saccadic Eye Movement Test, CSGAAS","*SEM*"]
["SADS Depressed Mood Score, SADS-C","*SADD"]
["SADS Mania Rating Scale MRS, SADS-C","*SADM"]
["SADS, SADS-I Affectiv Disord/Schizo","*SADS"]
["SAFTEE-CL Checklist Version","*SAFT"]
["Saline Infusion Sonohysterography",76831]
["Salivary Flow Rate","*SFR*"]
["Salpetriere Retardation Rating Scal","*SRRS"]
["SAPS - Interview","*SAPS"]
["Sarcoidosis Activity Severity Index","*SASI"]
["Sarcoidosis Health Questionnaire Qo","*SHQL"]
["Satorius Scale","*SAR*"]
["Savary/Miller Scale Reflux Esophagi","*SMS*"]
["Scale Assess. of Negative Symptoms","*SANS"]
["Scandinavian Neuro. Stroke Scale","*SCSS"]
["Scanning Comp Diag Imag Optic Nerve",92133]
["Scanning Comp Diag Imaging Retina",92134]
["SCAP Medical Record Abstract. Form","*SCMR"]
["Scapula X-Ray",73010]
["Schedule for Deficit Syndrome (SDS)","*SFD*"]
["Schellong Test","*STOH"]
["Schirmer's Test (eg, Tear Test)","92499-A8"]
["Schizophrenia Care Health Q SCAP-HP","*SCHQ"]
["Schizophrenia Cognition Scale","*SCRS"]
["Schizophrenia Outcome Ass Survey","*SOAP"]
["Schizophrenia QoL Scale","*QL18"]
["Schizophrenia QoL Scale Revision 4","*SQLS"]
["Schneiderian Traits Questionnaire","*SDNT"]
["Schober Test","*SCHO"]
["Schonell Reading Test","*SCRT"]
["School Days Missed or Cut Short","*SDMC"]
["School Placement Questionaire","*SPQ*"]
["School Refusal Scl Child/Parent Ver","*SRAS"]
["Schwachman Score","*SCWS"]
["SCID [SELECT *SCD1 or *SCD2]","*SCID"]
["SCID-I","*SCD1"]
["SCID-II","*SCD2"]
["SCOPA-COG","*SCOI"]
["SCORAD Index, Atopic Dermatitis","*SCOR"]
["Score for Neonatal Acute Physiology","*SNAP"]
["Screener Opioid Assessment SOAPP-R","*OAPR"]
["Scripps Neurological Rating Scale","*SNRS"]
["Scripted Neurological","*SNQ*"]
["Scrotum Ultrasound",76870]
["SDEQ-O","*SDEQ"]
["SDEQ-S","*SDES"]
["Seattle Angina Questionnaire","*SEAG"]
["Secondhand Smoking Info","*SSI*"]
["Sedation Scale, Sedation Evaluation","*SEDS"]
["Sedation Test","*SDT*"]
["Sedation VAS","*VISS"]
["Seizure Prodromal Symptom Checklist","*SPC*"]
["Seizure Severity Questionnaire","*SSQU"]
["Select. Bilateral Renal Angiography",36252]
["Selective Coronary Angiogram","NC139"]
["Selective Coronary Angiogram Interp","NC139-26"]
["Selective Coronary Angiography",93563]
["SELENA SLEDAI SLE Flare Index","*SLEF"]
["Selenium",84255]
["Self Control Schedule","*SCS*"]
["Self Perception of Age","*SPA*"]
["Self-Admin. Alcohol Screening Test","*SAAS"]
["Self-administered Comorbidity Q","*SRCQ"]
["Self-Esteem And Relationship Quest.","*SEAR"]
["Self-Rated Sedation Scale","*SRSS"]
["Self-Rating Social Functioning LIL","*SFQL"]
["Self-Regard Questionnaire","*SRQ*"]
["Semantic, Phonologic Verbal Fluency","*SPVF"]
["Semen Vol, Count, Motility & Diff",89322]
["Semmes-Wein. Monofilament Eval Feet","*SWMF"]
["Semmes-Wein. Monofilament Eval Hand","*SWMH"]
["Semmes-Weinstein Monofilament Eval","*SWME"]
["Sensory Response Scale","*SRSC"]
["Sepsis Rel. Organ Failure Assess.","*SOFA"]
["Serial CSF Collection, Up To 24 Hr","NC009"]
["Serial Pattern Matching Test 1","*SPM1"]
["Serial Pattern Matching Test 2","*SPM2"]
["Serial Spirometry","NC085"]
["Serial Tonometry",92100]
["Serious Adverse Events","*SAEA"]
["Serotonin",84260]
["Serum Bactericidal Titer",87197]
["Serum Pregnancy Test, Quantitative",84702]
["Serum Sodium",84295]
["SESSB","*SESS"]
["Sev Constipation VAS [SELECT *QL65]","*ROCS"]
["Severe Impairment Battery","*SIB*"]
["Severity of Dyspepsia Assess SODA","*SODA"]
["Severity of Illness Rating Scale","*SOIR"]
["Severity of Inflamm. [SELECT *QL65]","*VASI"]
["Severity Psychosocial Stressors Scl","*SOPS"]
["Sex Effects Questionnaire (SEX-FX)","*SFXQ"]
["Sex Hormone Binding Protein",84270]
["Sexual Activity Questionnaire","*SAQU"]
["Sexual Arousal, Interest, Drive Sc.","*SAID"]
["Sexual Confidence Scale","*SCSC"]
["Sexual Distress Question","*SDQ*"]
["Sexual Dysfunction Element of UKU","*SUKU"]
["Sexual Encounter Profile; SEP","*SEP*"]
["Sexual Energy Scale (SES) VAS","*SEGS"]
["Sexual Fnct Treatment Questionnaire","*SFTQ"]
["Sexual Function Questionnaire","*SXFQ"]
["Sexual Function, McCoy","*QL34"]
["Sexual Health Inv. For Men","*SHIM"]
["Sexual History Interview","*SHI*"]
["Sexual Self Efficacy Scl - Erectile","*SSES"]
["SF-10 Health Survey for Children","*SF10"]
["SF-12 Patient Health Survey","*SFS*"]
["SF-36 Vitality Scale Interview","*VFFI"]
["Sheehan Clinician Rated Anxiety Scl","*SCRA"]
["Sheehan Disability Scale","*SHDS"]
["Shipley Inst for Living: Vocab Test","*SILV"]
["Shopping List Task (SLT)","*SLT*"]
["Short Blessed Test","*SHBT"]
["Short Form-8 SF-8 Health Survey QoL","*SF8*"]
["Short Musculoskeletal Funct Asmt","*SMFA"]
["Short Portable Mental Status Q","*SPMS"]
["Shortened Personality Q (NEO)","*NEO*"]
["Short-Form McGill Pain Question","*SMPQ"]
["Shortness of Breath Q.","*USBQ"]
["Shoulder Questionnaire","*SHOU"]
["Shoulder X-Ray",73020]
["sICAM-1","*SIAM"]
["Sickle Cell QoL; ASCQ","*ASCQ"]
["Sickness Impact Profile","*QL12"]
["SIDA-RLS","*SIDA"]
["Side Effects VAS [SELECT *QL65]","*VASE"]
["SIDI-F","*SIDI"]
["SIDI-F Question Two","*SID2"]
["Sigmoidoscopy",45330]
["Sigmoidoscopy w/ Biopsy",45331]
["Signal-Averaged ECG",93278]
["Significant Other Epworth Sleep","*SOES"]
["Signs and Symptoms of Acromegaly","*SSA*"]
["Signs/Sympt Catheter-Related Infect","*SSCI"]
["Simple Auditive Reaction Time","*SART"]
["Simple Bladder Irrigation",51700]
["Simple Cystometrogram (CMG)",51725]
["Simple Descriptive Scale Pain SDS","*SDSP"]
["Simple Pulmonary Stress Testing",94620]
["Simple Reaction Time","*SRT*"]
["Simple Telephone Consult/Visit","NC008"]
["Simple Uroflowmetry (UFR)",51736]
["Simple Visual Reaction Time","*SVRT"]
["Simplified Acute Physiology Score","*SAP*"]
["Simpson Angus","*SANG"]
["Single Breath Inert Gas Technique","*SBIG"]
["Single Clinical Colitis Act. Index","*SCAI"]
["Single Drug Lev/PK; Dialysis Fluid","80299-DL"]
["Single Drug Level/PK Local Analysis","80299-AN"]
["Single Drug Level/PK; 2nd Proc, Any","80299-SE"]
["Single Drug Level/PK; Any Source",80299]
["Single Drug Level/PK; Bile","80299-BI"]
["Single Drug Level/PK; Bone","80299-BN"]
["Single Drug Level/PK; Breath","80299-BR"]
["Single Drug Level/PK; CSF","80299-CS"]
["Single Drug Level/PK; Fecal/Feces","80299-FC"]
["Single Drug Level/PK; Mucosal/Sinus","80299-MC"]
["Single Drug Level/PK; Nails","80299-NA"]
["Single Drug Level/PK; Radiocarbon","80299-RA"]
["Single Drug Level/PK; Saliva","80299-SL"]
["Single Drug Level/PK; Skin","80299-SK"]
["Single Drug Level/PK; Tissue","80299-TS"]
["Single Injection Immunotherapy",95115]
["Single Limb Stance Test","*SLST"]
["Single Oximetry Determination",94760]
["Single Quantitative Chromatography",84291]
["Single Tonometry","NC047"]
["Single Vessel PTCA",92933]
["Single View Chest X-ray Interp only","71010-26"]
["Single View Chest X-ray w/o interp","71010-52"]
["Single View, Frontal Chest X-ray",71010]
["Sino-Nasal Outcome Test-16 SNOT-16","*SNOT"]
["Sinus X-Ray",70220]
["Sinus X-Ray Interpretation Only","70220-26"]
["Sinus X-Ray w/o Interpretation","70220-52"]
["Sinusitis Signs & Symptoms Assess","*SINU"]
["Sirolimus (Rapamune), Any Source",80195]
["Sjogren\u0092s Syndrome D Activity Index","*EDAI"]
["Sjogren\u0092s Syndrome Patient Index","*EPRI"]
["SKAMP Rating Scale","*SKAM"]
["Skeletal-Related Events Assessment","*SREA"]
["Skin Assessment Exam Head - Toe Ass","*SAE*"]
["Skin Biopsy; Each Additional Lesion",11101]
["Skin Biopsy; Single Lesion",11100]
["Skin Endpoint Titration, Immediate",95027]
["Skin Irritation Score","*VGSI"]
["Skin Testing w Allergenic Extracts",95004]
["Skin Ultrasound","NC038"]
["SKINDEX-10","*SK10"]
["SKINDEX-16/SKINDEX-29","*SKIN"]
["Sklar Aphasia Scale","*SAS*"]
["Skull X-Ray",70250]
["SLE Disease Activity Index","*SLED"]
["Sleep Disorder Diagnostic Q","*SDDQ"]
["Sleep Dysfunction Scale, SDS","*QL15"]
["Sleep Efficiency","*SLEP"]
["Sleep Eval Q, Weekly Sleep Q","*SEQ*"]
["Sleep History Questionnaire (SHQ)","*SHQ*"]
["Sleep Q (SF-A) of Goertelmeyer","*SFA*"]
["Sleep Study, Unattended by Tech",95806]
["Sleep VAS [SELECT *QL65]","*VASV"]
["SLICC/ACR - Damage Index","*SLIC"]
["Slit Lamp Exam","92499-A9"]
["Slit Lamp Interpretation & Report","92499-B1"]
["SMAC 12: 5-12 Chemistries","NC124"]
["SMAC 19: 13+ Chemistries","NC125"]
["Small Intestine Endoscopy w/ Biopsy",44386]
["Small Intestine Enterotomy",44020]
["Small Joint/Bursa Arthrocentesis",20600]
["Smear, Fluorescent/Acid Fast Stain",87206]
["Smear, Gram Stain",87205]
["Smear, Special Stain",87207]
["Smear, Wet Mount",87210]
["Smoking Assessment Questionnaire","*SASS"]
["Smoking Behavioral Pattern Q","*SBP*"]
["Smoking Cessation Counseling <10min",99406]
["Smoking Cessation Counseling >10min",99407]
["Smoking Cessation Weight Gain Scale","*WCS*"]
["Smoking Effects Inventory","*SEI*"]
["Smoking Motivation Q (SMQ)","*SMQ*"]
["Snaith-Hamilton Pleasure Scale","*SHAP"]
["Social Adaptation Self-Eval Scale","*SASE"]
["Social Adjustment Rating Scale SARS","*SARS"]
["Social Adjustment Self Report Q","*SAQ*"]
["Social Anhedonia Scale","*SAHS"]
["Social Anxiety Scale Adolescents","*SASA"]
["Social Avoidance & Distress Scale","*SOC*"]
["Social Communication Quest; SCQ","*SCQ*"]
["Social Disability Scales","*SDS*"]
["Social Function Assessment","*SFI*"]
["Social Functioning Q; SFQ","*SFQ*"]
["Social Functioning Scale","*SFSS"]
["Social Integration Survey; SIS","*SISS"]
["Social Phobia Global Severity Scale","*SPGS"]
["Social Phobia Inventory (SPIN)","*SPIN"]
["Social Responsiveness Scale, SRS-2","*SRS2"]
["Social Skill Rating Scale, SSRS","*SSRS"]
["Social Support Scale","*SSUP"]
["Socio-economic Questionnaire","*SOEC"]
["Sodium Acetate (1-13c) Breath Test","*SABT"]
["Sodium Retention Score","*SORS"]
["SOFAS, SOFA Scale","*SAOF"]
["Soft Tissue Neck CT Scan w/ Contr.",70491]
["Soft Tissue Neck CT Scan w/o Contr.",70490]
["Sokal Score","*SOK*"]
["Solid Tumor Tissue Culture",88239]
["Soluble FAS Ligand (any source)","*FASL"]
["Soluble Low Affinity IgE Receptor","*SLAI"]
["Somatic Symptoms Scale","*SSS*"]
["Somatomedin, IGF-I, IGF-II, etc.",84305]
["Somatosensory Eval; Upper Limbs",95925]
["Somatostatin",84307]
["Somesthetic Testing, Change in Temp","*SOME"]
["SOWS","*SOWS"]
["SPARCC Enthesitis Index","*SPAR"]
["Spasticity Treatment Response Scale","*STRS"]
["Spatial Working Memory Cambridge","*SWM*"]
["Spatiotemporal Visual Sensitivity","*STVC"]
["Spec Handling (simple)",99000]
["Spec. Handling (use w/PK)","NC145"]
["Special Stains Group II","N88313"]
["Special Stains Grp I Microorganisms",88312]
["Specific Indication Related Q (SIQ)","*SIQ*"]
["Specific Symptom Questionnaire","*SSQ*"]
["Spectrophotometry",84311]
["Speech Audiometry Threshold w/ Rec",92556]
["Speech Pause Time","*SPT*"]
["Sperm Antibodies",89325]
["Sperm Presence & Motility, If Perf",89321]
["Spinal Cord Independence Measure","*SCIM"]
["Spine Deviation Questionnaire","*SPD*"]
["Spine X-Ray, Single View",72020]
["Spine X-Ray; 2-3 Views Interp. Only","N7208226"]
["Spirometry",94010]
["Spitzer Quality of Life Index, QOL","*QSI*"]
["Spoken Language Ability","*SLA*"]
["Spondyloarthritis Health Index","*ASHI"]
["Spontaneous Behavior Interview SBI","*SBI*"]
["Spontaneous Nystagmus Test",92541]
["Spontaneous Pain VAS [SELECT *QL65]","*SGPI"]
["SPRAS-35 Sheehan Pt Rated Panic Scl","*SPRA"]
["Sputum Specimen Collection",89220]
["SQ Injection Survey of ADL Impact","*SQIS"]
["SQOLB Social Interaction Scale","*SSIS"]
["SRS 1 Complex Cranial Lesion",61798]
["SRS 1 Simple Cranial Lesion",61796]
["SRS 1 Spinal Lesion",63620]
["SRS Each Addl Complx Cranial lesion",61799]
["SRS Each Addl Simple Cranial Lesion",61797]
["SRS Each Addl Spinal Lesion",63621]
["S-STREAM Stroke Rehabilitation Ass.","*SSTR"]
["St. George's Respiratory Quest.","*QL58"]
["Stages of Change, Quitting Smoking","*STOC"]
["Stamey Score","*STAM"]
["Standard Highway Driving Test","*SHDT"]
["Standard Meal Test w/ Blood Draws","NC101"]
["Standard Progressive Matrices Raven","*SPM*"]
["Standing X-Ray of Both Knees",73565]
["Stanford Sleepiness Scale","*STSS"]
["Stanford-Binet Scale","*SBS*"]
["State And Trait Anxiety Inventory","*STAI"]
["State of Health Questionnaire","*SOHQ"]
["Static Balance Test","*SBT*"]
["STAXI-2","*STAX"]
["Stein Impact on Family","*SIOF"]
["Steinbrocker Functional Class","*SFC*"]
["Stem Cells, Total Count",86367]
["Stereotactic Biopsy",61750]
["Stereotactic Biopsy w/ CT or MRI",61751]
["Stereotactic Headframe for SRS",61800]
["Sternberg Short Term Memory Scan","*SSTM"]
["Sternum X-Ray",71120]
["Stimulus Evoked Response",51792]
["Stool Culture Additional Pathogens",87046]
["Stool Questionnaire","*STLQ"]
["Stool Retention Score, Barr Score","*SRS*"]
["Stool Volume","NC123"]
["Stop Signal Test","*SST*"]
["Straight & Raising Leg Test Lasegue","*SLRT"]
["STRAW Criteria","*STRA"]
["Street Value Assessment Q (SVAQ)","*SVQA"]
["Streptococcus, Group A Antigen",87430]
["Stress / Urge Incontinence Q (SUIQ)","*SUIQ"]
["Stress Echocardiogram",93350]
["Stress Incontinence Episode Freq.","*SIEF"]
["Stress-Urge Bothersome/Severity scl","*SUSS"]
["Stroke Outcome Scale (IST)","*IST*"]
["Stroop Test","*STRP"]
["Study Medication Withdrawal Scale","*SMWQ"]
["Sub Resp Injectable Therapy Quest","*SRIT"]
["Subclavian Vertebral Angiography",36225]
["Subj Global Assess of Pain Control","*SMPC"]
["Subj Global Response/Satisfaction","*SGS*"]
["Subj. Well-being/Neuroleptic Tx","*SWN*"]
["Subj. Well-being/Neuroleptic Tx SV","*SWNS"]
["Subject Ass Abdominal Pain Relief","*SAPR"]
["Subject Ease-Of-Care Questionnaire","*EOCS"]
["Subject Number Assignment","*SNA*"]
["Subject Surgery Intention Q.","*SSIQ"]
["Subjective Cognition Scale","*SBCS"]
["Subjective Evaluation of Laxation","*SEL*"]
["Subjective Global Nutritional Asmt","*SGNA"]
["Subjective Side Effect Rating Scale","*SSER"]
["Subjective Sleep Questions","*SUSQ"]
["Subjective Symptoms Asmt Profile","*QL92"]
["Sudden Onset of Sleep Q (SOoS)","*SOOS"]
["Sudomotor Testing",95923]
["Sugars, Chromatographic",84375]
["Sugars, Single Quantitative",84378]
["Suggested Immobilization Test","*SIT*"]
["Suicidal Behavior Scale (SAS)","*SUBS"]
["Suicide Behaviors Questionnaire","*SBQR"]
["Suicide Probability Scale; SPS","*SPS*"]
["SULTAN Pain Score","*SULP"]
["Superficial Bone Biopsy",20220]
["Superficial Lymph Node Biopsy",38500]
["Superficial Muscle Biopsy",20200]
["Superficial Punctate Keratitis Scal","*SPKS"]
["Surgical Hysteroscopy",58555]
["Surgical Knee Arthroscopy",29871]
["Surgical Nasal/Sinus Endoscopy",31237]
["Susceptibility Study, Agar",87181]
["Susceptibility Study, Disk Method",87184]
["Susceptibility Study, MIC",87186]
["Susceptibility Study, MLC/MBC",87187]
["SVS Infection Risk Class. System","*SVSI"]
["Swanson, Nolan & Pelham Rating Scal","*SNIV"]
["Switching Attention Test","*SWAT"]
["SWOG Tumor Response Criteria","*SWOG"]
["Syllable Repetition Test, PATA","*SYRT"]
["Symbol Copying Test, SCT","*SCT*"]
["Symbol Digit Modalities Test","*SDMT"]
["Symptom and Medication Side Effects","*SMSE"]
["Symptom Assessment Analgesia (SAA)","*SAA*"]
["Symptom Checklist 90 (SCL-90)","*QL22"]
["Symptom Checklist 90 Revised","*SCLR"]
["Symptom Distress Scale (SDS)","*SDIS"]
["Symptom Problem Index (SPI)","*SPI*"]
["Symptom Quest. - Somatic Subscale","*SQSS"]
["Symptom Relief Scale","*SYRS"]
["Symptoms of Depression Q","*SODQ"]
["Symptoms of Urinary Obstruction QoL","*QL42"]
["Synthesis Staging System CML","*SCML"]
["System of Inhalation Questionnaire","*SOIQ"]
["Systemic Lupus Activity Measure Q","*SLAM"]
["Systemic Toxicity Questionnaire","*STQ*"]
["T-3 or T-4 Uptake (THBR)",84479]
["Tacrolimus",80197]
["Take Drug Again Questionnaire","*TDAA"]
["Tanner Sexual Development Stages","*TSDC"]
["Target Lesion Pigmentation","*TLP*"]
["Target Plaq Psoriasis Sympt Severty","*TPPS"]
["Target Symptom Rating Scale (TSR)","*TSRS"]
["Taste Preference by Smile Face Scal","*TSFS"]
["Taste Qu , Taste Preference Q","*TASQ"]
["Tattooing, Scalp Tattoo","NC089"]
["Taussig/NIH Score","*TNIH"]
["Tb Test, Cell Immunity Measure",86480]
["Tb Test, T-Spot",86481]
["T-cell Depletion of Bone Marrow","NC084"]
["TCI Scale - Patient Assessment","*TCI*"]
["TCI-144","*TCIS"]
["TdaP Immunization",90715]
["Teacher's Global Assessment (TGA)","*TGA*"]
["Tear Film Break-up Time Measurement","NC130"]
["Tear Film Imaging","0330T"]
["Tel Eval By Non-Phys; 11-20 min",98967]
["Tel Eval By Non-Phys; 21-30 min",98968]
["Tel Eval By Non-Phys; 5-10 min",98966]
["Tel Eval By Phys; 11-20 min",99442]
["Tel Eval By Phys; 21-30 min",99443]
["Tel Eval By Phys; 5-10 min",99441]
["Tender and Swollen Joint Count","*TJC*"]
["Test Everyday Attention Children","*TEAC"]
["Test of Variables in Attention TOVA","*TOVA"]
["Tetanus Antibody",86774]
["TEWL by VapoMeter","*TEWL"]
["TFEQ-R21","*TFER"]
["The Act and React Testing System","*ARTS"]
["The Audit of Diabetes Dependent QoL","*ADD*"]
["The Employment Summary Form (ESF)","*ESF*"]
["The Fried Frailty Criteria","*FFC*"]
["The Greene Climacteric Scale QoL","*QL41"]
["The Krawiecka (Manchester) Scale","*KRAW"]
["The St. Mary's Sleep Questionnaire","*SMSQ"]
["The Ulm Sugar Watch","NC100"]
["Theophylline, Any Source",80198]
["Therapeutic Exercises",97110]
["Therapeutic Intervention Scoring","*TISS"]
["Therapeutic Phlebotomy",99195]
["Therapeutic Spinal Puncture",62272]
["Therapy Intensity Level (TIL)","*TIL*"]
["Therapy Preference Questionnaire","*TPRQ"]
["Therapy-Specific Restrictions Q","*TSR*"]
["Thermal Application (Burn)","*THER"]
["Thigh Circumference","*THIG"]
["Thiocyanate, Any Source",84430]
["Thirst Severity Assessment","*TSA*"]
["Thoracic Bioimpedance",93701]
["Thoracic Spine CT Scan w/ Contrast",72129]
["Thoracic Spine X-Ray",72070]
["Thoracocentesis w/o image guidance",32554]
["Thoracolumbar Junction Spine X-Ray",72080]
["Three-Factor Eating Quest.","*FEV*"]
["Thrombin Time (TT); Plasma",85670]
["Thrombomodulin",85337]
["Thrombosis Risk Factor Quest.","*TRFQ"]
["Thromboxane B2 (TXB2) RIA","RIA001"]
["Thyroglobulin (Tg)",84432]
["Thyroglobulin Antibody",86800]
["Thyroid Function Tests","NC036"]
["Thyroid Imaging",78013]
["Thyroid Stimulating Hormone",84443]
["Thyroid Symptom Scale","*TSS*"]
["Thyroid Uptake Test",78012]
["Thyroxine Binding Globulin",84442]
["Tibia and Fibula X-Ray",73590]
["Tic Symptom Self Report,TSSR","*TSSR"]
["Time Line Follow Back Test (TLFB)","*TLFB"]
["Time Loaded Standing Test","*TLST"]
["Time Loss from Work/Activities Ass","*TLWA"]
["Time to Perceptible Pain Relief","*TPR*"]
["Time to Positivity (Viral Cultures)","*TTP*"]
["Timed Walking Test","*TWT*"]
["TIMI Flow Grade (Thrombolysis)","*TIMI"]
["TIMP-1 ELISA","EIA029"]
["tinnitus Assessment",92625]
["Tinnitus Handicap Inventory","*THI*"]
["Tinnitus Reaction Questionaire","*TRQ*"]
["Tinnitus Severity Scale","*TINI"]
["TIQ - Investigator Rated","*TIQI"]
["TIQ - Patient Rated","*TIQ*"]
["Tissue Examination by KOH Slide",87220]
["Tissue Homogenization for Culture",87176]
["Tissue Protein Analys. Western Blot",88371]
["Tissue Thromboplastin Inhibition",85705]
["TNF-a CLIA","CLA001"]
["TNM Tumor Staging","*TNM*"]
["TOAST Classification Ischemic Strok","*TOA*"]
["Tobacco Withdrawal Symptoms Q","*TWSQ"]
["Tonography","NC143"]
["Topiramate, Any Source",80201]
["TORCH Antibody Panel","NC028"]
["Tot Protein By Refractometry",84160]
["Total Body Muscle Testing",95834]
["Total Carbamazepine, Any Source",80156]
["Total Hemolytic Complement (CH50)",86162]
["Total Illness Burden Index, TIBI","*TIBI"]
["Total Lipids; Chol & Triglycerides","NC092"]
["Total Modified Sharp Score, TSS","*TMSS"]
["Total Organic Acids, Qualitative",83919]
["Total Organic Acids, Quantitative",83918]
["Total Protein Except By Refractory",84155]
["Total Protein Other Fluids",84157]
["Total Symptom Score (TSS)","*TOSS"]
["Total T Cell Count",86359]
["Total Testosterone",84403]
["Total Thyroxine",84436]
["Total Triiodothyronine",84480]
["Total Urine Protein","N84156"]
["Total Vital Capacity",94150]
["Touch Avoidance NRS","*TANR"]
["TOVER Verbal Expression, Reasoning","*TOV*"]
["Tower of London computerized Test","*TOL*"]
["Toxin or Antitoxin Assay",87230]
["Toxoplasma Antibody",86777]
["Toxoplasma Antibody, IgM",86778]
["Trail Making Test","*TMT*"]
["Training Evaluation Questionnaire","*TEQ*"]
["Training On Home Monitoring Dev","*TOHM"]
["Training on Use of Test Article","*TUTA"]
["Training Q for Diabetic Patients","*TQD*"]
["Transcath. Closure Atrial Appendage",33340]
["Transcatheter Infusion Therapy",61650]
["Transcortin",84449]
["Transcranial Doppler Sonography",93886]
["Transepidermal Growth Factor (TGF)","*TRGF"]
["Transesophageal Echocardiography",93312]
["Transferrin",84466]
["Transferrin Saturation","NC115"]
["Transfusion Risk Score For CABG","*TRSC"]
["Transit Syndrome Short Test Battery","*SKT*"]
["Transition Dyspnea Index","*TDI*"]
["Transplant Prep HPCs Cryopres/Store",38207]
["Transplant Symptom Scale, MTSOSDS","*MTSO"]
["Transrectal Ultrasound",76872]
["Transthoracic Echo Imaging only","93307-52"]
["Transthoracic Echocardiogram Interp","93307-26"]
["Transtracheal Oxygen Therapy",31730]
["Transurethral Resection of Prostate",52601]
["Transvaginal Ultrasound, TVUS",76830]
["Traumatic Antecedents Q (TAQ-S)","*TAQS"]
["TRB@ Gene Rearrangement Anal.",81340]
["Treatment Assessment Quest.","*TAQ*"]
["Treatment Compliance Int. - Invest.","*TCII"]
["Treatment Discont Symptom Sc","*TDSS"]
["Treatment Expectation Scale, TES","*TES*"]
["Treatment Outcome PTDS Scale TOP-8","*TOP*"]
["Treatment Outcome Scale, TOS","*TOS*"]
["Treatment Satisfaction Survey","*TTSS"]
["Tremor Functional Rating Scale","*TFRS"]
["Tremor Response Rating Scale","*TRRS"]
["Tremor Severity Rating Scale","*TRSV"]
["Tremor Treatment Response Rating","*TTRR"]
["Treponema Pallidum",86780]
["TRG@ Gene Rearrangement Anal.",81342]
["TRH Stimulation Panel",80438]
["Tri Dimensional Personality Q (TPQ)","*TPQ*"]
["Triglycerides (Tg, Trig)",84478]
["Troponin, Qualitative",84512]
["Troponin, Quantitative",84484]
["Trypsin, Duodenal Fluid",84485]
["TSH Receptor Antibody (TRAb) RIA","RIA002"]
["TSQ-G","*TSQG"]
["TSQM","*TSQM"]
["Tubercle Culture",87116]
["Tuberculosis Amplified Probe Tech",87556]
["Tuberculosis Intradermal Skin Test",86580]
["TUBS Questionnaire","*TUBS"]
["TUG Test","*TUG*"]
["Tumor Growth Factor B, TGF ELISA","EIA028"]
["Tumor Immunohistochemistry",88360]
["Tumor Response Criteria, RECIST WHO","*WTR*"]
["Tumor Stag. [USE *TSCC,*DSMM,*FIGC]","*FIGO"]
["Tumor Staging","*TSCC"]
["Tumor/Other Antigen, Quantitative",86316]
["TVUS Interpretation & Report Only","76830-26"]
["Twist Drill Hole for Cath Implant",61107]
["Tympanic Membrane Repair",69610]
["Tympanometry",92567]
["Typhoid Immunization",90691]
["Tyrer BWSQ","*BWSQ"]
["Tyrer Checklist","*TYRE"]
["Tyrosine",84510]
["UA: Xr Diffraction/Ifr Spectroscopy","NC029"]
["UA; Qualitative/Semiqualitative","N81005"]
["UCSD Performance-Based Test","*UPSA"]
["UGT1A1 gene analysis, genotyping",81350]
["UHDRS - Independence Scale","*UHDI"]
["UHDRS - Motor Score","*UHDM"]
["UHDRS Unified Huntington Disease Sc","*UHDR"]
["UKPDS Brain Bank Diag Criteria","*UKPD"]
["UKU Side Effects Rating Scale","*UKU*"]
["Ulcer Count (5 min)","*ULCC"]
["Ulcerative Colitis Disease Index","*UCDA"]
["Ulcerative Colitis Scoring System","*UCSS"]
["Uls Guid For Vasc Access",76937]
["Uls Guidance, Aspiration of Ova",76948]
["Uls Guidance, Needle Placement",76942]
["Unawareness of Mental Disorder Scal","*SUMD"]
["Undiluted Russell Viper Venom Time",85612]
["Unified Neurological Stroke Scale","*UFSS"]
["Unilateral Extremity Angiography",75710]
["Unilateral Extremity Venography","N75820"]
["Unilateral Hip X-ray; 2-3 Views",73502]
["Unilateral Mammography",77065]
["Unilateral Rib X-ray",71100]
["University of Michigan Sedation Scl","*UMSS"]
["Unlisted Allergy Immunologic Proc",95199]
["Unlisted Anesthesia Procedure(s)","01999"]
["Unlisted Arthroscopy Procedure",29999]
["Unlisted Cardiovascular Procedure",93799]
["Unlisted Chemistry/Toxicology Proc",84999]
["Unlisted CT Scan",76497]
["Unlisted Dermatological Procedure",96999]
["Unlisted Diag. Nuclear Med Proc",78199]
["Unlisted Dialysis Procedure",90999]
["Unlisted Gastroenterology",91299]
["Unlisted Gastrointestinal Procedure",78299]
["Unlisted Hematology & Coagulation",85999]
["Unlisted Immunization",90749]
["Unlisted Immunology Procedure","N86849"]
["Unlisted Microbiology Procedure",87999]
["Unlisted Molecular Pathology",81479]
["Unlisted Nervous System Procedure",78699]
["Unlisted Neurological Procedure",95999]
["Unlisted Ophthalmological Service",92499]
["Unlisted Otorhinolaryngological",92700]
["Unlisted Panel: Metab, UA And CBC","NC037"]
["Unlisted Procedure, Urinary System",53899]
["Unlisted Pulmonary Procedure",94799]
["Unlisted Service/Procedure/Report",99199]
["Unlisted Skin Test Antigen, Each",86486]
["Unlisted Surgical Pathology Proc",88399]
["Unlisted Therapeutic Procedure",97139]
["Unlisted Ultrasound Procedure",76999]
["Unlisted Urinalysis Procedure",81099]
["Unlisted Vascular Injection",36299]
["Unlisted/Maternity Care, Delivery",59899]
["Unspecified Biochemical Markers","NC096"]
["Unspecified Tumor Markers","NC057"]
["Uof Texas Diabetic Foot Wound Class","*UTCS"]
["UPDRS (Full Version)","*UPDS"]
["UPDRS Sub V, Hoehn and Yahr Scale","*HOYR"]
["UPDRS Sub VI, Schwab and England","*SES*"]
["UPDRS Subscale I","*UPD1"]
["UPDRS Subscale II, ADL","*QL05"]
["UPDRS Subscale III","*UPMS"]
["UPDRS Subscale III with Video","*UPDV"]
["UPDRS Subscale IV A","*UP4A"]
["UPDRS Subscale IV B","*UP4B"]
["UPDRS Subscale IV C","*UP4C"]
["Upper Extremity CT Scan",73200]
["Upper Extremity Joint MRI w Contras",73222]
["Upper Extremity Joint MRI w/o Contr",73221]
["Upper Extremity MRI wo & w Contrast",73220]
["Upper GI X-Ray",74240]
["Upper GI X-Ray w/ Air Contrast",74246]
["Urea Breath Test - Analysis",78268]
["Urea Breath Test-Sample Acquisition",78267]
["Urea Nitrogen",84520]
["Urea Nitrogen Clearance",84545]
["Urge Incontinence Episode Freq UIEF","*UIEF"]
["Urgency QoL Person w Urinary Incont","*QL77"]
["Uric Acid, Blood",84550]
["Uric Acid, Other Source",84560]
["Urinalysis: Ketones Only","81002-A1"]
["Urinalysis: Sediment Only","81002-A2"]
["Urinalysis: Specific Gravity Only","81002-A3"]
["Urinalysis; Auto w/ Mic",81001]
["Urinalysis; Bacteriuria Screen",81007]
["Urinalysis; Microscopic Only",81015]
["Urinary Bladder Residual Study",78730]
["Urine Collection, 24 to 72 Hours","NC068"]
["Urine Collection, Prep & Ship","NC017"]
["Urine Collection, Up to 24 Hours","NC067"]
["Urine Culture w/ Isolation/Presumpt",87088]
["Urine Drug and Alcohol Screen","NC103"]
["Urine Pophyrins Quant. and Fraction",84120]
["Urine Pregnancy Test, Qualitative",84703]
["Urine Sodium",84300]
["Urine Urea Nitrogen",84540]
["Urobilinogen, Qualitative",84578]
["Urodynamic Studies","NC023"]
["Uro-genital Rating Scale","*UROG"]
["Urogential Distress Inventory (UDI)","*UDI*"]
["Urography; Kidney/Bladder X-Ray",74400]
["Utah Early Neuropathy Scale, UENS","*UENS"]
["Uterine Fibroid Impact Q (UFIQ)","*UFIQ"]
["Utian Quality of Life, UQOL","*UQOL"]
["Utilization And Cost Questionnaire","*UACQ"]
["Utilization of Services Q","*UOSQ"]
["UV Light Photography","D0474"]
["UWCTRI Craving & Withdrawal Scale","*UWC*"]
["VABS - Classroom Edition","*VABC"]
["VABS - Interview, Expanded Form","*VABX"]
["VABS - Interview, Survey Form","*VABS"]
["Vaginal Atrophy Symptom Quest.","*VASQ"]
["Vaginal Candidosis Scoring System","*FPSS"]
["Vaginal Hysterectomy",58260]
["Vaginal Hysterectomy w Vaginectomy",58275]
["Vaginal Photoplethysmography","NC077"]
["Vaginal Symptom Score","*SYMP"]
["Valproic/Dipropylacetic Acid Total",80164]
["Van Hees Index","*VHI*"]
["Van Putten Scale, (VPS)","*VPS*"]
["Vancomycin Resist, Amp Probe Tech",87500]
["Vancouver Scar Scale (VSS)","*VSS*"]
["Vanillylmandelic Acid (VMA), Urine",84585]
["Varicella-Zoster Antibody",86787]
["VAS for Comfort of Dressing","*VCD*"]
["VAS Most Troublesome [SELECT *QL65]","*VASM"]
["Vascular Quality of Life","*VAQL"]
["Vasculitis Activity Score","*BVAS"]
["Vasculitis Damage Index","*VDI*"]
["Vasoactive Intestinal Peptide (VIP)",84586]
["Vasoconstriction Scale","*VASS"]
["Vasoconstrictor Response Test","NC121"]
["Vasopressin",84588]
["VEGF ELISA","EIA030"]
["Venipuncture",36415]
["Venipuncture and Urine Collection,","NC012"]
["Venous Reflux Test","*VRFT"]
["Venous Thrombosis Imaging, Bilater",78458]
["Venous Thrombosis Imaging, Interpr.","78457-26"]
["Venous Thrombosis Imaging, Unilater",78457]
["Ventilation/Perfusion Study",78598]
["Ventilation/Perfusion Study, Interp","78598-26"]
["Verbal Fluency Test McCarthy Scales","*VFT*"]
["Verbal Pain Intensity[SELECT *PINS]","*VPIS"]
["Verbal Rating Scale (VRS)","*VRS*"]
["Verbal Recall Test (VRT)","*VRT*"]
["Verbal Recognition Test","*VRET"]
["Verran/Snyder - Halpern Sleep Scale","*VSHS"]
["Vertebral Angiography",36226]
["Vertical Axis Rotational Testing",92546]
["Vertigo Severity Score","*VSSC"]
["Very Low Density Cholesterol (VLDL)",83719]
["Vesical Valsalva Leak Point Pressur","*VLPP"]
["Vestibule of Mouth Biopsy",40808]
["Veteran Specific Activity Q","*VSAQ"]
["VIDA, Go-no Go","*VIDA"]
["Videotaping of Tremor/Gait","D0473"]
["Vienna Classification Crohn Disease","*VCC*"]
["VIGIL, (Digit) Vigilance Test","*VIGI"]
["Vineland-II","*VAB2"]
["Viral Neutralization Test",86382]
["Viral Tissue Culture, Definitive ID",87253]
["Viral Tissue Culture, PresumptiveID",87252]
["Virtual Reality Functional Capacity","*VRFC"]
["Virus Antibody; Not Specified Else.",86790]
["Viscosity",85810]
["Vision Related Function Q","*VRFQ"]
["Visiting Home Nurse",99351]
["Visual Acuity Test",99173]
["Visual Analog Scale for Children","*VASC"]
["Visual Analog Scale-Behavior","*VAB*"]
["Visual Backwards Masking (VBM)","*VBM*"]
["Visual Evoked Potential Testing",95930]
["Visual Field Exam, Extended",92083]
["Visual Field Exam, Intermediate",92082]
["Visual Field Exam, Limited Exam",92081]
["Visual Memory Test","*VMT*"]
["Visual Monitoring Task, VMT","*VIMT"]
["Visual Nearpoint using RAF Rule","*VNP*"]
["Visual Recognition Span Task","*VRST"]
["Visual Reinforcement Audiometry VRA",92579]
["Visual Stimulation Test","*VST*"]
["Visual Symptom Assessment Q","*VSAA"]
["Visual Task Difficulty Ass. VISTAS","*VIST"]
["Visual Tracking Test (VTT)","*VTT*"]
["Vitality Scale of the Short Form 36","*VFFS"]
["Vitals QoL Questionnaire","*VSQL"]
["Vitamin A",84590]
["Vitamin B-6",84207]
["Vitamin E",84446]
["Vitamin K",84597]
["Vitamin, Not Otherwise Specified",84591]
["Vitreous Fluorophotometry","92499-B2"]
["VKORC1 Gene Analysis",81355]
["VLA-1 T cell marker","*VLAT"]
["VLA-4, Very Late Antigen-4","*VLA*"]
["Voiding History, Natl Kidney Founda","*VHX*"]
["Vol Measurement For Timed Coll",81050]
["von Willebrand Factor",85245]
["von Willebrand Factor Antigen",85246]
["von Willebrand Factor, Multimetric",85247]
["Vulnerable Elders Survey (VES-13)","*VES*"]
["WA Psychosocial Seizure Inventory","*WPSI"]
["Wagner Classification of Ulcers","*WAG*"]
["WAIS Block Design Subset","*WBDS"]
["WAIS Information Subset","*WINS"]
["WAIS Vocabulary Subset","*WVS*"]
["Wake After Sleep Onset","*WASO"]
["Walking Impairment Q PAD","*WIQP"]
["Walking Impairment Questionnaire","*WIQ*"]
["Walking Pain Intensity Numerical Sc","*WPIN"]
["Water-Displacement Volumetry; Foot","*WDV*"]
["Watts Sexual Functioning Q","*WSFO"]
["Wechsler Abbrev Scale Intelligence","*WASI"]
["Wechsler Adult Intelligence Scale","*WAIS"]
["Wechsler Individual Achievement Tes","*WIAT"]
["Wechsler Intelligence Scale Child","*WISC"]
["Wechsler Memory Scale (WMS)","*WMS*"]
["Wechsler Paired Word","*WPW*"]
["Weight Impact Act. Daily Living","*IWAD"]
["Weight Loss Motivation Scale","*WLMS"]
["Weight Related Symptom Measure","*WRSM"]
["Weiss Functional Impairment, Parent","*WFIP"]
["Weiss Functional Impairment, Self","*WFIS"]
["Well-Being Enquiry for Diabetics Q","*WEDQ"]
["Wender-Reimherr Adult ADDS","*WRAA"]
["Western Spasmodic Torticollis RS","*TWST"]
["Wexner Score","*WEX*"]
["WHO Analgesic Ladder or Pain Scale","*WHO*"]
["WHO Asthma Diagnosis","*WHAD"]
["WHO Class Gr of TM Affecting CNS","*WHOC"]
["WHO Classification of OHSS","*WHOH"]
["WHO Criteria For Metabolic Syndrome","*WHMS"]
["WHO Criteria Hypercholesterolemia","*WHFH"]
["WHO Fracture Risk Assess Tool, FRAX","*FRAX"]
["WHO Glomerulonephritis System Lupus","*WHOL"]
["WHO Laboratory Manual Human Semen","*WHOS"]
["WHO Neoplastic Diseases Class","*WHCN"]
["WHO Pulmonary Hypertension","*WHPH"]
["Who Toxicity Grading Scale","*WTG*"]
["WHO, Classification for Diabetes","*WHD*"]
["WHO, Hypertension Classification","*WHH*"]
["WHO-5 Well-Being Index","*WBQW"]
["Whole Blood Volume, Radiopharm Dilu",78122]
["Whole Body CT Scan w/ Contrast","NC043"]
["Whole Body CT Scan w/o Contrast","NC042"]
["Whole Body PET & CT Interp & Report","78816-26"]
["Whole Body PET & CT Scan",78816]
["Whole Body PET & CT; Scan Only","78816-52"]
["Whole Body PET Scan",78813]
["Whole Body PET; Interp & Report","78813-26"]
["Whole Body PET; Scan Only","78813-52"]
["WHOQOL-BREF","*BREF"]
["Wide Range Achievement Test, WRAT","*WRAT"]
["Wide Range Ass of Memory/Learning","*WRAM"]
["Widespread Pain Index","*WPI*"]
["Wieberdink Regional Toxicity Gradin","*WIEB"]
["Wisconsin Card Sort Test","*WCST"]
["Wisconsin Quality of Life Q QLI-MH","*QL48"]
["Wisconsin Smoking Withdrawal Scale","*WSWS"]
["Withdrawal for Alcohol Scale CIWA","*CIWA"]
["WOCNA Ulcer Classification","*WOCN"]
["WOMAC Self-Reported","*WOMA"]
["Woman's Self-Assessment Quesionnair","*WSAQ"]
["Women's Health Questionnaire","*QL47"]
["Wonderlic Personnel Test","*WPT*"]
["Woodcock Johnson Cross Out Test","*WJCO"]
["Woodcock Johnson Decision Speed","*WJDS"]
["Woodcock Johnson Psychoedu Battery","*WJPB"]
["Woodcock Johnson Spatial Relations","*WJSR"]
["Woodcock-Johnson III Achievement","*WJAC"]
["Wood's Light Exam","*WLE*"]
["Word Finding Difficulty","*WFD*"]
["Word Fluency Test","*WFRS"]
["Word List Memory Test","*WLMT"]
["Word List Test Storage/Retrieval","*WLT*"]
["Word Reading Efficiency, TOWRE","*TWRE"]
["Word Test of Rey","*WTOR"]
["Word-List Learning Selective Remind","*WLSR"]
["Work & Social Disability Scale WSD","*WSD*"]
["Work and Daily Activities Scale","*WDAS"]
["Work Limitations Questionnaire","*WLQ*"]
["Work Productivity & Activity Impair","*WPAI"]
["Work Readiness Q, WoRQ","*WORQ"]
["Working Alliance Inventory","*WAI*"]
["Working Form for Clinical Usage","*NHLT"]
["Working Memory Test Battery Child","*WMTB"]
["World Fed Neurological Surgeon Scal","*WFNS"]
["Worst Pain Over the Last 24 Hrs","*WPOL"]
["Wortschatztest (WST) IQ Test","*WST*"]
["Wound Evaluation Score","*WIS*"]
["WRAT-III Word Recognition Test","*WRA3"]
["Wrinkle Severity Assessment Scale","*WSA*"]
["Wrist X-Ray",73110]
["Wrist X-Ray 2 Views",73100]
["Wrist X-Ray Interpretation Only","73110-26"]
["X-Ray Unlisted Areas Interpret Only","76499-26"]
["X-Ray, Unlisted or Suspicious Areas",76499]
["Yale Global Tic Severity Scal YGTSS","*YGTS"]
["Yale-Brown Obsessive Compulsive","*YBOC"]
["YBC Eating Disorder Scale","*YBCE"]
["Yeast Definitive ID",87106]
["Yellow Fever Immunization",90717]
["Young Mania Rating Scale","*YMRS"]
["Youth Quality of Life, YQOL","*YQOL"]
["Yunus/Masi Criteria Fibromyalgia","*YMFI"]
["Zanarini Boderline Personality Dis.","*ZBPD"]
["Zinc",84630]
["Zung Self-Rating Anxiety Scale","*ZSRA"]
["Zung Self-Rating Depression Scale","*ZADQ"]